Local authority department which incurred the expenditure,Service Division,Cost Centre,Summary of the Purpose of Expenditure,Expense Type,Expense Code,Detailed Expense Type,Date of Transaction,Transaction Number,Beneficiary,Merchant Category Number,Merchant Category,Gross Amount,VAT,Net Amount
Adult and Health Services,Head of Adults,053816,Chester View Extra Care,Supplies and Services,304403,Equipment and Materials,01-Aug-2021,000007648456890,AMZNMktplace,5999,Other consumables,129.74,0.00,129.74
Children and Young Peoples Services,Head of Childrens Social Care,085332,Middlestone Moor CU,Supplies and Services,304403,Equipment and Materials,01-Aug-2021,000007648457166,AMZNMktplace,5999,Other consumables,9.54,1.59,7.95
Children and Young Peoples Services,Head of Childrens Social Care,085332,Middlestone Moor CU,Supplies and Services,304403,Equipment and Materials,01-Aug-2021,000007648457166 - 1,AMZNMktplace,5999,Other consumables,13.43,,13.43
Children and Young Peoples Services,Head of Childrens Social Care,085332,Middlestone Moor CU,Supplies and Services,304403,Equipment and Materials,01-Aug-2021,000007648457170,AMZNMktplace,5999,Other consumables,5.99,0.00,5.99
Children and Young Peoples Services,Head of Childrens Social Care,085342,16 Hickstead Rise (previously 9 Cedar Ave),Supplies and Services,372009,Subscriptions E372,01-Aug-2021,000007648457610,Netflix.com,4899,Subscriptions 372009,13.99,0.00,13.99
Children and Young Peoples Services,Head of Childrens Social Care,085342,16 Hickstead Rise (previously 9 Cedar Ave),Supplies and Services,304999,Equipment and Materials,01-Aug-2021,000007648457612,BABBACOMBE MODEL VILLI,7991,Misc equipment tools and materials,45.15,0.00,45.15
Children and Young Peoples Services,Head of Childrens Social Care,085342,16 Hickstead Rise (previously 9 Cedar Ave),Supplies and Services,304999,Equipment and Materials,01-Aug-2021,000007648457616,BABBACOMBE MODEL VILLI,7991,Misc equipment tools and materials,8.95,0.00,8.95
Children and Young Peoples Services,Head of Childrens Social Care,085342,16 Hickstead Rise (previously 9 Cedar Ave),Supplies and Services,348037,Subsistence E348,01-Aug-2021,000007648457618,BOURNE LEISURE,5812,Subsistence,12.87,0.00,12.87
Children and Young Peoples Services,Head of Childrens Social Care,085342,16 Hickstead Rise (previously 9 Cedar Ave),Supplies and Services,338099,Services,01-Aug-2021,000007648457620,DEVON CLIFF HOL,7033,Other services,25.37,0.00,25.37
Children and Young Peoples Services,Head of Early Help Inclusion & Vulnerable Children.,085954,Walworth,Supplies and Services,324117,Provisions E324,01-Aug-2021,000007648457948,TESCO STORES 6329,5411,Catering costs - provisions,59.20,0.00,59.20
Children and Young Peoples Services,Head of Childrens Social Care,085551,Short Break Services-Park Hse Sher,Supplies and Services,324117,Provisions E324,01-Aug-2021,000007648458268,ALDI 15 774,5411,Catering costs - provisions,32.65,0.00,32.65
Children and Young Peoples Services,Head of Childrens Social Care,085342,16 Hickstead Rise (previously 9 Cedar Ave),Supplies and Services,304999,Equipment and Materials,01-Aug-2021,000007648458644,BABBACOMBE MODEL VILLI,7991,Misc equipment tools and materials,7.98,0.00,7.98
Children and Young Peoples Services,Head of Childrens Social Care,085342,16 Hickstead Rise (previously 9 Cedar Ave),Transport,215995,Running Costs of Vehicles,01-Aug-2021,000007648458654,SHELL EXMOUTH,5541,Vehicle running expenses,57.01,0.00,57.01
Children and Young Peoples Services,Head of Childrens Social Care,085342,16 Hickstead Rise (previously 9 Cedar Ave),Supplies and Services,352001,Conference Expenses,01-Aug-2021,000007648458658,COMFORT ZONE,7011,Conferencesseminars fees etc,134.85,0.00,134.85
Children and Young Peoples Services,Head of Childrens Social Care,085351,Framwellgate Moor CU,Supplies and Services,324117,Provisions E324,01-Aug-2021,000007648458718,ASDA GROCERIES ONLINE,5411,Catering costs - provisions,148.55,0.00,148.55
Children and Young Peoples Services,Head of Childrens Social Care,085351,Framwellgate Moor CU,Supplies and Services,324117,Provisions E324,01-Aug-2021,000007648458722,ASDA GROCERIES ONLINE,5411,Catering costs - provisions,30.67,0.00,30.67
Children and Young Peoples Services,Head of Childrens Social Care,085351,Framwellgate Moor CU,Supplies and Services,324117,Provisions E324,01-Aug-2021,000007648458728,ASDA GROCERIES ONLINE,5411,Catering costs - provisions,-0.49,0.00,-0.49
Children and Young Peoples Services,Head of Childrens Social Care,085332,Middlestone Moor CU,Supplies and Services,304999,Equipment and Materials,01-Aug-2021,000007648459154,Microsoft Console 1-Mo,5816,Misc equipment tools and materials,7.99,0.00,7.99
Children and Young Peoples Services,Head of Childrens Social Care,085332,Middlestone Moor CU,Supplies and Services,348037,Subsistence E348,01-Aug-2021,000007648459156,KFC THINFORD DURHAM PR,5814,Subsistence,49.82,0.00,49.82
Children and Young Peoples Services,Head of Childrens Social Care,085352,New Childrens Home (previously Tow Law),Supplies and Services,304403,Equipment and Materials,01-Aug-2021,000007648459434,AMZNMktplace,5999,Other consumables,13.25,2.21,11.04
Children and Young Peoples Services,Head of Childrens Social Care,085352,New Childrens Home (previously Tow Law),Supplies and Services,324117,Provisions E324,01-Aug-2021,000007648459438,ASDA GROCERIES ONLINE,5411,Catering costs - provisions,29.05,0.00,29.05
Children and Young Peoples Services,Head of Childrens Social Care,085352,New Childrens Home (previously Tow Law),Supplies and Services,324117,Provisions E324,01-Aug-2021,000007648459444,ASDA GROCERIES ONLINE,5411,Catering costs - provisions,135.65,0.00,135.65
Children and Young Peoples Services,Head of Childrens Social Care,085352,New Childrens Home (previously Tow Law),Supplies and Services,324117,Provisions E324,01-Aug-2021,000007648459450,ASDA GROCERIES ONLINE,5411,Catering costs - provisions,-0.09,0.00,-0.09
Children and Young Peoples Services,Head of Childrens Social Care,085352,New Childrens Home (previously Tow Law),Supplies and Services,324117,Provisions E324,01-Aug-2021,000007648459454,ASDA GROCERIES ONLINE,5411,Catering costs - provisions,-1.09,0.00,-1.09
Resources BK0010,Procurement Sales & Business Services,065500,Business Support - Management,Supplies and Services,336005,Advertising E336,01-Aug-2021,000007648459538,GOOGLE ADS8772529636,7311,Advertising other than for staff,34.20,0.00,34.20
Children and Young Peoples Services,Head of Childrens Social Care,085551,Short Break Services-Park Hse Sher,Supplies and Services,304403,Equipment and Materials,01-Aug-2021,000007648459730,AMZNMktplace,5999,Other consumables,17.98,0.00,17.98
Children and Young Peoples Services,Head of Childrens Social Care,085551,Short Break Services-Park Hse Sher,Supplies and Services,348037,Subsistence E348,01-Aug-2021,000007648459734,MCDONALDS,5814,Subsistence,7.05,0.00,7.05
"Regeneration, Economy and Growth",Corporate Property and Land,021234,Catering - Locomotion,Supplies and Services,324117,Provisions E324,01-Aug-2021,000007653807366,BATLEYS PERTH,5300,Catering costs - provisions,517.08,86.18,430.90
"Regeneration, Economy and Growth",Corporate Property and Land,021234,Catering - Locomotion,Supplies and Services,324117,Provisions E324,01-Aug-2021,000007653807366 - 1,BATLEYS PERTH,5300,Catering costs - provisions,71.10,,71.10
Children and Young Peoples Services,Head of Childrens Social Care,085342,16 Hickstead Rise (previously 9 Cedar Ave),Supplies and Services,338099,Services,01-Aug-2021,000007656613208,DEVON CLIFF HOL,7033,Other services,29.46,0.00,29.46
"Regeneration, Economy and Growth",Business Durham CL0850,030689,Inward Investment and Aftercare,Supplies and Services,304403,Equipment and Materials,02-Aug-2021,000007653807022,ADOBE CREATIVE CLOUD,5734,Other consumables,49.94,0.00,49.94
"Regeneration, Economy and Growth",Business Durham CL0850,030689,Inward Investment and Aftercare,Supplies and Services,342222,Computers and Communications,02-Aug-2021,000007653807026,FASTHOSTS INTERNET,4816,Comp hardware purch-network servers,67.20,0.00,67.20
"Regeneration, Economy and Growth",Business Durham CL0850,030689,Inward Investment and Aftercare,Supplies and Services,342222,Computers and Communications,02-Aug-2021,000007653807030,FASTHOSTS INTERNET,4816,Comp hardware purch-network servers,75.06,0.00,75.06
Children and Young Peoples Services,Head of Education and Skills,071801,Selby Cottage Childcare Centre,Supplies and Services,304403,Equipment and Materials,02-Aug-2021,000007653807038,AMZNMktplace,5999,Other consumables,37.95,6.33,31.62
Children and Young Peoples Services,Head of Education and Skills,071801,Selby Cottage Childcare Centre,Supplies and Services,304403,Equipment and Materials,02-Aug-2021,000007653807040,AMZNMktplace,5999,Other consumables,25.00,4.17,20.83
Children and Young Peoples Services,Head of Education and Skills,071801,Selby Cottage Childcare Centre,Supplies and Services,304403,Equipment and Materials,02-Aug-2021,000007653807044,AMZNMktplace,5999,Other consumables,33.98,5.66,28.32
Children and Young Peoples Services,Head of Education and Skills,071801,Selby Cottage Childcare Centre,Supplies and Services,324117,Provisions E324,02-Aug-2021,000007653807048,TESCO STORES 2278,5411,Catering costs - provisions,97.19,0.00,97.19
Children and Young Peoples Services,Head of Education and Skills,071801,Selby Cottage Childcare Centre,Supplies and Services,324117,Provisions E324,02-Aug-2021,000007653807052,TESCO STORES 2278,5411,Catering costs - provisions,3.00,0.00,3.00
Children and Young Peoples Services,Head of Education and Skills,071801,Selby Cottage Childcare Centre,Supplies and Services,304403,Equipment and Materials,02-Aug-2021,000007653807054,AMZNMktplace,5999,Other consumables,6.99,1.17,5.82
Children and Young Peoples Services,Head of Education and Skills,071801,Selby Cottage Childcare Centre,Supplies and Services,304403,Equipment and Materials,02-Aug-2021,000007653807058,AMZNMktplace,5999,Other consumables,12.99,2.17,10.82
"Regeneration, Economy and Growth",Development and Housing,030773,CLLD North,Employees,040149,Recruitment Instruction and Training,02-Aug-2021,000007653807090,WWW.MAC-PROJECTS.COM,8299,Training-all costs,-150.00,0.00,-150.00
Neighbourhoods and Climate Change,Environmental Services,010383,C&G - South Street Cleansing,Supplies and Services,304221,Equipment and Materials,02-Aug-2021,000007653807102,CARRS BILLINGTON SPENN,5599,Direct materials,65.50,0.00,65.50
"Regeneration, Economy and Growth",Culture Sport and Tourism,011198,Culture & Sport Management 011198,Supplies and Services,384999,Miscellaneous Expenses,02-Aug-2021,000007653807108,ARTS PROFESSIONAL,2741,Other expenses,285.00,0.00,285.00
"Regeneration, Economy and Growth",Culture Sport and Tourism,054735,Killhope Cafe,Supplies and Services,304403,Equipment and Materials,02-Aug-2021,000007653807118,AMZNMktplace,5999,Other consumables,7.10,1.18,5.92
"Regeneration, Economy and Growth",Culture Sport and Tourism,030712,VCD - Project Delivery,Supplies and Services,384199,Miscellaneous Expenses,02-Aug-2021,000007653807124,MAILCHIMP MONTHLY,5968,Other hired and contracted services,203.17,0.00,203.17
Children and Young Peoples Services,Head of Childrens Social Care,085332,Middlestone Moor CU,Supplies and Services,324117,Provisions E324,02-Aug-2021,000007653807128,TESCO STORES 2371,5411,Catering costs - provisions,105.78,0.00,105.78
Children and Young Peoples Services,Head of Childrens Social Care,085331,New Lea Childrens Home,Supplies and Services,304999,Equipment and Materials,02-Aug-2021,000007653807170,HOME BARGAINS,5251,Misc equipment tools and materials,3.98,0.00,3.98
Children and Young Peoples Services,Head of Childrens Social Care,085331,New Lea Childrens Home,Supplies and Services,324117,Provisions E324,02-Aug-2021,000007653807174,ASDA SUPERSTORE,5411,Catering costs - provisions,14.95,0.00,14.95
"Regeneration, Economy and Growth",Development and Housing,030777,FLEX,Supplies and Services,324117,Provisions E324,02-Aug-2021,000007653807192,ASDA GEORGE COM LEEDS,5411,Catering costs - provisions,41.95,0.00,41.95
Children and Young Peoples Services,Head of Childrens Social Care,085332,Middlestone Moor CU,Supplies and Services,304403,Equipment and Materials,02-Aug-2021,000007653807198,AMZNMktplace,5999,Other consumables,15.95,2.66,13.29
Children and Young Peoples Services,Head of Childrens Social Care,085332,Middlestone Moor CU,Supplies and Services,324117,Provisions E324,02-Aug-2021,000007653807206,ASDA SUPERSTORE 4987,5411,Catering costs - provisions,43.87,0.00,43.87
Children and Young Peoples Services,Head of Early Help Inclusion & Vulnerable Children.,085957,Secure Management,Supplies and Services,304403,Equipment and Materials,02-Aug-2021,000007653807210,AMZNMKTPLACE AMAZON.CO,5999,Other consumables,50.96,0.00,50.96
Children and Young Peoples Services,Head of Childrens Social Care,085358,Orchard House Sacriston Solo Home,Supplies and Services,324117,Provisions E324,02-Aug-2021,000007653807218,B&M 681 - DURHAM,5399,Catering costs - provisions,155.93,0.00,155.93
Children and Young Peoples Services,Head of Childrens Social Care,085358,Orchard House Sacriston Solo Home,Supplies and Services,348037,Subsistence E348,02-Aug-2021,000007653807224,KFC DURHAM,5814,Subsistence,11.98,0.00,11.98
Children and Young Peoples Services,Head of Childrens Social Care,085342,16 Hickstead Rise (previously 9 Cedar Ave),Supplies and Services,348037,Subsistence E348,02-Aug-2021,000007653807240,COSTA COFFEE,5814,Subsistence,9.00,0.00,9.00
Children and Young Peoples Services,Head of Childrens Social Care,085342,16 Hickstead Rise (previously 9 Cedar Ave),Supplies and Services,384237,Miscellaneous Expenses,02-Aug-2021,000007653807246,PLYMOUTH BOAT TRIPS LI,7999,Recreational exps outings parties,28.50,0.00,28.50
Children and Young Peoples Services,Head of Childrens Social Care,085342,16 Hickstead Rise (previously 9 Cedar Ave),Transport,235057,Public Transport,02-Aug-2021,000007653807250,PLYMOUTH CITYBUS LIMIT,4131,Staff travelling,10.50,0.00,10.50
Children and Young Peoples Services,Head of Childrens Social Care,085342,16 Hickstead Rise (previously 9 Cedar Ave),Supplies and Services,348037,Subsistence E348,02-Aug-2021,000007653807252,THE SADDLERS ARMS,5812,Subsistence,70.40,0.00,70.40
Children and Young Peoples Services,Head of Childrens Social Care,085342,16 Hickstead Rise (previously 9 Cedar Ave),Transport,235057,Public Transport,02-Aug-2021,000007653807258,DRAKE CIRCUS LEISURE,7523,Staff travelling,5.00,0.00,5.00
Neighbourhoods and Climate Change,Environmental Services,031221,North Pennines - Bowlees,Third Party Payments,430100,Rendered by Private Contractors,02-Aug-2021,000007653807266,CARRIER BAG SHOP,7399,Payments to sub-contractors,24.06,4.01,20.05
Children and Young Peoples Services,Head of Early Help Inclusion & Vulnerable Children.,085962,Aycliffe Secure - Durham,Supplies and Services,304999,Equipment and Materials,02-Aug-2021,000007653807276,WWW.PLANET-LEISURE.CO.,7933,Misc equipment tools and materials,23.80,0.00,23.80
Children and Young Peoples Services,Head of Childrens Social Care,085511,Emergency Duty Team,Supplies and Services,304259,Equipment and Materials,02-Aug-2021,000007653807286,Amazon.co.uk 980US7C35,5969,Equipment-purchase and rental,30.99,0.00,30.99
"Regeneration, Economy and Growth",Development and Housing,031623,Rough Sleeping,Supplies and Services,352001,Conference Expenses,02-Aug-2021,000007653807310,AYCLIFFE BIZ,7011,Conferencesseminars fees etc,152.00,0.00,152.00
"Regeneration, Economy and Growth",Development and Housing,031623,Rough Sleeping,Supplies and Services,352001,Conference Expenses,02-Aug-2021,000007653807314,AYCLIFFE BIZ,7011,Conferencesseminars fees etc,266.00,0.00,266.00
"Regeneration, Economy and Growth",Development and Housing,031623,Rough Sleeping,Supplies and Services,352001,Conference Expenses,02-Aug-2021,000007653807318,AYCLIFFE BIZ,7011,Conferencesseminars fees etc,266.00,0.00,266.00
"Regeneration, Economy and Growth",Development and Housing,031623,Rough Sleeping,Supplies and Services,352001,Conference Expenses,02-Aug-2021,000007653807322,AYCLIFFE BIZ,7011,Conferencesseminars fees etc,380.00,0.00,380.00
Resources BK0010,Procurement Sales & Business Services,065503,Business Support - Spectrum,Supplies and Services,304403,Equipment and Materials,02-Aug-2021,000007653807334,AMZNMktplace,5999,Other consumables,13.97,0.00,13.97
Resources BK0010,People & Talent Management,010984,Training and Development,Employees,040149,Recruitment Instruction and Training,02-Aug-2021,000007653807358,PAYPAL NPORS LTD,8699,Training-all costs,120.00,0.00,120.00
"Regeneration, Economy and Growth",Corporate Property and Land,021234,Catering - Locomotion,Supplies and Services,324117,Provisions E324,02-Aug-2021,000007653807374,JR HOLLAND FOODSERVICE,5499,Catering costs - provisions,31.28,0.00,31.28
Children and Young Peoples Services,Head of Early Help Inclusion & Vulnerable Children.,088106,Ferryhill & N.Aycliffe 0-19 Targeted Family Support,Supplies and Services,384302,Miscellaneous Expenses,02-Aug-2021,000007653807382,WILKO.COM,5399,Activity expenses,29.60,0.00,29.60
Children and Young Peoples Services,Head of Childrens Social Care,085341,High Etherley Satelite Home,Supplies and Services,384999,Miscellaneous Expenses,02-Aug-2021,000007653807392,WWW.PETSATHOME.COM,5995,Other expenses,77.97,0.00,77.97
Neighbourhoods and Climate Change,Environmental Services,010367,C&G - South Grounds Maintenance,Supplies and Services,304999,Equipment and Materials,02-Aug-2021,000007653807394,RICKERBY,5251,Misc equipment tools and materials,69.72,0.00,69.72
Children and Young Peoples Services,Head of Childrens Social Care,085333,Coxhoe Satelite Home,Supplies and Services,348037,Subsistence E348,02-Aug-2021,000007653807410,Kaspa`s Desserts Darli,5812,Subsistence,28.55,0.00,28.55
Children and Young Peoples Services,Head of Childrens Social Care,085351,Framwellgate Moor CU,Supplies and Services,324117,Provisions E324,02-Aug-2021,000007653807424,B&M 681 - DURHAM,5399,Catering costs - provisions,51.99,0.00,51.99
"Regeneration, Economy and Growth",Corporate Property and Land,030691,Catering - Durham Dales Centre,Supplies and Services,324117,Provisions E324,02-Aug-2021,000007653807450,JR HOLLAND FOODSERVICE,5499,Catering costs - provisions,74.42,0.00,74.42
Adult and Health Services,Head of Adults,055643,Hawthorn House LD Respite Unit,Supplies and Services,324117,Provisions E324,02-Aug-2021,000007653807470,JR HOLLAND FOODSERVICE,5499,Catering costs - provisions,15.98,0.00,15.98
Adult and Health Services,Head of Adults,055643,Hawthorn House LD Respite Unit,Supplies and Services,324117,Provisions E324,02-Aug-2021,000007653807474,JR HOLLAND FOODSERVICE,5499,Catering costs - provisions,5.85,0.00,5.85
Adult and Health Services,Head of Adults,055643,Hawthorn House LD Respite Unit,Supplies and Services,324117,Provisions E324,02-Aug-2021,000007653807478,JR HOLLAND FOODSERVICE,5499,Catering costs - provisions,7.32,0.00,7.32
"Regeneration, Economy and Growth",Culture Sport and Tourism,054399,Local Delivery-Libraries,Supplies and Services,312009,Newspapers books and periodicals E312,02-Aug-2021,000007653807482,AMZNMKTPLACE AMAZON.CO,5999,Newspapers books and periodicals,15.29,0.00,15.29
"Regeneration, Economy and Growth",Culture Sport and Tourism,054399,Local Delivery-Libraries,Supplies and Services,312009,Newspapers books and periodicals E312,02-Aug-2021,000007653807486,AMZNMKTPLACE AMAZON.CO,5999,Newspapers books and periodicals,15.29,0.00,15.29
"Regeneration, Economy and Growth",Culture Sport and Tourism,054399,Local Delivery-Libraries,Supplies and Services,312009,Newspapers books and periodicals E312,02-Aug-2021,000007653807490,AMZNMktplace,5999,Newspapers books and periodicals,12.95,2.16,10.79
Children and Young Peoples Services,Head of Childrens Social Care,085334,West Rainton Satelite Home,Supplies and Services,304999,Equipment and Materials,02-Aug-2021,000007653807498,HOME BARGAINS,5251,Misc equipment tools and materials,12.77,0.00,12.77
Children and Young Peoples Services,Head of Childrens Social Care,085334,West Rainton Satelite Home,Supplies and Services,324117,Provisions E324,02-Aug-2021,000007653807504,ASDA SUPERSTORE,5411,Catering costs - provisions,143.40,0.00,143.40
Children and Young Peoples Services,Head of Education and Skills,070155,Inspection-HQ,Employees,040149,Recruitment Instruction and Training,02-Aug-2021,000007653807514,KNOWLEDGE EXCHANGE GRO,8699,Training-all costs,280.80,0.00,280.80
Children and Young Peoples Services,Head of Education and Skills,070155,Inspection-HQ,Employees,040149,Recruitment Instruction and Training,02-Aug-2021,000007653807516,KNOWLEDGE EXCHANGE GRO,8699,Training-all costs,280.80,0.00,280.80
"Regeneration, Economy and Growth",Culture Sport and Tourism,054235,Bishop Auckland Town Hall Cafe,Supplies and Services,324117,Provisions E324,02-Aug-2021,000007653807526,JR HOLLAND FOODSERVICE,5499,Catering costs - provisions,233.44,0.00,233.44
Children and Young Peoples Services,Head of Education and Skills,071802,Louisa Cent Nursery,Supplies and Services,324117,Provisions E324,02-Aug-2021,000007653807536,ASDA SUPERSTORE,5411,Catering costs - provisions,11.30,0.00,11.30
Children and Young Peoples Services,Head of Early Help Inclusion & Vulnerable Children.,085962,Aycliffe Secure - Durham,Supplies and Services,304403,Equipment and Materials,02-Aug-2021,000007653807552,AMZNMktplace,5999,Other consumables,27.87,0.00,27.87
"Regeneration, Economy and Growth",Culture Sport and Tourism,054233,Bishop Auckland Town Hall Library,Supplies and Services,324117,Provisions E324,02-Aug-2021,000007653807558,WILKO RETAIL LIMITED,5399,Catering costs - provisions,4.00,0.00,4.00
"Regeneration, Economy and Growth",Culture Sport and Tourism,054233,Bishop Auckland Town Hall Library,Supplies and Services,324117,Provisions E324,02-Aug-2021,000007653807560,WILKO RETAIL LIMITED,5399,Catering costs - provisions,9.00,0.00,9.00
Adult and Health Services,Head of Adults,055310,Positive Journeys (Tudhoe),Supplies and Services,324117,Provisions E324,02-Aug-2021,000007653807574,ASDA SUPERSTORE 4987,5411,Catering costs - provisions,1.93,0.00,1.93
"Regeneration, Economy and Growth",Development and Housing,031500,Housing Solutions - Core,Supplies and Services,352001,Conference Expenses,02-Aug-2021,000007653807578,TRAVELODGE,3615,Conferencesseminars fees etc,186.22,0.00,186.22
"Regeneration, Economy and Growth",Development and Housing,031500,Housing Solutions - Core,Supplies and Services,352001,Conference Expenses,02-Aug-2021,000007653807582,H52STANLEY,7011,Conferencesseminars fees etc,245.00,0.00,245.00
"Regeneration, Economy and Growth",Development and Housing,031500,Housing Solutions - Core,Supplies and Services,348037,Subsistence E348,02-Aug-2021,000007653807584,Rustica,5812,Subsistence,47.70,0.00,47.70
Children and Young Peoples Services,Head of Childrens Social Care,085551,Short Break Services-Park Hse Sher,Supplies and Services,348037,Subsistence E348,02-Aug-2021,000007653807586,PACITTO,5812,Subsistence,9.40,0.00,9.40
Children and Young Peoples Services,Head of Childrens Social Care,085551,Short Break Services-Park Hse Sher,Supplies and Services,348037,Subsistence E348,02-Aug-2021,000007653807590,SOUTH PARK CAFETERIA,5812,Subsistence,6.30,0.00,6.30
Adult and Health Services,Head of Adults,053815,The Orchards Extra Care,Supplies and Services,304403,Equipment and Materials,02-Aug-2021,000007656613062,AMZNMKTPLACE AMAZON.CO,5999,Other consumables,98.82,0.00,98.82
"Regeneration, Economy and Growth",Culture Sport and Tourism,054812,Gala Theatre - Catering etc,Supplies and Services,324117,Provisions E324,02-Aug-2021,000007656613154,BATLEYS PERTH,5300,Catering costs - provisions,25.62,4.27,21.35
"Regeneration, Economy and Growth",Culture Sport and Tourism,054812,Gala Theatre - Catering etc,Supplies and Services,324117,Provisions E324,02-Aug-2021,000007656613154 - 1,BATLEYS PERTH,5300,Catering costs - provisions,59.72,,59.72
"Regeneration, Economy and Growth",Culture Sport and Tourism,054812,Gala Theatre - Catering etc,Supplies and Services,324117,Provisions E324,02-Aug-2021,000007656613160,BATLEYS PERTH,5300,Catering costs - provisions,-20.69,-3.45,-17.24
Children and Young Peoples Services,Head of Childrens Social Care,085342,16 Hickstead Rise (previously 9 Cedar Ave),Supplies and Services,324117,Provisions E324,02-Aug-2021,000007656613214,ESSENTIALS,5499,Catering costs - provisions,10.00,0.00,10.00
Children and Young Peoples Services,Head of Childrens Social Care,085342,16 Hickstead Rise (previously 9 Cedar Ave),Supplies and Services,338099,Services,02-Aug-2021,000007656613222,DEVON CLIFF HOL,7033,Other services,34.33,0.00,34.33
Neighbourhoods and Climate Change,Environmental Services,010314,Nei.Prot - Bereavement Services,Supplies and Services,304259,Equipment and Materials,02-Aug-2021,000007656613250,Durham County CNCL,9399,Equipment-purchase and rental,11.00,0.00,11.00
"Regeneration, Economy and Growth",Development and Housing,030771,Durham Advance Flexible Fund,Supplies and Services,304259,Equipment and Materials,02-Aug-2021,000007656613288,HARTLEPOOL BC CNP,9399,Equipment-purchase and rental,11.00,0.00,11.00
Children and Young Peoples Services,Head of Childrens Social Care,085331,New Lea Childrens Home,Supplies and Services,304259,Equipment and Materials,02-Aug-2021,000007656613336,JD SPORTS INTERNET,5941,Equipment-purchase and rental,58.99,0.00,58.99
Children and Young Peoples Services,Head of Childrens Social Care,085333,Coxhoe Satelite Home,Supplies and Services,328041,Clothing uniforms and laundry E328,02-Aug-2021,000007656613394,PRIMARK,5651,Clothing uniforms and laundry,39.00,0.00,39.00
"Regeneration, Economy and Growth",Corporate Property and Land,030691,Catering - Durham Dales Centre,Supplies and Services,324117,Provisions E324,02-Aug-2021,000007656613450,BATLEYS PERTH,5300,Catering costs - provisions,58.86,9.81,49.05
"Regeneration, Economy and Growth",Corporate Property and Land,030691,Catering - Durham Dales Centre,Supplies and Services,324117,Provisions E324,02-Aug-2021,000007656613450 - 1,BATLEYS PERTH,5300,Catering costs - provisions,49.43,,49.43
Children and Young Peoples Services,Head of Childrens Social Care,085551,Short Break Services-Park Hse Sher,Supplies and Services,348037,Subsistence E348,02-Aug-2021,000007656613618,WHITE HORSE,5812,Subsistence,17.92,0.00,17.92
Neighbourhoods and Climate Change,Partnerships & Community Engagement Div.,060472,Syrian Vulnerable Persons Scheme,Supplies and Services,308011,Furniture,02-Aug-2021,000007656613650,The Range,5719,Furniture repair and replacement,330.63,0.00,330.63
Children and Young Peoples Services,Head of Childrens Social Care,085332,Middlestone Moor CU,Supplies and Services,348037,Subsistence E348,03-Aug-2021,000007653807202,Just Eat,5814,Subsistence,32.55,0.00,32.55
Children and Young Peoples Services,Head of Childrens Social Care,085613,Families First Durham Central,Supplies and Services,338045,Services,03-Aug-2021,000007656613012,HM PASSPORT OFFICE,9399,Legal expenses 338045,254.00,0.00,254.00
Children and Young Peoples Services,Head of Education and Skills,071801,Selby Cottage Childcare Centre,Supplies and Services,304999,Equipment and Materials,03-Aug-2021,000007656613016,APPLE.COM/BILL,5815,Misc equipment tools and materials,9.99,0.00,9.99
Children and Young Peoples Services,Head of Education and Skills,071801,Selby Cottage Childcare Centre,Supplies and Services,324117,Provisions E324,03-Aug-2021,000007656613020,ASDA GROCERIES ONLINE,5411,Catering costs - provisions,106.50,0.00,106.50
Children and Young Peoples Services,Head of Education and Skills,071801,Selby Cottage Childcare Centre,Supplies and Services,324117,Provisions E324,03-Aug-2021,000007656613024,TESCO STORES 2278,5411,Catering costs - provisions,4.50,0.00,4.50
Children and Young Peoples Services,Head of Education and Skills,071801,Selby Cottage Childcare Centre,Supplies and Services,324117,Provisions E324,03-Aug-2021,000007656613028,ASDA GROCERIES ONLINE,5411,Catering costs - provisions,-0.60,0.00,-0.60
Children and Young Peoples Services,Head of Childrens Social Care,085561,Social Work Academy,Supplies and Services,352001,Conference Expenses,03-Aug-2021,000007656613032,ELIA INTERNATIONAL LTD,7392,Conferencesseminars fees etc,323.66,0.00,323.66
Neighbourhoods and Climate Change,Community Protection,010809,Community Protection Management,Supplies and Services,304403,Equipment and Materials,03-Aug-2021,000007656613036,AMZNMktplace,5999,Other consumables,164.22,27.37,136.85
Neighbourhoods and Climate Change,Community Protection,010809,Community Protection Management,Supplies and Services,304403,Equipment and Materials,03-Aug-2021,000007656613036 - 1,AMZNMktplace,5999,Other consumables,0.07,,0.07
Resources BK0010,Digital and Customer Services,065236,Operations - Desktop Services,Supplies and Services,304403,Equipment and Materials,03-Aug-2021,000007656613038,AMZNMktplace,5999,Other consumables,41.18,6.86,34.32
Resources BK0010,Digital and Customer Services,065256,Nodes/Circuits,Supplies and Services,304221,Equipment and Materials,03-Aug-2021,000007656613040,SCREWFIX DIRECT,5211,Direct materials,299.96,0.00,299.96
"Regeneration, Economy and Growth",Development and Housing,030773,CLLD North,Supplies and Services,328041,Clothing uniforms and laundry E328,03-Aug-2021,000007656613054,SPORTSDIRECT.COM,5691,Clothing uniforms and laundry,47.99,0.00,47.99
"Regeneration, Economy and Growth",Development and Housing,030773,CLLD North,Supplies and Services,324117,Provisions E324,03-Aug-2021,000007656613056,MARKS&SPENCER PLC,5411,Catering costs - provisions,39.99,0.00,39.99
"Regeneration, Economy and Growth",Culture Sport and Tourism,030705,Visit County Durham 030705,Employees,040149,Recruitment Instruction and Training,03-Aug-2021,000007656613068,WWW.AAT-ORG.UK,8931,Training-all costs,105.00,0.00,105.00
"Regeneration, Economy and Growth",Culture Sport and Tourism,030705,Visit County Durham 030705,Supplies and Services,342033,Computers and Communications,03-Aug-2021,000007656613070,FASTHOSTS INTERNET,4816,Computer hardware,7.54,0.00,7.54
Children and Young Peoples Services,Head of Education and Skills,071903,Early Years Sustainability,Supplies and Services,304403,Equipment and Materials,03-Aug-2021,000007656613074,ADOBE STOCK,5734,Other consumables,23.99,0.00,23.99
Adult and Health Services,Head of Adults,055302,Durham Pathways,Supplies and Services,324117,Provisions E324,03-Aug-2021,000007656613078,SAINSBURYS SACAT 0776,5411,Catering costs - provisions,12.00,0.00,12.00
Children and Young Peoples Services,Head of Childrens Social Care,085341,High Etherley Satelite Home,Supplies and Services,304999,Equipment and Materials,03-Aug-2021,000007656613090,WWW.PLANET-LEISURE.CO.,7933,Misc equipment tools and materials,33.75,0.00,33.75
"Regeneration, Economy and Growth",Culture Sport and Tourism,011265,Empire Theatre (Operations),Supplies and Services,324117,Provisions E324,03-Aug-2021,000007656613116,JR HOLLAND FOODSERVICE,5499,Catering costs - provisions,31.61,0.00,31.61
"Regeneration, Economy and Growth",Culture Sport and Tourism,054812,Gala Theatre - Catering etc,Supplies and Services,324117,Provisions E324,03-Aug-2021,000007656613156,JR HOLLAND FOODSERVICE,5499,Catering costs - provisions,54.51,0.00,54.51
Children and Young Peoples Services,Head of Early Help Inclusion & Vulnerable Children.,085957,Secure Management,Supplies and Services,304403,Equipment and Materials,03-Aug-2021,000007656613162,AMZNMktplace,5999,Other consumables,3.98,0.66,3.32
Adult and Health Services,Head of Adults,053813,Charles Dickens Extra Care,Supplies and Services,304403,Equipment and Materials,03-Aug-2021,000007656613172,AMZNMktplace,5999,Other consumables,183.81,0.00,183.81
Resources BK0010,Digital and Customer Services,065481,Technical Services 065481,Supplies and Services,372009,Subscriptions E372,03-Aug-2021,000007656613198,NOMINET UK,7392,Subscriptions 372009,120.00,20.00,100.00
Children and Young Peoples Services,Head of Childrens Social Care,085342,16 Hickstead Rise (previously 9 Cedar Ave),Supplies and Services,348037,Subsistence E348,03-Aug-2021,000007656613212,BOURNE LEISURE,5812,Subsistence,13.77,0.00,13.77
Children and Young Peoples Services,Head of Childrens Social Care,085342,16 Hickstead Rise (previously 9 Cedar Ave),Transport,215995,Running Costs of Vehicles,03-Aug-2021,000007656613216,W M MORRISON,5541,Vehicle running expenses,4.65,0.00,4.65
Children and Young Peoples Services,Head of Childrens Social Care,085342,16 Hickstead Rise (previously 9 Cedar Ave),Supplies and Services,348037,Subsistence E348,03-Aug-2021,000007656613220,SWZEL CATERING PGN,5814,Subsistence,19.75,0.00,19.75
Neighbourhoods and Climate Change,Environmental Services,011060,C&G - Hardwick Park Catering,Supplies and Services,304083,Equipment and Materials,03-Aug-2021,000007656613246,WWW.NISBETS.COM,5964,Catering equipment,76.77,0.00,76.77
Children and Young Peoples Services,Head of Early Help Inclusion & Vulnerable Children.,085962,Aycliffe Secure - Durham,Supplies and Services,304999,Equipment and Materials,03-Aug-2021,000007656613258,CLIP N CLIMB STOCKTON,7929,Misc equipment tools and materials,20.00,0.00,20.00
Children and Young Peoples Services,Head of Childrens Social Care,085517,Supporting Solutions Service (Edge of Care),Supplies and Services,384871,Miscellaneous Expenses,03-Aug-2021,000007656613260,WWW.INFINITEAIR.CO.UK,7991,Training-other activities,18.95,0.00,18.95
Children and Young Peoples Services,Head of Early Help Inclusion & Vulnerable Children.,085962,Aycliffe Secure - Durham,Transfer Payments,515002,Social Services Clients,03-Aug-2021,000007656613296,EMP Mail Order UK Ltd.,5399,Pocket money,23.98,4.00,19.98
Children and Young Peoples Services,Head of Early Help Inclusion & Vulnerable Children.,085954,Walworth,Supplies and Services,384302,Miscellaneous Expenses,03-Aug-2021,000007656613298,Amazon.co.uk 4S2VT1RU5,5969,Activity expenses,5.99,1.00,4.99
Children and Young Peoples Services,Head of Early Help Inclusion & Vulnerable Children.,085962,Aycliffe Secure - Durham,Transfer Payments,515002,Social Services Clients,03-Aug-2021,000007656613302,Amazon.co.uk 7793047S5,5969,Pocket money,8.99,1.50,7.49
Children and Young Peoples Services,Head of Early Help Inclusion & Vulnerable Children.,085956,Lumley,Transfer Payments,515002,Social Services Clients,03-Aug-2021,000007656613304,www.asos.com,5691,Pocket money,79.90,0.00,79.90
Children and Young Peoples Services,Head of Early Help Inclusion & Vulnerable Children.,085954,Walworth,Transfer Payments,515002,Social Services Clients,03-Aug-2021,000007656613306,JD SPORTS INTERNET,5941,Pocket money,-70.00,0.00,-70.00
Neighbourhoods and Climate Change,Environmental Services,011060,C&G - Hardwick Park Catering,Supplies and Services,324117,Provisions E324,03-Aug-2021,000007656613314,JR HOLLAND FOODSERVICE,5499,Catering costs - provisions,15.49,0.00,15.49
"Regeneration, Economy and Growth",Corporate Property and Land,021234,Catering - Locomotion,Supplies and Services,324117,Provisions E324,03-Aug-2021,000007656613324,ON A ROLL SANDWICH COM,5499,Catering costs - provisions,449.71,0.00,449.71
"Regeneration, Economy and Growth",Corporate Property and Land,021234,Catering - Locomotion,Supplies and Services,324117,Provisions E324,03-Aug-2021,000007656613326,JR HOLLAND FOODSERVICE,5499,Catering costs - provisions,41.41,0.00,41.41
Children and Young Peoples Services,Head of Childrens Social Care,085331,New Lea Childrens Home,Supplies and Services,324117,Provisions E324,03-Aug-2021,000007656613338,WM MORRISONS STORE,5411,Catering costs - provisions,44.00,0.00,44.00
Children and Young Peoples Services,Head of Childrens Social Care,085331,New Lea Childrens Home,Supplies and Services,324117,Provisions E324,03-Aug-2021,000007656613350,TESCO STORES 6329,5411,Catering costs - provisions,23.90,0.00,23.90
Adult and Health Services,Head of Adults,055643,Hawthorn House LD Respite Unit,Supplies and Services,304403,Equipment and Materials,03-Aug-2021,000007656613376,AMZNMKTPLACE AMAZON.CO,5999,Other consumables,18.61,3.13,15.48
Adult and Health Services,Head of Adults,055643,Hawthorn House LD Respite Unit,Supplies and Services,304403,Equipment and Materials,03-Aug-2021,000007656613380,AMZNMKTPLACE AMAZON.CO,5999,Other consumables,11.25,1.89,9.36
Adult and Health Services,Head of Adults,055643,Hawthorn House LD Respite Unit,Supplies and Services,384999,Miscellaneous Expenses,03-Aug-2021,000007656613382,Amazon.co.uk TU1UD5TS5,5969,Other expenses,17.97,3.00,14.97
Children and Young Peoples Services,Head of Childrens Social Care,085333,Coxhoe Satelite Home,Supplies and Services,324117,Provisions E324,03-Aug-2021,000007656613396,TESCO STORES 6329,5411,Catering costs - provisions,77.64,0.00,77.64
Adult and Health Services,Head of Adults,055301,Stanley Pathways,Supplies and Services,304403,Equipment and Materials,03-Aug-2021,000007656613408,AMZNMKTPLACE AMAZON.CO,5999,Other consumables,179.98,30.00,149.98
Adult and Health Services,Head of Adults,055301,Stanley Pathways,Supplies and Services,304403,Equipment and Materials,03-Aug-2021,000007656613410,AMZNMktplace,5999,Other consumables,89.99,15.00,74.99
Children and Young Peoples Services,Head of Childrens Social Care,085351,Framwellgate Moor CU,Supplies and Services,304403,Equipment and Materials,03-Aug-2021,000007656613422,AMZNMKTPLACE AMAZON.CO,5999,Other consumables,12.99,2.17,10.82
Children and Young Peoples Services,Head of Childrens Social Care,085351,Framwellgate Moor CU,Supplies and Services,304403,Equipment and Materials,03-Aug-2021,000007656613424,AMZNMKTPLACE AMAZON.CO,5999,Other consumables,248.99,41.50,207.49
Children and Young Peoples Services,Head of Childrens Social Care,085351,Framwellgate Moor CU,Supplies and Services,384999,Miscellaneous Expenses,03-Aug-2021,000007656613426,Amazon.co.uk U615D7LT5,5969,Other expenses,16.99,2.83,14.16
Children and Young Peoples Services,Head of Childrens Social Care,085351,Framwellgate Moor CU,Supplies and Services,304221,Equipment and Materials,03-Aug-2021,000007656613428,Horns garden centre,5261,Direct materials,21.48,0.00,21.48
Children and Young Peoples Services,Head of Childrens Social Care,085351,Framwellgate Moor CU,Supplies and Services,324117,Provisions E324,03-Aug-2021,000007656613432,ALDI 12 774,5411,Catering costs - provisions,20.86,0.00,20.86
Children and Young Peoples Services,Head of Childrens Social Care,085351,Framwellgate Moor CU,Supplies and Services,384999,Miscellaneous Expenses,03-Aug-2021,000007656613434,WWW.THEDEEP.CO.UK,7922,Other expenses,66.00,0.00,66.00
Adult and Health Services,Head of Adults,055643,Hawthorn House LD Respite Unit,Supplies and Services,324117,Provisions E324,03-Aug-2021,000007656613468,JR HOLLAND FOODSERVICE,5499,Catering costs - provisions,23.52,0.00,23.52
Children and Young Peoples Services,Head of Childrens Social Care,085334,West Rainton Satelite Home,Supplies and Services,304999,Equipment and Materials,03-Aug-2021,000007656613472,HOME BARGAINS,5251,Misc equipment tools and materials,22.52,0.00,22.52
Children and Young Peoples Services,Head of Childrens Social Care,085334,West Rainton Satelite Home,Supplies and Services,324117,Provisions E324,03-Aug-2021,000007656613474,TESCO STORES 2371,5411,Catering costs - provisions,162.46,0.00,162.46
Children and Young Peoples Services,Head of Early Help Inclusion & Vulnerable Children.,088103,Consett & Stanley 0-19 Community Family Hub,Supplies and Services,384302,Miscellaneous Expenses,03-Aug-2021,000007656613476,AMZNMktplace,5999,Activity expenses,3.45,0.58,2.87
Children and Young Peoples Services,Head of Early Help Inclusion & Vulnerable Children.,088103,Consett & Stanley 0-19 Community Family Hub,Supplies and Services,384302,Miscellaneous Expenses,03-Aug-2021,000007656613478,AMZNMktplace,5999,Activity expenses,6.68,1.12,5.56
Children and Young Peoples Services,Head of Early Help Inclusion & Vulnerable Children.,085957,Secure Management,Premises,108099,Service Repairs and Maintenance,03-Aug-2021,000007656613482,SCREWFIX DIRECT,5211,General repairs 108099,33.84,5.64,28.20
Children and Young Peoples Services,Head of Early Help Inclusion & Vulnerable Children.,088110,Easington & Peterlee 0-19 Targeted Family Support,Supplies and Services,364301,Grants to Voluntary Organisations,03-Aug-2021,000007656613492,ASDA STORES LTD,5411,Hardship,68.67,0.00,68.67
Children and Young Peoples Services,Head of Early Help Inclusion & Vulnerable Children.,088110,Easington & Peterlee 0-19 Targeted Family Support,Supplies and Services,364301,Grants to Voluntary Organisations,03-Aug-2021,000007656613494,ALDI STORES,5411,Hardship,32.78,0.00,32.78
Children and Young Peoples Services,Head of Education and Skills,071903,Early Years Sustainability,Supplies and Services,304999,Equipment and Materials,03-Aug-2021,000007656613498,VIMEO.COM,5968,Misc equipment tools and materials,119.00,0.00,119.00
Children and Young Peoples Services,Head of Education and Skills,071903,Early Years Sustainability,Employees,040149,Recruitment Instruction and Training,03-Aug-2021,000007656613500,PACEY COMMERCIAL SERVI,8398,Training-all costs,87.40,0.00,87.40
Children and Young Peoples Services,Head of Education and Skills,071903,Early Years Sustainability,Supplies and Services,304999,Equipment and Materials,03-Aug-2021,000007656613504,MAGSUBCRIPTIONS COM,5968,Misc equipment tools and materials,143.00,0.00,143.00
"Regeneration, Economy and Growth",Culture Sport and Tourism,054235,Bishop Auckland Town Hall Cafe,Supplies and Services,324117,Provisions E324,03-Aug-2021,000007656613506,JR HOLLAND FOODSERVICE,5499,Catering costs - provisions,52.15,0.00,52.15
"Regeneration, Economy and Growth",Culture Sport and Tourism,054235,Bishop Auckland Town Hall Cafe,Supplies and Services,324117,Provisions E324,03-Aug-2021,000007656613508,JR HOLLAND FOODSERVICE,5499,Catering costs - provisions,-12.20,0.00,-12.20
Children and Young Peoples Services,Head of Early Help Inclusion & Vulnerable Children.,085801,CDYJS - Support,Supplies and Services,324117,Provisions E324,03-Aug-2021,000007656613518,TESCO GIFT CARD,5411,Catering costs - provisions,150.00,0.00,150.00
Children and Young Peoples Services,Head of Early Help Inclusion & Vulnerable Children.,088107,Ferryhill & Newton Aycliffe 0-19 Community Family Hub,Supplies and Services,324117,Provisions E324,03-Aug-2021,000007656613552,ASDA GROCERIES ONLINE,5411,Catering costs - provisions,86.37,0.00,86.37
Children and Young Peoples Services,Head of Early Help Inclusion & Vulnerable Children.,088107,Ferryhill & Newton Aycliffe 0-19 Community Family Hub,Supplies and Services,324117,Provisions E324,03-Aug-2021,000007656613556,ASDA GROCERIES ONLINE,5411,Catering costs - provisions,-0.90,0.00,-0.90
"Regeneration, Economy and Growth",Culture Sport and Tourism,054820,Gala Theatre - Overheads,Supplies and Services,324117,Provisions E324,03-Aug-2021,000007656613582,TESCO STORES 6029,5411,Catering costs - provisions,2.80,0.00,2.80
Children and Young Peoples Services,Head of Childrens Social Care,085332,Middlestone Moor CU,Supplies and Services,324117,Provisions E324,03-Aug-2021,000007656613590,ASDA SUPERSTORE 4987,5411,Catering costs - provisions,17.02,0.00,17.02
Resources BK0010,Procurement Sales & Business Services,065500,Business Support - Management,Supplies and Services,336005,Advertising E336,03-Aug-2021,000007656613596,FACEBK UCW9N4B4B2,7311,Advertising other than for staff,500.00,0.00,500.00
"Regeneration, Economy and Growth",Corporate Property and Land,021235,Catering - Wharton Park,Supplies and Services,324117,Provisions E324,03-Aug-2021,000007656613600,ON A ROLL SANDWICH COM,5499,Catering costs - provisions,144.77,0.00,144.77
"Regeneration, Economy and Growth",Corporate Property and Land,021235,Catering - Wharton Park,Supplies and Services,324117,Provisions E324,03-Aug-2021,000007656613604,JR HOLLAND FOODSERVICE,5499,Catering costs - provisions,12.08,0.00,12.08
Children and Young Peoples Services,Head of Early Help Inclusion & Vulnerable Children.,088113,Seaham  0-19 Community Family Hub,Supplies and Services,324117,Provisions E324,03-Aug-2021,000007656613638,WILKO RETAIL LIMITED,5399,Catering costs - provisions,10.10,0.00,10.10
"Regeneration, Economy and Growth",Development and Housing,030771,Durham Advance Flexible Fund,Employees,040149,Recruitment Instruction and Training,03-Aug-2021,000007656613648,NORTHERN BEAR (SAFETY),8999,Training-all costs,132.00,22.00,110.00
"Regeneration, Economy and Growth",Development and Housing,030770,Durham Advance,Supplies and Services,304259,Equipment and Materials,03-Aug-2021,000007656613654,DISCLOSURE AND BARRING,9399,Equipment-purchase and rental,23.00,0.00,23.00
Children and Young Peoples Services,Head of Childrens Social Care,085342,16 Hickstead Rise (previously 9 Cedar Ave),Supplies and Services,338099,Services,03-Aug-2021,000007660221690,DEVON CLIFF HOL,7033,Other services,5.18,0.00,5.18
Children and Young Peoples Services,Head of Childrens Social Care,085342,16 Hickstead Rise (previously 9 Cedar Ave),Supplies and Services,338099,Services,03-Aug-2021,000007660221692,DEVON CLIFF HOL,7033,Other services,30.97,0.00,30.97
Children and Young Peoples Services,Head of Early Help Inclusion & Vulnerable Children.,085954,Walworth,Supplies and Services,384302,Miscellaneous Expenses,03-Aug-2021,000007660221734,AMZNMKTPLACE AMAZON.CO,5999,Activity expenses,21.17,3.53,17.64
Neighbourhoods and Climate Change,Environmental Services,011060,C&G - Hardwick Park Catering,Supplies and Services,324117,Provisions E324,03-Aug-2021,000007660221746,BATLEYS PERTH,5300,Catering costs - provisions,198.72,33.12,165.60
Neighbourhoods and Climate Change,Environmental Services,011060,C&G - Hardwick Park Catering,Supplies and Services,324117,Provisions E324,03-Aug-2021,000007660221746 - 1,BATLEYS PERTH,5300,Catering costs - provisions,105.85,,105.85
Neighbourhoods and Climate Change,Environmental Services,011060,C&G - Hardwick Park Catering,Supplies and Services,324117,Provisions E324,03-Aug-2021,000007660221748,BATLEYS PERTH,5300,Catering costs - provisions,98.16,16.36,81.80
Neighbourhoods and Climate Change,Environmental Services,011060,C&G - Hardwick Park Catering,Supplies and Services,324117,Provisions E324,03-Aug-2021,000007660221748 - 1,BATLEYS PERTH,5300,Catering costs - provisions,17.96,,17.96
"Regeneration, Economy and Growth",Corporate Property and Land,021234,Catering - Locomotion,Supplies and Services,324117,Provisions E324,03-Aug-2021,000007660221758,BATLEYS PERTH,5300,Catering costs - provisions,358.74,59.79,298.95
"Regeneration, Economy and Growth",Corporate Property and Land,021234,Catering - Locomotion,Supplies and Services,324117,Provisions E324,03-Aug-2021,000007660221758 - 1,BATLEYS PERTH,5300,Catering costs - provisions,139.00,,139.00
Children and Young Peoples Services,Head of Childrens Social Care,085351,Framwellgate Moor CU,Supplies and Services,304403,Equipment and Materials,03-Aug-2021,000007660221782,AMZNMKTPLACE AMAZON.CO,5999,Other consumables,41.96,7.00,34.96
"Regeneration, Economy and Growth",Development and Housing,030777,FLEX,Supplies and Services,328041,Clothing uniforms and laundry E328,03-Aug-2021,000007663855878,REGATTA,5651,Clothing uniforms and laundry,31.40,0.00,31.40
"Regeneration, Economy and Growth",Development and Housing,031576,B& B - Temp Accom,Supplies and Services,364320,Grants to Voluntary Organisations,03-Aug-2021,000007663856256,CROXDALE INN,5812,Accommodation assistance,850.00,0.00,850.00
"Regeneration, Economy and Growth",Development and Housing,031500,Housing Solutions - Core,Supplies and Services,352001,Conference Expenses,03-Aug-2021,000007663856340,H52STANLEY,7011,Conferencesseminars fees etc,-85.00,0.00,-85.00
Children and Young Peoples Services,Head of Childrens Social Care,085561,Social Work Academy,Supplies and Services,352001,Conference Expenses,04-Aug-2021,000007656613044,ELIA INTERNATIONAL LTD,7392,Conferencesseminars fees etc,8.90,0.00,8.90
Children and Young Peoples Services,Head of Early Help Inclusion & Vulnerable Children.,088109,Spennymoor & Shildon 0-19 Community Family Hub,Supplies and Services,304259,Equipment and Materials,04-Aug-2021,000007656613346,AMZN Mktp UK GS7427YV5,5942,Equipment-purchase and rental,11.65,1.94,9.71
Neighbourhoods and Climate Change,Environmental Services,031228,North Pennines - Fellfoot Forward,Supplies and Services,384999,Miscellaneous Expenses,04-Aug-2021,000007656613356,Amazon.co.uk EI2GM1XG5,5969,Other expenses,36.90,6.15,30.75
"Regeneration, Economy and Growth",Business Durham CL0850,030689,Inward Investment and Aftercare,Supplies and Services,336005,Advertising E336,04-Aug-2021,000007660221550,GOOGLE ADS6853017821,7311,Advertising other than for staff,142.79,0.00,142.79
"Regeneration, Economy and Growth",Business Durham CL0850,030689,Inward Investment and Aftercare,Supplies and Services,342222,Computers and Communications,04-Aug-2021,000007660221554,FASTHOSTS INTERNET,4816,Comp hardware purch-network servers,7.54,0.00,7.54
Children and Young Peoples Services,Head of Education and Skills,071801,Selby Cottage Childcare Centre,Supplies and Services,304403,Equipment and Materials,04-Aug-2021,000007660221572,AMZNMktplace,5999,Other consumables,23.00,3.84,19.16
Children and Young Peoples Services,Head of Education and Skills,071801,Selby Cottage Childcare Centre,Supplies and Services,304403,Equipment and Materials,04-Aug-2021,000007660221576,AMZNMktplace,5999,Other consumables,25.00,4.17,20.83
Children and Young Peoples Services,Head of Education and Skills,071801,Selby Cottage Childcare Centre,Supplies and Services,304403,Equipment and Materials,04-Aug-2021,000007660221578,AMZNMktplace,5999,Other consumables,10.06,1.68,8.38
Children and Young Peoples Services,Head of Education and Skills,071801,Selby Cottage Childcare Centre,Supplies and Services,324117,Provisions E324,04-Aug-2021,000007660221580,ASDA GROCERIES ONLINE,5411,Catering costs - provisions,105.70,0.00,105.70
Children and Young Peoples Services,Head of Education and Skills,071801,Selby Cottage Childcare Centre,Supplies and Services,324117,Provisions E324,04-Aug-2021,000007660221582,TESCO STORES 2278,5411,Catering costs - provisions,7.47,0.00,7.47
"Regeneration, Economy and Growth",Communications Management,060206,Comms & Marketing - City of Culture,Supplies and Services,342033,Computers and Communications,04-Aug-2021,000007660221584,"SOCIAL WALL - 1 SITE,",7372,Computer hardware,113.01,0.00,113.01
"Regeneration, Economy and Growth",Communications Management,060206,Comms & Marketing - City of Culture,Supplies and Services,372009,Subscriptions E372,04-Aug-2021,000007660221586,MIDLANDS PRINTING COMP,2741,Subscriptions 372009,466.79,0.00,466.79
Children and Young Peoples Services,Head of Childrens Social Care,085357,LAC Bespoke Placements,Supplies and Services,352001,Conference Expenses,04-Aug-2021,000007660221606,TOAST LETTINGS,7011,Conferencesseminars fees etc,216.00,0.00,216.00
Children and Young Peoples Services,Head of Childrens Social Care,085341,High Etherley Satelite Home,Supplies and Services,324117,Provisions E324,04-Aug-2021,000007660221608,TESCO STORES 6329,5411,Catering costs - provisions,26.90,0.00,26.90
Children and Young Peoples Services,Head of Childrens Social Care,085341,High Etherley Satelite Home,Supplies and Services,304259,Equipment and Materials,04-Aug-2021,000007660221610,JD SPORTS PLC,5941,Equipment-purchase and rental,28.00,0.00,28.00
"Regeneration, Economy and Growth",Development and Housing,030773,CLLD North,Supplies and Services,328041,Clothing uniforms and laundry E328,04-Aug-2021,000007660221612,WWW.LABEEBY.CO.UK,5691,Clothing uniforms and laundry,83.89,13.98,69.91
"Regeneration, Economy and Growth",Development and Housing,030773,CLLD North,Supplies and Services,304999,Equipment and Materials,04-Aug-2021,000007660221616,WILKINS AND STROUD,5131,Misc equipment tools and materials,155.00,25.83,129.17
Children and Young Peoples Services,Head of Education and Skills,075021,DurhamWorks Progression and Learning,Supplies and Services,364301,Grants to Voluntary Organisations,04-Aug-2021,000007660221620,AMZNMKTPLACE AMAZON.CO,5999,Hardship,-40.90,-6.82,-34.08
Children and Young Peoples Services,Head of Education and Skills,075021,DurhamWorks Progression and Learning,Supplies and Services,364301,Grants to Voluntary Organisations,04-Aug-2021,000007660221628,WWW.GONORTHEAST.CO.UK,4111,Hardship,-20.00,0.00,-20.00
"Regeneration, Economy and Growth",Culture Sport and Tourism,011215,Museums Heritage & Collections 011215,Supplies and Services,332047,Printing Stationery and Gen Off Exps,04-Aug-2021,000007660221634,KITE PACKAGING LIMITED,5399,Stationery,314.82,52.47,262.35
"Regeneration, Economy and Growth",Culture Sport and Tourism,011215,Museums Heritage & Collections 011215,Supplies and Services,332047,Printing Stationery and Gen Off Exps,04-Aug-2021,000007660221634 - 1,KITE PACKAGING LIMITED,5399,Stationery,19.16,,19.16
Children and Young Peoples Services,Head of Childrens Social Care,085342,16 Hickstead Rise (previously 9 Cedar Ave),Supplies and Services,348037,Subsistence E348,04-Aug-2021,000007660221638,The Boathouse,5812,Subsistence,7.40,0.00,7.40
"Regeneration, Economy and Growth",Culture Sport and Tourism,011265,Empire Theatre (Operations),Supplies and Services,324117,Provisions E324,04-Aug-2021,000007660221648,JR HOLLAND FOODSERVICE,5499,Catering costs - provisions,8.72,0.00,8.72
Children and Young Peoples Services,Head of Childrens Social Care,085331,New Lea Childrens Home,Supplies and Services,324117,Provisions E324,04-Aug-2021,000007660221650,ASDA SUPERSTORE,5411,Catering costs - provisions,20.50,0.00,20.50
Children and Young Peoples Services,Head of Childrens Social Care,085331,New Lea Childrens Home,Supplies and Services,348037,Subsistence E348,04-Aug-2021,000007660221652,MCDONALDS,5812,Subsistence,11.55,0.00,11.55
"Regeneration, Economy and Growth",Culture Sport and Tourism,054812,Gala Theatre - Catering etc,Premises,145009,Cleaning and Domestic Supplies,04-Aug-2021,000007660221666,ALLIANCE DISPOSABLES L,2842,Other cleaning and domestic costs,5.95,0.99,4.96
"Regeneration, Economy and Growth",Culture Sport and Tourism,054812,Gala Theatre - Catering etc,Premises,145009,Cleaning and Domestic Supplies,04-Aug-2021,000007660221668,ALLIANCE DISPOSABLES L,2842,Other cleaning and domestic costs,111.96,18.66,93.30
"Regeneration, Economy and Growth",Culture Sport and Tourism,054812,Gala Theatre - Catering etc,Premises,145009,Cleaning and Domestic Supplies,04-Aug-2021,000007660221668 - 1,ALLIANCE DISPOSABLES L,2842,Other cleaning and domestic costs,0.03,,0.03
"Regeneration, Economy and Growth",Culture Sport and Tourism,011217,Commercial Management 011217,Supplies and Services,312009,Newspapers books and periodicals E312,04-Aug-2021,000007660221678,ART OF BRILLIANCE LTD,5942,Newspapers books and periodicals,138.00,0.00,138.00
Children and Young Peoples Services,Head of Childrens Social Care,085358,Orchard House Sacriston Solo Home,Supplies and Services,324117,Provisions E324,04-Aug-2021,000007660221686,TESCO STORES 6334,5411,Catering costs - provisions,8.65,0.00,8.65
Children and Young Peoples Services,Head of Childrens Social Care,085342,16 Hickstead Rise (previously 9 Cedar Ave),Supplies and Services,312009,Newspapers books and periodicals E312,04-Aug-2021,000007660221688,WH SMITH TRAVEL LTD,5994,Newspapers books and periodicals,8.59,0.00,8.59
Children and Young Peoples Services,Head of Education and Skills,071732,Dean Bank Childcare,Supplies and Services,304403,Equipment and Materials,04-Aug-2021,000007660221704,AMZNMktplace,5999,Other consumables,24.40,0.00,24.40
"Regeneration, Economy and Growth",Culture Sport and Tourism,054967,Theatre - Technical Staffing,Supplies and Services,304221,Equipment and Materials,04-Aug-2021,000007660221722,B & Q 1343,5200,Direct materials,180.00,0.00,180.00
"Regeneration, Economy and Growth",Development and Housing,031623,Rough Sleeping,Transport,235057,Public Transport,04-Aug-2021,000007660221730,BLUE LINE TAXIS,4121,Staff travelling,22.40,0.00,22.40
Children and Young Peoples Services,Head of Early Help Inclusion & Vulnerable Children.,085965,Barnard,Transfer Payments,515002,Social Services Clients,04-Aug-2021,000007660221736,SPORTSDIRECT.COM,5691,Pocket money,39.99,6.67,33.32
Children and Young Peoples Services,Head of Early Help Inclusion & Vulnerable Children.,085954,Walworth,Supplies and Services,384302,Miscellaneous Expenses,04-Aug-2021,000007660221740,WWW.THEWORKS.CO.UK,5310,Activity expenses,9.99,0.00,9.99
Children and Young Peoples Services,Head of Early Help Inclusion & Vulnerable Children.,085965,Barnard,Transfer Payments,515002,Social Services Clients,04-Aug-2021,000007660221742,JD SPORTS INTERNET,5941,Pocket money,102.00,0.00,102.00
Neighbourhoods and Climate Change,Environmental Services,011060,C&G - Hardwick Park Catering,Premises,145009,Cleaning and Domestic Supplies,04-Aug-2021,000007660221750,ALLIANCE DISPOSABLES L,2842,Other cleaning and domestic costs,197.89,32.99,164.90
Children and Young Peoples Services,Head of Education and Skills,075021,DurhamWorks Progression and Learning,Transport,235057,Public Transport,04-Aug-2021,000007660221752,WWW.GONORTHEAST.CO.UK,4111,Staff travelling,5.30,0.00,5.30
Children and Young Peoples Services,Head of Education and Skills,075021,DurhamWorks Progression and Learning,Transport,235057,Public Transport,04-Aug-2021,000007660221754,WWW.GONORTHEAST.CO.UK,4111,Staff travelling,5.30,0.00,5.30
Children and Young Peoples Services,Head of Education and Skills,075021,DurhamWorks Progression and Learning,Transport,235057,Public Transport,04-Aug-2021,000007660221756,WWW.GONORTHEAST.CO.UK,4111,Staff travelling,5.30,0.00,5.30
"Regeneration, Economy and Growth",Corporate Property and Land,021234,Catering - Locomotion,Premises,145009,Cleaning and Domestic Supplies,04-Aug-2021,000007660221760,ALLIANCE DISPOSABLES L,2842,Other cleaning and domestic costs,40.86,6.81,34.05
"Regeneration, Economy and Growth",Corporate Property and Land,021234,Catering - Locomotion,Premises,145009,Cleaning and Domestic Supplies,04-Aug-2021,000007660221760 - 1,ALLIANCE DISPOSABLES L,2842,Other cleaning and domestic costs,0.03,,0.03
Children and Young Peoples Services,Head of Childrens Social Care,085357,LAC Bespoke Placements,Third Party Payments,440047,Other third party payments E440,04-Aug-2021,000007660221762,Hotel at Booking.com,7011,Emergency Bridging Placements,"1,923.75",0.00,1923.75
Children and Young Peoples Services,Head of Early Help Inclusion & Vulnerable Children.,088105,BA/BC/Crook 0-19 Community Family Hub,Supplies and Services,304259,Equipment and Materials,04-Aug-2021,000007660221764,AMZNMktplace,5999,Equipment-purchase and rental,36.86,6.14,30.72
Children and Young Peoples Services,Head of Childrens Social Care,085626,Families First Shildon/Chilton,Supplies and Services,304259,Equipment and Materials,04-Aug-2021,000007660221766,ADVONET,8398,Equipment-purchase and rental,141.80,0.00,141.80
Children and Young Peoples Services,Head of Childrens Social Care,085351,Framwellgate Moor CU,Supplies and Services,304403,Equipment and Materials,04-Aug-2021,000007660221784,AMZNMKTPLACE AMAZON.CO,5999,Other consumables,36.20,6.03,30.17
Children and Young Peoples Services,Head of Childrens Social Care,085351,Framwellgate Moor CU,Supplies and Services,304403,Equipment and Materials,04-Aug-2021,000007660221786,AMZNMKTPLACE AMAZON.CO,5999,Other consumables,38.00,6.34,31.66
Children and Young Peoples Services,Head of Childrens Social Care,085351,Framwellgate Moor CU,Supplies and Services,304403,Equipment and Materials,04-Aug-2021,000007660221788,AMZNMKTPLACE AMAZON.CO,5999,Other consumables,149.00,24.84,124.16
Children and Young Peoples Services,Head of Childrens Social Care,085351,Framwellgate Moor CU,Supplies and Services,324117,Provisions E324,04-Aug-2021,000007660221790,TESCO STORES 2371,5411,Catering costs - provisions,9.50,0.00,9.50
"Regeneration, Economy and Growth",Corporate Property and Land,030691,Catering - Durham Dales Centre,Premises,145009,Cleaning and Domestic Supplies,04-Aug-2021,000007660221798,ALLIANCE DISPOSABLES L,2842,Other cleaning and domestic costs,136.37,22.73,113.64
Adult and Health Services,Head of Adults,055643,Hawthorn House LD Respite Unit,Supplies and Services,324117,Provisions E324,04-Aug-2021,000007660221806,JR HOLLAND FOODSERVICE,5499,Catering costs - provisions,8.01,0.00,8.01
Children and Young Peoples Services,Head of Education and Skills,054640,Durham Learning Resources 054640,Supplies and Services,342033,Computers and Communications,04-Aug-2021,000007660221808,POSTERSAURUS LTD,7333,Computer hardware,29.46,0.00,29.46
Children and Young Peoples Services,Head of Early Help Inclusion & Vulnerable Children.,088102,Consett & Stanley 0-19 Targeted Family Support,Supplies and Services,304403,Equipment and Materials,04-Aug-2021,000007660221810,AMZNMktplace,5999,Other consumables,39.99,6.67,33.32
Children and Young Peoples Services,Head of Early Help Inclusion & Vulnerable Children.,088103,Consett & Stanley 0-19 Community Family Hub,Supplies and Services,384302,Miscellaneous Expenses,04-Aug-2021,000007660221812,ASDA SUPERSTORE,5411,Activity expenses,33.00,0.00,33.00
Children and Young Peoples Services,Head of Early Help Inclusion & Vulnerable Children.,088103,Consett & Stanley 0-19 Community Family Hub,Supplies and Services,324117,Provisions E324,04-Aug-2021,000007660221814,ASDA SUPERSTORE,5411,Catering costs - provisions,35.48,0.00,35.48
Children and Young Peoples Services,Head of Early Help Inclusion & Vulnerable Children.,088102,Consett & Stanley 0-19 Targeted Family Support,Supplies and Services,384302,Miscellaneous Expenses,04-Aug-2021,000007660221818,AMZNMktplace,5999,Activity expenses,38.99,6.50,32.49
Children and Young Peoples Services,Head of Early Help Inclusion & Vulnerable Children.,085957,Secure Management,Supplies and Services,384302,Miscellaneous Expenses,04-Aug-2021,000007660221826,Amazon MP3,5735,Activity expenses,0.79,0.13,0.66
Children and Young Peoples Services,Head of Early Help Inclusion & Vulnerable Children.,085957,Secure Management,Supplies and Services,384302,Miscellaneous Expenses,04-Aug-2021,000007660221828,Amazon MP3,5735,Activity expenses,10.78,1.80,8.98
Resources BK0010,Legal & Democratic Services,060125,Information Management,Supplies and Services,372009,Subscriptions E372,04-Aug-2021,000007660221852,WWW.ICO.ORG.UK,9399,Subscriptions 372009,"2,900.00",0.00,2900.00
Children and Young Peoples Services,Head of Childrens Social Care,085378,Young Persons Service Team 3,Supplies and Services,338045,Services,04-Aug-2021,000007660221854,HM PASSPORT OFFICE,9399,Legal expenses 338045,75.50,0.00,75.50
"Regeneration, Economy and Growth",Culture Sport and Tourism,011204,Festival and Events,Supplies and Services,324117,Provisions E324,04-Aug-2021,000007660221858,CO-OP GROUP 010465,5411,Catering costs - provisions,5.75,0.00,5.75
Children and Young Peoples Services,Head of Early Help Inclusion & Vulnerable Children.,085801,CDYJS - Support,Supplies and Services,332047,Printing Stationery and Gen Off Exps,04-Aug-2021,000007660221872,ODEON CINEMAS,7832,Stationery,30.00,0.00,30.00
"Regeneration, Economy and Growth",Culture Sport and Tourism,054233,Bishop Auckland Town Hall Library,Supplies and Services,324117,Provisions E324,04-Aug-2021,000007660221882,HERON FOODS,5411,Catering costs - provisions,8.77,0.00,8.77
Children and Young Peoples Services,Head of Childrens Social Care,085331,New Lea Childrens Home,Supplies and Services,348037,Subsistence E348,04-Aug-2021,000007660221886,COSTA COFFEE 43038640,5814,Subsistence,6.45,0.00,6.45
Resources BK0010,Procurement Sales & Business Services,065504,Business Support - Meadowfield,Supplies and Services,304403,Equipment and Materials,04-Aug-2021,000007660221888,AMZNMktplace,5999,Other consumables,45.70,0.00,45.70
Neighbourhoods and Climate Change,Partnerships & Community Engagement Div.,060472,Syrian Vulnerable Persons Scheme,Supplies and Services,308011,Furniture,04-Aug-2021,000007660221934,INTERIOR GOODS DIRECT,5719,Furniture repair and replacement,513.10,85.52,427.58
Neighbourhoods and Climate Change,Partnerships & Community Engagement Div.,060472,Syrian Vulnerable Persons Scheme,Supplies and Services,308011,Furniture,04-Aug-2021,000007660221938,INTERIOR GOODS DIRECT,5719,Furniture repair and replacement,54.41,9.07,45.34
Neighbourhoods and Climate Change,Partnerships & Community Engagement Div.,060472,Syrian Vulnerable Persons Scheme,Supplies and Services,308011,Furniture,04-Aug-2021,000007660221942,SCREWFIX DIRECT,5211,Furniture repair and replacement,88.90,14.82,74.08
Children and Young Peoples Services,Head of Childrens Social Care,085341,High Etherley Satelite Home,Supplies and Services,328041,Clothing uniforms and laundry E328,04-Aug-2021,000007663856090,PRIMARK 670 GATESHEAD,5651,Clothing uniforms and laundry,15.50,0.00,15.50
Children and Young Peoples Services,Head of Childrens Social Care,085341,High Etherley Satelite Home,Supplies and Services,324117,Provisions E324,04-Aug-2021,000007663856350,Kandy Kaye,5441,Catering costs - provisions,11.80,0.00,11.80
Children and Young Peoples Services,Head of Childrens Social Care,085342,16 Hickstead Rise (previously 9 Cedar Ave),Supplies and Services,324117,Provisions E324,04-Aug-2021,000009655423747,ESSENTIALS,5499,Catering costs - provisions,8.60,0.00,8.60
Children and Young Peoples Services,Head of Childrens Social Care,085342,16 Hickstead Rise (previously 9 Cedar Ave),Supplies and Services,338099,Services,04-Aug-2021,000009655423755,DEVON CLIFF HOL,7033,Other services,6.00,0.00,6.00
Children and Young Peoples Services,Head of Childrens Social Care,085342,16 Hickstead Rise (previously 9 Cedar Ave),Supplies and Services,338099,Services,04-Aug-2021,000009655423761,DEVON CLIFF HOL,7033,Other services,14.45,0.00,14.45
Children and Young Peoples Services,Head of Childrens Social Care,085342,16 Hickstead Rise (previously 9 Cedar Ave),Supplies and Services,338099,Services,04-Aug-2021,000009655424601,DEVON CLIFF HOL,7033,Other services,7.47,0.00,7.47
Children and Young Peoples Services,Head of Childrens Social Care,085342,16 Hickstead Rise (previously 9 Cedar Ave),Supplies and Services,338099,Services,04-Aug-2021,000009655424607,DEVON CLIFF HOL,7033,Other services,9.27,0.00,9.27
Children and Young Peoples Services,Head of Childrens Social Care,085342,16 Hickstead Rise (previously 9 Cedar Ave),Supplies and Services,338099,Services,04-Aug-2021,000009655424611,DEVON CLIFF HOL,7033,Other services,12.00,0.00,12.00
"Regeneration, Economy and Growth",Business Durham CL0850,030689,Inward Investment and Aftercare,Supplies and Services,342033,Computers and Communications,05-Aug-2021,000007660221556,AdRoll_EMEA,7372,Computer hardware,44.36,0.00,44.36
"Regeneration, Economy and Growth",Business Durham CL0850,030689,Inward Investment and Aftercare,Supplies and Services,342033,Computers and Communications,05-Aug-2021,000007660221558,AdRoll_EMEA,7372,Computer hardware,1.22,0.00,1.22
Resources BK0010,Digital and Customer Services,065487,ICT Telephony Recharges,Supplies and Services,304403,Equipment and Materials,05-Aug-2021,000007660221590,AMZNMktplace,5999,Other consumables,194.40,32.40,162.00
Resources BK0010,Digital and Customer Services,065487,ICT Telephony Recharges,Supplies and Services,304403,Equipment and Materials,05-Aug-2021,000007660221590 - 1,AMZNMktplace,5999,Other consumables,0.30,,0.30
"Regeneration, Economy and Growth",Communications Management,060206,Comms & Marketing - City of Culture,Supplies and Services,342033,Computers and Communications,05-Aug-2021,000007660221592,"SOCIAL WALL - 1 SITE,",7372,Computer hardware,3.11,0.00,3.11
"Regeneration, Economy and Growth",Culture Sport and Tourism,054967,Theatre - Technical Staffing,Supplies and Services,304403,Equipment and Materials,05-Aug-2021,000007660221716,AMZNMktplace,5999,Other consumables,34.99,0.00,34.99
"Regeneration, Economy and Growth",Culture Sport and Tourism,054967,Theatre - Technical Staffing,Supplies and Services,304403,Equipment and Materials,05-Aug-2021,000007660221718,AMZNMktplace,5999,Other consumables,12.28,0.00,12.28
Children and Young Peoples Services,Head of Early Help Inclusion & Vulnerable Children.,085954,Walworth,Supplies and Services,384302,Miscellaneous Expenses,05-Aug-2021,000007660221738,AMZNMktplace,5999,Activity expenses,13.98,2.34,11.64
Children and Young Peoples Services,Head of Early Help Inclusion & Vulnerable Children.,088102,Consett & Stanley 0-19 Targeted Family Support,Supplies and Services,384302,Miscellaneous Expenses,05-Aug-2021,000007660221816,Amazon.co.uk LW1M44IO5,5969,Activity expenses,7.92,1.32,6.60
Children and Young Peoples Services,Head of Early Help Inclusion & Vulnerable Children.,088102,Consett & Stanley 0-19 Targeted Family Support,Supplies and Services,384302,Miscellaneous Expenses,05-Aug-2021,000007660221816 - 1,Amazon.co.uk LW1M44IO5,5969,Activity expenses,0.08,,0.08
Adult and Health Services,Head of Adults,055310,Positive Journeys (Tudhoe),Supplies and Services,312009,Newspapers books and periodicals E312,05-Aug-2021,000007660221896,AMZN Mktp UK U04D95AC5,5942,Newspapers books and periodicals,9.76,1.63,8.13
Adult and Health Services,Head of Adults,055310,Positive Journeys (Tudhoe),Supplies and Services,304403,Equipment and Materials,05-Aug-2021,000007660221898,AMZNMktplace,5999,Other consumables,50.04,8.35,41.69
Adult and Health Services,Head of Adults,055310,Positive Journeys (Tudhoe),Supplies and Services,304403,Equipment and Materials,05-Aug-2021,000007660221900,AMZNMktplace,5999,Other consumables,19.03,3.17,15.86
Children and Young Peoples Services,Head of Education and Skills,071801,Selby Cottage Childcare Centre,Supplies and Services,324117,Provisions E324,05-Aug-2021,000007663855756,TESCO STORES 2278,5411,Catering costs - provisions,31.19,0.00,31.19
Children and Young Peoples Services,Head of Education and Skills,071801,Selby Cottage Childcare Centre,Supplies and Services,324117,Provisions E324,05-Aug-2021,000007663855764,TESCO STORES 2278,5411,Catering costs - provisions,2.40,0.00,2.40
Resources BK0010,Digital and Customer Services,065432,Web Development Group,Supplies and Services,342053,Computers and Communications,05-Aug-2021,000007663855790,WORDFENCE.COM,5045,Computer software,"1,338.22",0.00,1338.22
Children and Young Peoples Services,Head of Childrens Social Care,085341,High Etherley Satelite Home,Supplies and Services,384237,Miscellaneous Expenses,05-Aug-2021,000007663855804,4MOTION DARLINGTON,7999,Recreational exps outings parties,6.00,0.00,6.00
"Regeneration, Economy and Growth",Development and Housing,030773,CLLD North,Supplies and Services,304403,Equipment and Materials,05-Aug-2021,000007663855810,AMZNMktplace,5999,Other consumables,60.94,0.00,60.94
"Regeneration, Economy and Growth",Development and Housing,030773,CLLD North,Supplies and Services,304259,Equipment and Materials,05-Aug-2021,000007663855814,GEN REGISTER OFFICE,9399,Equipment-purchase and rental,14.00,0.00,14.00
Children and Young Peoples Services,Head of Childrens Social Care,085342,16 Hickstead Rise (previously 9 Cedar Ave),Transport,235057,Public Transport,05-Aug-2021,000007663855818,Exeter City Council,7523,Staff travelling,9.90,0.00,9.90
Children and Young Peoples Services,Head of Childrens Social Care,085342,16 Hickstead Rise (previously 9 Cedar Ave),Supplies and Services,348037,Subsistence E348,05-Aug-2021,000007663855820,THE SADDLERS ARMS,5812,Subsistence,47.55,0.00,47.55
"Regeneration, Economy and Growth",Development and Housing,030776,LINKCD Flexible Fund,Employees,040149,Recruitment Instruction and Training,05-Aug-2021,000007663855844,SUNDERLAND LGV DRIVER,8220,Training-all costs,400.00,0.00,400.00
"Regeneration, Economy and Growth",Culture Sport and Tourism,011265,Empire Theatre (Operations),Supplies and Services,324117,Provisions E324,05-Aug-2021,000007663855850,JR HOLLAND FOODSERVICE,5499,Catering costs - provisions,29.00,0.00,29.00
Children and Young Peoples Services,Head of Childrens Social Care,085331,New Lea Childrens Home,Supplies and Services,304999,Equipment and Materials,05-Aug-2021,000007663855858,HOME BARGAINS,5251,Misc equipment tools and materials,10.93,0.00,10.93
Children and Young Peoples Services,Head of Childrens Social Care,085380,Operations Manager LAC Resources,Supplies and Services,324117,Provisions E324,05-Aug-2021,000007663855872,ASDA GEORGE COM LEEDS,5411,Catering costs - provisions,111.94,0.00,111.94
Children and Young Peoples Services,Head of Childrens Social Care,085380,Operations Manager LAC Resources,Supplies and Services,384999,Miscellaneous Expenses,05-Aug-2021,000007663855874,Amazon.co.uk PZ21I4XW5,5969,Other expenses,24.29,4.05,20.24
Children and Young Peoples Services,Head of Early Help Inclusion & Vulnerable Children.,085957,Secure Management,Supplies and Services,340001,Postages E340,05-Aug-2021,000007663855898,TSB Returns Ltd,4215,Postages,2.50,0.00,2.50
Children and Young Peoples Services,Head of Early Help Inclusion & Vulnerable Children.,085952,Secure Education,Supplies and Services,384999,Miscellaneous Expenses,05-Aug-2021,000007663855904,Amazon.co.uk O49EB1295,5969,Other expenses,27.82,0.00,27.82
"Regeneration, Economy and Growth",Corporate Property and Land,021242,Catering - County Hall,Supplies and Services,328041,Clothing uniforms and laundry E328,05-Aug-2021,000007663855910,T K MAXX,5331,Clothing uniforms and laundry,6.99,0.00,6.99
Resources BK0010,Procurement Sales & Business Services,065503,Business Support - Spectrum,Supplies and Services,304259,Equipment and Materials,05-Aug-2021,000007663855920,HM PASSPORT OFFICE,9399,Equipment-purchase and rental,49.00,0.00,49.00
Children and Young Peoples Services,Head of Early Help Inclusion & Vulnerable Children.,074000,National Supporting Families Programme,Transfer Payments,525033,Other,05-Aug-2021,000007663855926,FRANKS THE FLOORING ST,5713,Grants to individuals,250.00,0.00,250.00
Children and Young Peoples Services,Head of Childrens Social Care,085517,Supporting Solutions Service (Edge of Care),Supplies and Services,384871,Miscellaneous Expenses,05-Aug-2021,000007663855962,WWW.INFINITEAIR.CO.UK,7991,Training-other activities,37.90,0.00,37.90
Children and Young Peoples Services,Head of Early Help Inclusion & Vulnerable Children.,085954,Walworth,Supplies and Services,384302,Miscellaneous Expenses,05-Aug-2021,000007663855994,AMZNMktplace,5999,Activity expenses,12.01,0.00,12.01
Children and Young Peoples Services,Head of Early Help Inclusion & Vulnerable Children.,085962,Aycliffe Secure - Durham,Supplies and Services,324117,Provisions E324,05-Aug-2021,000007663855998,TESCO STORES 6329,5411,Catering costs - provisions,45.93,0.00,45.93
Children and Young Peoples Services,Head of Early Help Inclusion & Vulnerable Children.,085956,Lumley,Transfer Payments,515002,Social Services Clients,05-Aug-2021,000007663856000,PRETTYLITTLETHING.COM,5691,Pocket money,-15.00,0.00,-15.00
Children and Young Peoples Services,Head of Early Help Inclusion & Vulnerable Children.,085956,Lumley,Transfer Payments,515002,Social Services Clients,05-Aug-2021,000007663856004,SP ISAWITFIRST.COM,5691,Pocket money,-6.00,0.00,-6.00
Resources BK0010,Procurement Sales & Business Services,065503,Business Support - Spectrum,Supplies and Services,372009,Subscriptions E372,05-Aug-2021,000007663856022,WP-HARLOW PRINTING,2741,Subscriptions 372009,185.95,0.00,185.95
Resources BK0010,Procurement Sales & Business Services,065503,Business Support - Spectrum,Supplies and Services,372009,Subscriptions E372,05-Aug-2021,000007663856028,WP-HARLOW PRINTING,2741,Subscriptions 372009,368.34,0.00,368.34
Neighbourhoods and Climate Change,Environmental Services,011060,C&G - Hardwick Park Catering,Supplies and Services,324117,Provisions E324,05-Aug-2021,000007663856038,JR HOLLAND FOODSERVICE,5499,Catering costs - provisions,123.83,0.00,123.83
Children and Young Peoples Services,Head of Education and Skills,075021,DurhamWorks Progression and Learning,Transport,235057,Public Transport,05-Aug-2021,000007663856044,WWW.GONORTHEAST.CO.UK,4111,Staff travelling,20.00,0.00,20.00
Children and Young Peoples Services,Head of Education and Skills,075021,DurhamWorks Progression and Learning,Supplies and Services,304259,Equipment and Materials,05-Aug-2021,000007663856046,DARLINGTON BC INTERNET,9399,Equipment-purchase and rental,11.00,0.00,11.00
"Regeneration, Economy and Growth",Corporate Property and Land,021234,Catering - Locomotion,Supplies and Services,324117,Provisions E324,05-Aug-2021,000007663856056,JR HOLLAND FOODSERVICE,5499,Catering costs - provisions,4.05,0.00,4.05
"Regeneration, Economy and Growth",Corporate Property and Land,021234,Catering - Locomotion,Supplies and Services,324117,Provisions E324,05-Aug-2021,000007663856058,JR HOLLAND FOODSERVICE,5499,Catering costs - provisions,58.37,0.00,58.37
"Regeneration, Economy and Growth",Development and Housing,031500,Housing Solutions - Core,Supplies and Services,352001,Conference Expenses,05-Aug-2021,000007663856070,H52STANLEY,7011,Conferencesseminars fees etc,155.00,0.00,155.00
"Regeneration, Economy and Growth",Development and Housing,031500,Housing Solutions - Core,Supplies and Services,348037,Subsistence E348,05-Aug-2021,000007663856072,Rustica,5812,Subsistence,15.90,0.00,15.90
Children and Young Peoples Services,Head of Early Help Inclusion & Vulnerable Children.,088104,BA/BC/Crook 0-19 Targeted Family Support,Supplies and Services,304259,Equipment and Materials,05-Aug-2021,000007663856086,AMZNMktplace,5999,Equipment-purchase and rental,24.99,4.17,20.82
Adult and Health Services,Head of Adults,055643,Hawthorn House LD Respite Unit,Supplies and Services,304403,Equipment and Materials,05-Aug-2021,000007663856100,AMZNMktplace,5999,Other consumables,1.98,0.33,1.65
Adult and Health Services,Head of Adults,055643,Hawthorn House LD Respite Unit,Supplies and Services,304403,Equipment and Materials,05-Aug-2021,000007663856102,AMZNMktplace,5999,Other consumables,11.55,1.95,9.60
Adult and Health Services,Head of Adults,055643,Hawthorn House LD Respite Unit,Supplies and Services,384999,Miscellaneous Expenses,05-Aug-2021,000007663856106,Amazon.co.uk 4T33V42V5,5969,Other expenses,4.90,0.82,4.08
Children and Young Peoples Services,Head of Childrens Social Care,085342,16 Hickstead Rise (previously 9 Cedar Ave),Supplies and Services,324117,Provisions E324,05-Aug-2021,000007663856112,WWW.ICELAND.CO.UK,5411,Catering costs - provisions,174.67,0.00,174.67
Children and Young Peoples Services,Head of Childrens Social Care,085342,16 Hickstead Rise (previously 9 Cedar Ave),Supplies and Services,324117,Provisions E324,05-Aug-2021,000007663856118,WWW.ICELAND.CO.UK,5411,Catering costs - provisions,-7.50,0.00,-7.50
Children and Young Peoples Services,Head of Childrens Social Care,085342,16 Hickstead Rise (previously 9 Cedar Ave),Supplies and Services,308011,Furniture,05-Aug-2021,000007663856134,Futon Company,5712,Furniture repair and replacement,9.00,0.00,9.00
Children and Young Peoples Services,Head of Childrens Social Care,085342,16 Hickstead Rise (previously 9 Cedar Ave),Supplies and Services,332047,Printing Stationery and Gen Off Exps,05-Aug-2021,000007663856136,Vue Cinemas,7832,Stationery,10.39,0.00,10.39
Children and Young Peoples Services,Head of Childrens Social Care,085342,16 Hickstead Rise (previously 9 Cedar Ave),Supplies and Services,332047,Printing Stationery and Gen Off Exps,05-Aug-2021,000007663856140,Vue Entertainment Ltd,7832,Stationery,20.97,0.00,20.97
Children and Young Peoples Services,Head of Education and Skills,078554,Adult Skills-Main,Supplies and Services,384999,Miscellaneous Expenses,05-Aug-2021,000007663856148,PAYPAL CORPORATEGE,5945,Other expenses,200.00,0.00,200.00
Children and Young Peoples Services,Head of Childrens Social Care,085351,Framwellgate Moor CU,Supplies and Services,304999,Equipment and Materials,05-Aug-2021,000007663856156,GREENHAM TRADING LTD,5072,Misc equipment tools and materials,32.82,0.00,32.82
Resources BK0010,Procurement Sales & Business Services,065503,Business Support - Spectrum,Transport,235057,Public Transport,05-Aug-2021,000007663856186,WWW.GONORTHEAST.CO.UK,4111,Staff travelling,20.00,0.00,20.00
Resources BK0010,Procurement Sales & Business Services,065503,Business Support - Spectrum,Transport,235057,Public Transport,05-Aug-2021,000007663856188,WWW.GONORTHEAST.CO.UK,4111,Staff travelling,20.00,0.00,20.00
Resources BK0010,Procurement Sales & Business Services,065503,Business Support - Spectrum,Transport,235057,Public Transport,05-Aug-2021,000007663856190,WWW.GONORTHEAST.CO.UK,4111,Staff travelling,5.30,0.00,5.30
Resources BK0010,Procurement Sales & Business Services,065503,Business Support - Spectrum,Transport,235057,Public Transport,05-Aug-2021,000007663856194,WWW.GONORTHEAST.CO.UK,4111,Staff travelling,5.30,0.00,5.30
Resources BK0010,Procurement Sales & Business Services,065503,Business Support - Spectrum,Transport,235057,Public Transport,05-Aug-2021,000007663856196,WWW.GONORTHEAST.CO.UK,4111,Staff travelling,5.30,0.00,5.30
Resources BK0010,Procurement Sales & Business Services,065503,Business Support - Spectrum,Transport,235057,Public Transport,05-Aug-2021,000007663856198,WWW.GONORTHEAST.CO.UK,4111,Staff travelling,5.30,0.00,5.30
"Regeneration, Economy and Growth",Development and Housing,031578,Client Travel Reimbursements,Transport,235073,Public Transport,05-Aug-2021,000007663856200,BLUE LINE TAXIS,4121,Travel-clients/students/children,33.70,0.00,33.70
Children and Young Peoples Services,Head of Education and Skills,078100,Curric and Professional Development 078100,Supplies and Services,352001,Conference Expenses,05-Aug-2021,000007663856210,WESTMINSTER FORUM PROJ,7392,Conferencesseminars fees etc,228.00,0.00,228.00
Children and Young Peoples Services,Head of Early Help Inclusion & Vulnerable Children.,088102,Consett & Stanley 0-19 Targeted Family Support,Supplies and Services,384302,Miscellaneous Expenses,05-Aug-2021,000007663856214,AMZNMktplace,5999,Activity expenses,16.80,2.80,14.00
Children and Young Peoples Services,Head of Early Help Inclusion & Vulnerable Children.,088102,Consett & Stanley 0-19 Targeted Family Support,Supplies and Services,384302,Miscellaneous Expenses,05-Aug-2021,000007663856214 - 1,AMZNMktplace,5999,Activity expenses,0.09,,0.09
Children and Young Peoples Services,Head of Early Help Inclusion & Vulnerable Children.,088102,Consett & Stanley 0-19 Targeted Family Support,Supplies and Services,384302,Miscellaneous Expenses,05-Aug-2021,000007663856218,AMZNMktplace,5999,Activity expenses,3.27,0.55,2.72
Children and Young Peoples Services,Head of Early Help Inclusion & Vulnerable Children.,085957,Secure Management,Supplies and Services,384302,Miscellaneous Expenses,05-Aug-2021,000007663856238,SHOWCASE TEESSIDE W,7832,Activity expenses,27.90,0.00,27.90
Children and Young Peoples Services,Head of Early Help Inclusion & Vulnerable Children.,085957,Secure Management,Supplies and Services,312009,Newspapers books and periodicals E312,05-Aug-2021,000007663856240,MAGSUBCRIPTIONS COM,5968,Newspapers books and periodicals,391.00,0.00,391.00
"Regeneration, Economy and Growth",Culture Sport and Tourism,054235,Bishop Auckland Town Hall Cafe,Supplies and Services,324117,Provisions E324,05-Aug-2021,000007663856242,JR HOLLAND FOODSERVICE,5499,Catering costs - provisions,236.07,0.00,236.07
"Regeneration, Economy and Growth",Culture Sport and Tourism,011204,Festival and Events,Supplies and Services,324117,Provisions E324,05-Aug-2021,000007663856244,TESCO STORES 2371,5411,Catering costs - provisions,92.69,0.00,92.69
"Regeneration, Economy and Growth",Development and Housing,031576,B& B - Temp Accom,Supplies and Services,364320,Grants to Voluntary Organisations,05-Aug-2021,000007663856260,CROXDALE INN,5812,Accommodation assistance,200.00,0.00,200.00
"Regeneration, Economy and Growth",Development and Housing,031576,B& B - Temp Accom,Supplies and Services,364320,Grants to Voluntary Organisations,05-Aug-2021,000007663856264,CROXDALE INN,5812,Accommodation assistance,90.00,0.00,90.00
Children and Young Peoples Services,Head of Childrens Social Care,085333,Coxhoe Satelite Home,Supplies and Services,324117,Provisions E324,05-Aug-2021,000007663856270,TESCO STORES 2916,5411,Catering costs - provisions,61.61,0.00,61.61
Children and Young Peoples Services,Head of Education and Skills,071802,Louisa Cent Nursery,Supplies and Services,324117,Provisions E324,05-Aug-2021,000007663856276,ASDA SUPERSTORE,5411,Catering costs - provisions,10.78,0.00,10.78
Neighbourhoods and Climate Change,Environmental Services,031245,North Pennines - High Helbeck,Supplies and Services,324117,Provisions E324,05-Aug-2021,000007663856314,TESCO STORES 6329,5411,Catering costs - provisions,140.48,0.00,140.48
"Regeneration, Economy and Growth",Culture Sport and Tourism,054233,Bishop Auckland Town Hall Library,Supplies and Services,324117,Provisions E324,05-Aug-2021,000007663856320,HERON FOODS,5411,Catering costs - provisions,10.35,0.00,10.35
Adult and Health Services,Head of Adults,055310,Positive Journeys (Tudhoe),Supplies and Services,304403,Equipment and Materials,05-Aug-2021,000007663856332,AMZNMktplace,5999,Other consumables,6.99,1.17,5.82
"Regeneration, Economy and Growth",Development and Housing,031500,Housing Solutions - Core,Supplies and Services,352001,Conference Expenses,05-Aug-2021,000007663856336,TRAVELODGE,3615,Conferencesseminars fees etc,456.46,0.00,456.46
Adult and Health Services,Head of Adults,055309,Peterlee Pathways,Supplies and Services,324117,Provisions E324,05-Aug-2021,000007663856356,ASDA SUPERSTORE 4987,5411,Catering costs - provisions,39.00,0.00,39.00
"Regeneration, Economy and Growth",Corporate Property and Land,030691,Catering - Durham Dales Centre,Supplies and Services,324117,Provisions E324,05-Aug-2021,000007663856378,SumUp Mad Hatter Bak,5811,Catering costs - provisions,67.00,0.00,67.00
Children and Young Peoples Services,Head of Childrens Social Care,085380,Operations Manager LAC Resources,Supplies and Services,364359,Grants to Voluntary Organisations,05-Aug-2021,000007663856384,HTTPS://WWW.ADVENTUREV,8351,Childcare Costs,147.50,0.00,147.50
Children and Young Peoples Services,Head of Childrens Social Care,085380,Operations Manager LAC Resources,Supplies and Services,364359,Grants to Voluntary Organisations,05-Aug-2021,000007663856386,HTTPS://WWW.ADVENTUREV,8351,Childcare Costs,88.50,0.00,88.50
Adult and Health Services,Public Health CC0450,057052,County Durham Together,Supplies and Services,304403,Equipment and Materials,05-Aug-2021,000009655423639,AMZNMKTPLACE AMAZON.CO,5999,Other consumables,65.10,10.85,54.25
Children and Young Peoples Services,Head of Childrens Social Care,085341,High Etherley Satelite Home,Supplies and Services,348037,Subsistence E348,05-Aug-2021,000009655423677,MCDONALD`S,5812,Subsistence,8.68,0.00,8.68
Children and Young Peoples Services,Head of Childrens Social Care,085342,16 Hickstead Rise (previously 9 Cedar Ave),Supplies and Services,348037,Subsistence E348,05-Aug-2021,000009655423737,CAFFE NERO EXETER QUEE,5812,Subsistence,10.35,0.00,10.35
Children and Young Peoples Services,Head of Childrens Social Care,085342,16 Hickstead Rise (previously 9 Cedar Ave),Supplies and Services,348037,Subsistence E348,05-Aug-2021,000009655423753,MCDONALDS,5814,Subsistence,13.56,0.00,13.56
Children and Young Peoples Services,Head of Childrens Social Care,085342,16 Hickstead Rise (previously 9 Cedar Ave),Supplies and Services,324117,Provisions E324,05-Aug-2021,000009655423777,ESSENTIALS,5499,Catering costs - provisions,12.58,0.00,12.58
Neighbourhoods and Climate Change,Environmental Services,010367,C&G - South Grounds Maintenance,Supplies and Services,304221,Equipment and Materials,05-Aug-2021,000009655424079,B & Q 1332,5200,Direct materials,44.00,0.00,44.00
"Regeneration, Economy and Growth",Culture Sport and Tourism,054967,Theatre - Technical Staffing,Supplies and Services,304403,Equipment and Materials,05-Aug-2021,000009655424205,AMZNMKTPLACE AMAZON.CO,5999,Other consumables,34.36,0.00,34.36
Children and Young Peoples Services,Head of Early Help Inclusion & Vulnerable Children.,085962,Aycliffe Secure - Durham,Supplies and Services,308013,Furniture,05-Aug-2021,000009655424289,Dunelm,5712,Curtains and carpets,-175.00,0.00,-175.00
Neighbourhoods and Climate Change,Environmental Services,011060,C&G - Hardwick Park Catering,Supplies and Services,324117,Provisions E324,05-Aug-2021,000009655424329,BATLEYS PERTH,5300,Catering costs - provisions,790.20,131.70,658.50
Neighbourhoods and Climate Change,Environmental Services,011060,C&G - Hardwick Park Catering,Supplies and Services,324117,Provisions E324,05-Aug-2021,000009655424329 - 1,BATLEYS PERTH,5300,Catering costs - provisions,269.06,,269.06
Children and Young Peoples Services,Head of Education and Skills,075021,DurhamWorks Progression and Learning,Supplies and Services,304259,Equipment and Materials,05-Aug-2021,000009655424363,WWW.DURHAM.GOV.UK,9399,Equipment-purchase and rental,11.00,0.00,11.00
Children and Young Peoples Services,Head of Education and Skills,075021,DurhamWorks Progression and Learning,Supplies and Services,304259,Equipment and Materials,05-Aug-2021,000009655424369,WWW.DURHAM.GOV.UK,9399,Equipment-purchase and rental,11.00,0.00,11.00
"Regeneration, Economy and Growth",Corporate Property and Land,030691,Catering - Durham Dales Centre,Supplies and Services,324117,Provisions E324,05-Aug-2021,000009655424677,BATLEYS PERTH,5300,Catering costs - provisions,126.96,21.16,105.80
"Regeneration, Economy and Growth",Corporate Property and Land,030691,Catering - Durham Dales Centre,Supplies and Services,324117,Provisions E324,05-Aug-2021,000009655424677 - 1,BATLEYS PERTH,5300,Catering costs - provisions,144.42,,144.42
Children and Young Peoples Services,Head of Childrens Social Care,085334,West Rainton Satelite Home,Supplies and Services,304221,Equipment and Materials,05-Aug-2021,000009655424763,B & Q 1343,5200,Direct materials,109.00,0.00,109.00
Children and Young Peoples Services,Head of Childrens Social Care,085334,West Rainton Satelite Home,Supplies and Services,308011,Furniture,05-Aug-2021,000009655424775,The Range,5719,Furniture repair and replacement,47.56,0.00,47.56
Neighbourhoods and Climate Change,Environmental Services,010301,C&G - North Grounds Maintenance,Supplies and Services,304999,Equipment and Materials,05-Aug-2021,000009655424787,TURFCARE SPECIALISTS L,780,Misc equipment tools and materials,38.40,0.00,38.40
Children and Young Peoples Services,Head of Early Help Inclusion & Vulnerable Children.,085957,Secure Management,Premises,108099,Service Repairs and Maintenance,05-Aug-2021,000009655424817,SCREWFIX DIRECT,5211,General repairs 108099,21.45,3.58,17.87
Children and Young Peoples Services,Head of Early Help Inclusion & Vulnerable Children.,085957,Secure Management,Premises,108099,Service Repairs and Maintenance,05-Aug-2021,000009655424819,SCREWFIX DIRECT,5211,General repairs 108099,27.98,4.66,23.32
Children and Young Peoples Services,Head of Early Help Inclusion & Vulnerable Children.,085965,Barnard,Supplies and Services,384302,Miscellaneous Expenses,05-Aug-2021,000009655424823,AMZNMKTPLACE AMAZON.CO,5999,Activity expenses,19.19,0.00,19.19
"Regeneration, Economy and Growth",Culture Sport and Tourism,011204,Festival and Events,Supplies and Services,348037,Subsistence E348,05-Aug-2021,000009655424887,GREGGS,5812,Subsistence,43.23,0.00,43.23
Children and Young Peoples Services,Head of Early Help Inclusion & Vulnerable Children.,088107,Ferryhill & Newton Aycliffe 0-19 Community Family Hub,Supplies and Services,304403,Equipment and Materials,05-Aug-2021,000009655425063,AMZNMKTPLACE AMAZON.CO,5999,Other consumables,5.00,0.83,4.17
"Regeneration, Economy and Growth",Corporate Property and Land,021235,Catering - Wharton Park,Supplies and Services,324117,Provisions E324,05-Aug-2021,000009655425241,BATLEYS PERTH,5300,Catering costs - provisions,169.92,28.32,141.60
"Regeneration, Economy and Growth",Corporate Property and Land,021235,Catering - Wharton Park,Supplies and Services,324117,Provisions E324,05-Aug-2021,000009655425241 - 1,BATLEYS PERTH,5300,Catering costs - provisions,0.04,,0.04
Children and Young Peoples Services,Head of Childrens Social Care,085380,Operations Manager LAC Resources,Employees,040149,Recruitment Instruction and Training,05-Aug-2021,000009655425333,Event Durham,8220,Training-all costs,75.00,0.00,75.00
Children and Young Peoples Services,Head of Education and Skills,071801,Selby Cottage Childcare Centre,Supplies and Services,384999,Miscellaneous Expenses,06-Aug-2021,000007663855768,Amazon.co.uk 7I17E7MU5,5969,Other expenses,11.44,1.91,9.53
Resources BK0010,Digital and Customer Services,065432,Web Development Group,Supplies and Services,342053,Computers and Communications,06-Aug-2021,000007663855794,WORDFENCE.COM,5045,Computer software,36.80,0.00,36.80
Adult and Health Services,Head of Adults,055643,Hawthorn House LD Respite Unit,Supplies and Services,304403,Equipment and Materials,06-Aug-2021,000007663856108,AMZNMktplace,5999,Other consumables,23.98,4.00,19.98
Neighbourhoods and Climate Change,Community Protection,010809,Community Protection Management,Supplies and Services,384999,Miscellaneous Expenses,06-Aug-2021,000007663856250,Amazon.co.uk EY9159QX5,5969,Other expenses,509.94,84.99,424.95
Neighbourhoods and Climate Change,Community Protection,010809,Community Protection Management,Supplies and Services,384999,Miscellaneous Expenses,06-Aug-2021,000007663856254,Amazon.co.uk LD8VR5535,5969,Other expenses,679.92,113.32,566.60
"Regeneration, Economy and Growth",Business Durham CL0850,030689,Inward Investment and Aftercare,Supplies and Services,342033,Computers and Communications,06-Aug-2021,000009655423573,STK Shutterstock,7333,Computer hardware,19.00,0.00,19.00
Children and Young Peoples Services,Head of Education and Skills,071801,Selby Cottage Childcare Centre,Supplies and Services,348037,Subsistence E348,06-Aug-2021,000009655423589,BLUE MARLIN,5814,Subsistence,47.60,0.00,47.60
Children and Young Peoples Services,Head of Education and Skills,071801,Selby Cottage Childcare Centre,Supplies and Services,324117,Provisions E324,06-Aug-2021,000009655423593,ASDA GROCERIES ONLINE,5411,Catering costs - provisions,172.14,0.00,172.14
Children and Young Peoples Services,Head of Education and Skills,071801,Selby Cottage Childcare Centre,Supplies and Services,324117,Provisions E324,06-Aug-2021,000009655423597,ASDA GROCERIES ONLINE,5411,Catering costs - provisions,190.15,0.00,190.15
Children and Young Peoples Services,Head of Education and Skills,071801,Selby Cottage Childcare Centre,Supplies and Services,324117,Provisions E324,06-Aug-2021,000009655423603,ASDA GROCERIES ONLINE,5411,Catering costs - provisions,144.60,0.00,144.60
Children and Young Peoples Services,Head of Education and Skills,071801,Selby Cottage Childcare Centre,Supplies and Services,324117,Provisions E324,06-Aug-2021,000009655423605,ASDA GROCERIES ONLINE,5411,Catering costs - provisions,-0.48,0.00,-0.48
Children and Young Peoples Services,Head of Education and Skills,075021,DurhamWorks Progression and Learning,Supplies and Services,336005,Advertising E336,06-Aug-2021,000009655423693,MANOMANO,5722,Advertising other than for staff,74.99,0.00,74.99
Children and Young Peoples Services,Head of Education and Skills,075021,DurhamWorks Progression and Learning,Supplies and Services,364301,Grants to Voluntary Organisations,06-Aug-2021,000009655423701,WWW.GONORTHEAST.CO.UK,4111,Hardship,20.00,0.00,20.00
Children and Young Peoples Services,Head of Education and Skills,075021,DurhamWorks Progression and Learning,Supplies and Services,364301,Grants to Voluntary Organisations,06-Aug-2021,000009655423703,WWW.GONORTHEAST.CO.UK,4111,Hardship,17.00,0.00,17.00
Children and Young Peoples Services,Head of Childrens Social Care,085342,16 Hickstead Rise (previously 9 Cedar Ave),Supplies and Services,348037,Subsistence E348,06-Aug-2021,000009655423765,DARTS FARM,5812,Subsistence,21.40,0.00,21.40
Children and Young Peoples Services,Head of Childrens Social Care,085342,16 Hickstead Rise (previously 9 Cedar Ave),Supplies and Services,348037,Subsistence E348,06-Aug-2021,000009655423767,LITTLE TAVERN GROUP LT,5812,Subsistence,8.70,0.00,8.70
Children and Young Peoples Services,Head of Childrens Social Care,085342,16 Hickstead Rise (previously 9 Cedar Ave),Transport,215995,Running Costs of Vehicles,06-Aug-2021,000009655423771,TESCO PFS 3955,5541,Vehicle running expenses,43.00,0.00,43.00
Children and Young Peoples Services,Head of Childrens Social Care,085342,16 Hickstead Rise (previously 9 Cedar Ave),Supplies and Services,348037,Subsistence E348,06-Aug-2021,000009655423781,ST GEORGE & DRAGON,5812,Subsistence,62.25,0.00,62.25
Adult and Health Services,Head of Adults,052750,Learning Disability Management,Supplies and Services,364320,Grants to Voluntary Organisations,06-Aug-2021,000009655423943,THE KINGSLODGE INN,7011,Accommodation assistance,824.25,0.00,824.25
"Regeneration, Economy and Growth",Culture Sport and Tourism,054233,Bishop Auckland Town Hall Library,Supplies and Services,324117,Provisions E324,06-Aug-2021,000009655423951,HERON FOODS,5411,Catering costs - provisions,3.45,0.00,3.45
"Regeneration, Economy and Growth",Culture Sport and Tourism,054233,Bishop Auckland Town Hall Library,Supplies and Services,324117,Provisions E324,06-Aug-2021,000009655423957,TESCO STORES 2971,5411,Catering costs - provisions,17.86,0.00,17.86
"Regeneration, Economy and Growth",Development and Housing,030777,FLEX,Transport,235057,Public Transport,06-Aug-2021,000009655423971,WWW.GONORTHEAST.CO.UK,4111,Staff travelling,75.00,0.00,75.00
"Regeneration, Economy and Growth",Culture Sport and Tourism,054812,Gala Theatre - Catering etc,Supplies and Services,324117,Provisions E324,06-Aug-2021,000009655424029,JR HOLLAND FOODSERVICE,5499,Catering costs - provisions,44.54,0.00,44.54
Children and Young Peoples Services,Head of Early Help Inclusion & Vulnerable Children.,085952,Secure Education,Supplies and Services,304403,Equipment and Materials,06-Aug-2021,000009655424049,AMZNMKTPLACE AMAZON.CO,5999,Other consumables,21.40,0.00,21.40
Children and Young Peoples Services,Head of Early Help Inclusion & Vulnerable Children.,085952,Secure Education,Supplies and Services,304403,Equipment and Materials,06-Aug-2021,000009655424053,AMZNMKTPLACE AMAZON.CO,5999,Other consumables,2.74,0.00,2.74
Children and Young Peoples Services,Head of Early Help Inclusion & Vulnerable Children.,074000,National Supporting Families Programme,Transfer Payments,525033,Other,06-Aug-2021,000009655424059,THE FLOORING STORE,5713,Grants to individuals,250.00,0.00,250.00
Neighbourhoods and Climate Change,Environmental Services,010367,C&G - South Grounds Maintenance,Supplies and Services,304403,Equipment and Materials,06-Aug-2021,000009655424087,BESCOL,5231,Other consumables,39.26,0.00,39.26
"Regeneration, Economy and Growth",Culture Sport and Tourism,054967,Theatre - Technical Staffing,Supplies and Services,304221,Equipment and Materials,06-Aug-2021,000009655424211,SCREWFIX DIRECT,5211,Direct materials,53.51,0.00,53.51
Neighbourhoods and Climate Change,Environmental Services,026591,C&G - Hardwick Park,Supplies and Services,304083,Equipment and Materials,06-Aug-2021,000009655424215,AMZNMktplace,5999,Catering equipment,40.80,6.80,34.00
Neighbourhoods and Climate Change,Environmental Services,026591,C&G - Hardwick Park,Supplies and Services,304337,Equipment and Materials,06-Aug-2021,000009655424217,AMZNMktplace,5999,Consumables/items for resale,33.98,5.66,28.32
Neighbourhoods and Climate Change,Environmental Services,026591,C&G - Hardwick Park,Supplies and Services,304337,Equipment and Materials,06-Aug-2021,000009655424223,WWW.KEYCRAFTUK.COM,5945,Consumables/items for resale,183.85,0.00,183.85
Neighbourhoods and Climate Change,Environmental Services,026591,C&G - Hardwick Park,Supplies and Services,304337,Equipment and Materials,06-Aug-2021,000009655424225,ANGEL WHOLESALE,5970,Consumables/items for resale,107.78,0.00,107.78
Neighbourhoods and Climate Change,Environmental Services,010314,Nei.Prot - Bereavement Services,Supplies and Services,304259,Equipment and Materials,06-Aug-2021,000009655424231,Durham County CNCL,9399,Equipment-purchase and rental,11.00,0.00,11.00
"Regeneration, Economy and Growth",Development and Housing,031623,Rough Sleeping,Transport,235057,Public Transport,06-Aug-2021,000009655424273,BLUE LINE TAXIS,4121,Staff travelling,8.10,0.00,8.10
Children and Young Peoples Services,Head of Early Help Inclusion & Vulnerable Children.,085965,Barnard,Supplies and Services,324117,Provisions E324,06-Aug-2021,000009655424287,TESCO STORES 6329,5411,Catering costs - provisions,84.78,0.00,84.78
Neighbourhoods and Climate Change,Environmental Services,011060,C&G - Hardwick Park Catering,Supplies and Services,324117,Provisions E324,06-Aug-2021,000009655424351,FREEMAN CATERING BUTCH,5422,Catering costs - provisions,61.60,0.00,61.60
Neighbourhoods and Climate Change,Environmental Services,011060,C&G - Hardwick Park Catering,Supplies and Services,324117,Provisions E324,06-Aug-2021,000009655424359,FREEMAN CATERING BUTCH,5422,Catering costs - provisions,54.42,0.00,54.42
"Regeneration, Economy and Growth",Corporate Property and Land,021234,Catering - Locomotion,Supplies and Services,324117,Provisions E324,06-Aug-2021,000009655424389,FREEMAN CATERING BUTCH,5422,Catering costs - provisions,33.66,0.00,33.66
"Regeneration, Economy and Growth",Corporate Property and Land,021234,Catering - Locomotion,Supplies and Services,324117,Provisions E324,06-Aug-2021,000009655424393,FREEMAN CATERING BUTCH,5422,Catering costs - provisions,33.66,0.00,33.66
"Regeneration, Economy and Growth",Corporate Property and Land,021234,Catering - Locomotion,Premises,145009,Cleaning and Domestic Supplies,06-Aug-2021,000009655424401,ALLIANCE DISPOSABLES L,2842,Other cleaning and domestic costs,71.39,11.90,59.49
"Regeneration, Economy and Growth",Corporate Property and Land,021234,Catering - Locomotion,Supplies and Services,324117,Provisions E324,06-Aug-2021,000009655424405,JR HOLLAND FOODSERVICE,5499,Catering costs - provisions,50.52,0.00,50.52
"Regeneration, Economy and Growth",Development and Housing,031500,Housing Solutions - Core,Transport,235057,Public Transport,06-Aug-2021,000009655424411,Trainline.COM,4112,Staff travelling,89.82,0.00,89.82
Children and Young Peoples Services,Head of Childrens Social Care,085621,Families First Aycliffe,Supplies and Services,364301,Grants to Voluntary Organisations,06-Aug-2021,000009655424413,ARGOS LTD,5310,Hardship,199.00,0.00,199.00
Neighbourhoods and Climate Change,Environmental Services,010367,C&G - South Grounds Maintenance,Supplies and Services,304999,Equipment and Materials,06-Aug-2021,000009655424505,RICKERBY,5251,Misc equipment tools and materials,172.80,0.00,172.80
"Regeneration, Economy and Growth",Corporate Property and Land,020041,Bldg Serv - Business Development - General,Employees,040149,Recruitment Instruction and Training,06-Aug-2021,000009655424549,PROACTIS TENDERS LTD,7392,Training-all costs,226.80,0.00,226.80
Children and Young Peoples Services,Head of Childrens Social Care,085333,Coxhoe Satelite Home,Supplies and Services,304259,Equipment and Materials,06-Aug-2021,000009655424559,MUSIC MAGPIE,5732,Equipment-purchase and rental,143.98,0.00,143.98
Adult and Health Services,Head of Adults,055301,Stanley Pathways,Supplies and Services,304403,Equipment and Materials,06-Aug-2021,000009655424585,AMZNMktplace,5999,Other consumables,46.76,7.80,38.96
Adult and Health Services,Head of Adults,055301,Stanley Pathways,Supplies and Services,304403,Equipment and Materials,06-Aug-2021,000009655424589,AMZNMKTPLACE AMAZON.CO,5999,Other consumables,89.99,15.00,74.99
Children and Young Peoples Services,Head of Childrens Social Care,085342,16 Hickstead Rise (previously 9 Cedar Ave),Supplies and Services,324117,Provisions E324,06-Aug-2021,000009655424615,MOORES,5411,Catering costs - provisions,2.00,0.00,2.00
Children and Young Peoples Services,Head of Childrens Social Care,085351,Framwellgate Moor CU,Supplies and Services,304403,Equipment and Materials,06-Aug-2021,000009655424647,AMZNMKTPLACE AMAZON.CO,5999,Other consumables,26.36,4.39,21.97
"Regeneration, Economy and Growth",Corporate Property and Land,030691,Catering - Durham Dales Centre,Supplies and Services,324117,Provisions E324,06-Aug-2021,000009655424689,FREEMAN CATERING BUTCH,5422,Catering costs - provisions,79.19,0.00,79.19
"Regeneration, Economy and Growth",Corporate Property and Land,030691,Catering - Durham Dales Centre,Supplies and Services,324117,Provisions E324,06-Aug-2021,000009655424691,JR HOLLAND FOODSERVICE,5499,Catering costs - provisions,199.78,0.00,199.78
Adult and Health Services,Head of Adults,055643,Hawthorn House LD Respite Unit,Supplies and Services,324117,Provisions E324,06-Aug-2021,000009655424735,FREEMAN CATERING BUTCH,5422,Catering costs - provisions,32.96,0.00,32.96
Adult and Health Services,Head of Adults,055643,Hawthorn House LD Respite Unit,Supplies and Services,324117,Provisions E324,06-Aug-2021,000009655424739,FREEMAN CATERING BUTCH,5422,Catering costs - provisions,36.29,0.00,36.29
Adult and Health Services,Head of Adults,055643,Hawthorn House LD Respite Unit,Supplies and Services,324117,Provisions E324,06-Aug-2021,000009655424747,JR HOLLAND FOODSERVICE,5499,Catering costs - provisions,21.28,0.00,21.28
Adult and Health Services,Head of Adults,055643,Hawthorn House LD Respite Unit,Supplies and Services,324117,Provisions E324,06-Aug-2021,000009655424755,JR HOLLAND FOODSERVICE,5499,Catering costs - provisions,19.38,0.00,19.38
Neighbourhoods and Climate Change,Environmental Services,010301,C&G - North Grounds Maintenance,Supplies and Services,324117,Provisions E324,06-Aug-2021,000009655424781,J VAN VLIET GATESHEAD,5399,Catering costs - provisions,398.03,0.00,398.03
Children and Young Peoples Services,Head of Childrens Social Care,085363,LAC & Permanence Team 3,Supplies and Services,338045,Services,06-Aug-2021,000009655424791,Durham County CNCL,9399,Legal expenses 338045,22.00,0.00,22.00
Children and Young Peoples Services,Head of Childrens Social Care,085378,Young Persons Service Team 3,Supplies and Services,328041,Clothing uniforms and laundry E328,06-Aug-2021,000009655424843,USC,5691,Clothing uniforms and laundry,64.98,0.00,64.98
Children and Young Peoples Services,Head of Childrens Social Care,085371,Young Peoples Service Team 1,Supplies and Services,338045,Services,06-Aug-2021,000009655424853,HM PASSPORT OFFICE,9399,Legal expenses 338045,85.00,0.00,85.00
"Regeneration, Economy and Growth",Culture Sport and Tourism,054235,Bishop Auckland Town Hall Cafe,Supplies and Services,324117,Provisions E324,06-Aug-2021,000009655424869,JR HOLLAND FOODSERVICE,5499,Catering costs - provisions,67.50,0.00,67.50
"Regeneration, Economy and Growth",Culture Sport and Tourism,011204,Festival and Events,Supplies and Services,348037,Subsistence E348,06-Aug-2021,000009655424897,DOWNEYS OF SEAHAM LTD,5812,Subsistence,12.35,0.00,12.35
"Regeneration, Economy and Growth",Culture Sport and Tourism,011204,Festival and Events,Supplies and Services,324117,Provisions E324,06-Aug-2021,000009655424901,TESCO STORES 2371,5411,Catering costs - provisions,21.97,0.00,21.97
Children and Young Peoples Services,Head of Childrens Social Care,085333,Coxhoe Satelite Home,Supplies and Services,348037,Subsistence E348,06-Aug-2021,000009655424993,Krums Sandwich Bar,5814,Subsistence,12.30,0.00,12.30
Children and Young Peoples Services,Head of Education and Skills,071802,Louisa Cent Nursery,Supplies and Services,324117,Provisions E324,06-Aug-2021,000009655424997,ASDA GROCERIES ONLINE,5411,Catering costs - provisions,166.48,0.00,166.48
Children and Young Peoples Services,Head of Education and Skills,071802,Louisa Cent Nursery,Supplies and Services,324117,Provisions E324,06-Aug-2021,000009655425007,ASDA GROCERIES ONLINE,5411,Catering costs - provisions,-0.65,0.00,-0.65
Children and Young Peoples Services,Head of Early Help Inclusion & Vulnerable Children.,088107,Ferryhill & Newton Aycliffe 0-19 Community Family Hub,Supplies and Services,304403,Equipment and Materials,06-Aug-2021,000009655425071,AMZNMKTPLACE AMAZON.CO,5999,Other consumables,21.20,3.53,17.67
Children and Young Peoples Services,Head of Childrens Social Care,085380,Operations Manager LAC Resources,Supplies and Services,328041,Clothing uniforms and laundry E328,06-Aug-2021,000009655425085,ARGOS LTD,5310,Clothing uniforms and laundry,158.95,0.00,158.95
"Regeneration, Economy and Growth",Culture Sport and Tourism,054233,Bishop Auckland Town Hall Library,Supplies and Services,324117,Provisions E324,06-Aug-2021,000009655425099,HERON FOODS,5411,Catering costs - provisions,4.60,0.00,4.60
Resources BK0010,Procurement Sales & Business Services,065500,Business Support - Management,Supplies and Services,304403,Equipment and Materials,06-Aug-2021,000009655425213,AMZ mengzhifanggongsi,5999,Other consumables,-188.16,-31.36,-156.80
Resources BK0010,Procurement Sales & Business Services,065500,Business Support - Management,Supplies and Services,304403,Equipment and Materials,06-Aug-2021,000009655425213 - 1,AMZ mengzhifanggongsi,5999,Other consumables,6.08,,6.08
"Regeneration, Economy and Growth",Corporate Property and Land,030691,Catering - Durham Dales Centre,Supplies and Services,324117,Provisions E324,06-Aug-2021,000009655425319,SumUp Mad Hatter Bak,5811,Catering costs - provisions,96.00,0.00,96.00
Neighbourhoods and Climate Change,Environmental Services,011060,C&G - Hardwick Park Catering,Supplies and Services,324117,Provisions E324,06-Aug-2021,000009660680645,BATLEYS PERTH,5300,Catering costs - provisions,268.02,44.67,223.35
Neighbourhoods and Climate Change,Environmental Services,011060,C&G - Hardwick Park Catering,Supplies and Services,324117,Provisions E324,06-Aug-2021,000009660680645 - 1,BATLEYS PERTH,5300,Catering costs - provisions,201.35,,201.35
Neighbourhoods and Climate Change,Environmental Services,011060,C&G - Hardwick Park Catering,Supplies and Services,324117,Provisions E324,06-Aug-2021,000009660680665,BATLEYS PERTH,5300,Catering costs - provisions,-99.72,0.00,-99.72
"Regeneration, Economy and Growth",Corporate Property and Land,021234,Catering - Locomotion,Supplies and Services,324117,Provisions E324,06-Aug-2021,000009660680697,BATLEYS PERTH,5300,Catering costs - provisions,212.40,35.40,177.00
"Regeneration, Economy and Growth",Corporate Property and Land,021234,Catering - Locomotion,Supplies and Services,324117,Provisions E324,06-Aug-2021,000009660680697 - 1,BATLEYS PERTH,5300,Catering costs - provisions,24.68,,24.68
Adult and Health Services,Head of Adults,055643,Hawthorn House LD Respite Unit,Supplies and Services,324117,Provisions E324,06-Aug-2021,000009660680867,BATLEYS PERTH,5300,Catering costs - provisions,11.16,1.86,9.30
Adult and Health Services,Head of Adults,055643,Hawthorn House LD Respite Unit,Supplies and Services,324117,Provisions E324,06-Aug-2021,000009660680867 - 1,BATLEYS PERTH,5300,Catering costs - provisions,56.64,,56.64
Children and Young Peoples Services,Head of Childrens Social Care,085378,Young Persons Service Team 3,Supplies and Services,364354,Grants to Voluntary Organisations,06-Aug-2021,000009660680965,TVLICENSING.CO.UK,7392,Supervised Spend - Setting Up Home Allowance,159.00,0.00,159.00
Resources BK0010,Digital and Customer Services,070110,School Services - Man Info System (MIS) Support Team,Supplies and Services,342033,Computers and Communications,07-Aug-2021,000009655423645,WPMU DEV INCSUBFEE.COM,7372,Computer hardware,13.71,0.00,13.71
Adult and Health Services,Head of Adults,052559,The 14-25 Young People and Adulthood Service,Supplies and Services,304403,Equipment and Materials,07-Aug-2021,000009655423651,AMZNMktplace,5999,Other consumables,7.99,1.33,6.66
"Regeneration, Economy and Growth",Culture Sport and Tourism,011204,Festival and Events,Supplies and Services,304403,Equipment and Materials,07-Aug-2021,000009655423661,AMZ Amazon.co.uk,5999,Other consumables,-38.94,0.00,-38.94
Children and Young Peoples Services,Head of Education and Skills,071903,Early Years Sustainability,Supplies and Services,342033,Computers and Communications,07-Aug-2021,000009655423833,STK Shutterstock,7333,Computer hardware,22.80,0.00,22.80
Children and Young Peoples Services,Head of Childrens Social Care,085341,High Etherley Satelite Home,Supplies and Services,304999,Equipment and Materials,07-Aug-2021,000009655423855,DIGGERLAND (DURHAM),7991,Misc equipment tools and materials,28.00,0.00,28.00
Children and Young Peoples Services,Head of Childrens Social Care,085341,High Etherley Satelite Home,Supplies and Services,348037,Subsistence E348,07-Aug-2021,000009655423863,DIG IN,5814,Subsistence,3.00,0.00,3.00
Children and Young Peoples Services,Head of Childrens Social Care,085341,High Etherley Satelite Home,Supplies and Services,348037,Subsistence E348,07-Aug-2021,000009655423871,GREGGS,5812,Subsistence,6.00,0.00,6.00
Children and Young Peoples Services,Head of Childrens Social Care,085341,High Etherley Satelite Home,Supplies and Services,348037,Subsistence E348,07-Aug-2021,000009655423877,THE ITALIAN FARMHOUSE,5813,Subsistence,51.30,0.00,51.30
Children and Young Peoples Services,Head of Childrens Social Care,085358,Orchard House Sacriston Solo Home,Supplies and Services,328041,Clothing uniforms and laundry E328,07-Aug-2021,000009655424125,THE WORKS,5310,Clothing uniforms and laundry,6.00,0.00,6.00
Children and Young Peoples Services,Head of Early Help Inclusion & Vulnerable Children.,085957,Secure Management,Supplies and Services,340001,Postages E340,07-Aug-2021,000009655424299,UPS LTD,4215,Postages,2.40,0.00,2.40
Children and Young Peoples Services,Head of Early Help Inclusion & Vulnerable Children.,085956,Lumley,Supplies and Services,324117,Provisions E324,07-Aug-2021,000009655424303,TESCO STORES 6329,5411,Catering costs - provisions,63.01,0.00,63.01
Children and Young Peoples Services,Head of Childrens Social Care,085342,16 Hickstead Rise (previously 9 Cedar Ave),Supplies and Services,348037,Subsistence E348,07-Aug-2021,000009655424619,iZ COSTELLO S - W,5812,Subsistence,14.53,0.00,14.53
Children and Young Peoples Services,Head of Childrens Social Care,085351,Framwellgate Moor CU,Supplies and Services,348037,Subsistence E348,07-Aug-2021,000009655424643,MCDONALDS,5814,Subsistence,4.31,0.00,4.31
Children and Young Peoples Services,Head of Childrens Social Care,085351,Framwellgate Moor CU,Supplies and Services,304403,Equipment and Materials,07-Aug-2021,000009655424651,AMZNMKTPLACE AMAZON.CO,5999,Other consumables,7.98,1.34,6.64
Children and Young Peoples Services,Head of Childrens Social Care,085372,Young Peoples Service Team 2,Supplies and Services,364354,Grants to Voluntary Organisations,07-Aug-2021,000009655424863,Amazon.co.uk VC2HA9Y35,5969,Supervised Spend - Setting Up Home Allowance,118.69,19.78,98.91
Children and Young Peoples Services,Head of Childrens Social Care,085332,Middlestone Moor CU,Supplies and Services,312009,Newspapers books and periodicals E312,07-Aug-2021,000009655424917,MIDDLESTONE MOOR NEWSA,5994,Newspapers books and periodicals,7.27,0.00,7.27
Children and Young Peoples Services,Head of Childrens Social Care,085332,Middlestone Moor CU,Supplies and Services,324117,Provisions E324,07-Aug-2021,000009655424925,ASDA STORES,5411,Catering costs - provisions,70.78,0.00,70.78
"Regeneration, Economy and Growth",Culture Sport and Tourism,054233,Bishop Auckland Town Hall Library,Supplies and Services,324117,Provisions E324,07-Aug-2021,000009655425105,WILKO RETAIL LIMITED,5399,Catering costs - provisions,8.20,0.00,8.20
"Regeneration, Economy and Growth",Culture Sport and Tourism,054233,Bishop Auckland Town Hall Library,Supplies and Services,324117,Provisions E324,07-Aug-2021,000009655425113,HERON FOODS,5411,Catering costs - provisions,6.00,0.00,6.00
"Regeneration, Economy and Growth",Culture Sport and Tourism,054233,Bishop Auckland Town Hall Library,Supplies and Services,324117,Provisions E324,07-Aug-2021,000009655425115,ASDA STORES,5411,Catering costs - provisions,14.46,0.00,14.46
Children and Young Peoples Services,Head of Childrens Social Care,085352,New Childrens Home (previously Tow Law),Supplies and Services,324117,Provisions E324,07-Aug-2021,000009655425129,ASDA GROCERIES ONLINE,5411,Catering costs - provisions,135.78,0.00,135.78
Children and Young Peoples Services,Head of Childrens Social Care,085352,New Childrens Home (previously Tow Law),Supplies and Services,324117,Provisions E324,07-Aug-2021,000009655425135,ASDA GROCERIES ONLINE,5411,Catering costs - provisions,-0.38,0.00,-0.38
Children and Young Peoples Services,Head of Childrens Social Care,085331,New Lea Childrens Home,Supplies and Services,324117,Provisions E324,07-Aug-2021,000009655425163,TESCO STORES 2371,5411,Catering costs - provisions,32.00,0.00,32.00
Children and Young Peoples Services,Head of Childrens Social Care,085347,Solo Home The Manse,Supplies and Services,348037,Subsistence E348,07-Aug-2021,000009655425179,SumUp Rostich Leisur,5813,Subsistence,19.90,0.00,19.90
Children and Young Peoples Services,Head of Childrens Social Care,085347,Solo Home The Manse,Supplies and Services,348037,Subsistence E348,07-Aug-2021,000009655425185,MCDONALDS,5812,Subsistence,15.59,0.00,15.59
Adult and Health Services,Commissioning inc Supporting People,052100,Supporting the Provider Market,Supplies and Services,312009,Newspapers books and periodicals E312,07-Aug-2021,000009655425199,Amazon.co.uk BN2VZ9CE5,5969,Newspapers books and periodicals,129.80,0.00,129.80
"Regeneration, Economy and Growth",Corporate Property and Land,030691,Catering - Durham Dales Centre,Supplies and Services,324117,Provisions E324,07-Aug-2021,000009655425323,CO OP GROUP FOOD,5411,Catering costs - provisions,4.20,0.00,4.20
Children and Young Peoples Services,Head of Education and Skills,071801,Selby Cottage Childcare Centre,Supplies and Services,304999,Equipment and Materials,08-Aug-2021,000009655423609,Amazon Prime UG4WV3I15,5968,Misc equipment tools and materials,7.99,0.00,7.99
Resources BK0010,Digital and Customer Services,065449,Applications 065449,Supplies and Services,304403,Equipment and Materials,08-Aug-2021,000009655423655,DRI No Limit Software,5734,Other consumables,468.66,0.00,468.66
"Regeneration, Economy and Growth",Culture Sport and Tourism,030712,VCD - Project Delivery,Supplies and Services,384199,Miscellaneous Expenses,08-Aug-2021,000009655423721,PAYPAL WEBALON,5817,Other hired and contracted services,5.64,0.00,5.64
Children and Young Peoples Services,Head of Childrens Social Care,085342,16 Hickstead Rise (previously 9 Cedar Ave),Supplies and Services,324117,Provisions E324,08-Aug-2021,000009655423789,SAINSBURYS LOC4622,5411,Catering costs - provisions,12.70,0.00,12.70
Children and Young Peoples Services,Head of Childrens Social Care,085341,High Etherley Satelite Home,Supplies and Services,308011,Furniture,08-Aug-2021,000009655423887,IKEA LTD 143 GATESHEAD,5712,Furniture repair and replacement,228.00,0.00,228.00
Children and Young Peoples Services,Head of Early Help Inclusion & Vulnerable Children.,085954,Walworth,Supplies and Services,324117,Provisions E324,08-Aug-2021,000009655424311,TESCO STORES 6329,5411,Catering costs - provisions,65.79,0.00,65.79
Children and Young Peoples Services,Head of Childrens Social Care,085331,New Lea Childrens Home,Supplies and Services,304999,Equipment and Materials,08-Aug-2021,000009655424431,www.groupon.co.uk,7278,Misc equipment tools and materials,35.00,0.00,35.00
Children and Young Peoples Services,Head of Childrens Social Care,085331,New Lea Childrens Home,Supplies and Services,324117,Provisions E324,08-Aug-2021,000009655424439,B&M 373 - GATESHEAD,5399,Catering costs - provisions,49.63,0.00,49.63
Children and Young Peoples Services,Head of Childrens Social Care,085331,New Lea Childrens Home,Supplies and Services,324117,Provisions E324,08-Aug-2021,000009655424445,MARKS&SPENCER PLC SF,5411,Catering costs - provisions,1.80,0.00,1.80
Children and Young Peoples Services,Head of Childrens Social Care,085331,New Lea Childrens Home,Supplies and Services,348037,Subsistence E348,08-Aug-2021,000009655424451,MCDONALDS,5812,Subsistence,5.57,0.00,5.57
Children and Young Peoples Services,Head of Childrens Social Care,085551,Short Break Services-Park Hse Sher,Supplies and Services,324117,Provisions E324,08-Aug-2021,000009655424467,ALDI 15 774,5411,Catering costs - provisions,12.88,0.00,12.88
Adult and Health Services,Head of Adults,055643,Hawthorn House LD Respite Unit,Supplies and Services,324117,Provisions E324,08-Aug-2021,000009655424533,HERON FOODS,5411,Catering costs - provisions,1.09,0.00,1.09
Adult and Health Services,Head of Adults,055301,Stanley Pathways,Supplies and Services,304403,Equipment and Materials,08-Aug-2021,000009655424593,AMZNMktplace,5999,Other consumables,14.99,2.50,12.49
Children and Young Peoples Services,Head of Childrens Social Care,085351,Framwellgate Moor CU,Supplies and Services,324117,Provisions E324,08-Aug-2021,000009655424655,ASDA GROCERIES ONLINE,5411,Catering costs - provisions,208.01,0.00,208.01
Children and Young Peoples Services,Head of Childrens Social Care,085351,Framwellgate Moor CU,Supplies and Services,324117,Provisions E324,08-Aug-2021,000009655424661,ASDA GROCERIES ONLINE,5411,Catering costs - provisions,-2.42,0.00,-2.42
Children and Young Peoples Services,Head of Early Help Inclusion & Vulnerable Children.,085957,Secure Management,Supplies and Services,304259,Equipment and Materials,08-Aug-2021,000009655424829,AMZNMktplace,5999,Equipment-purchase and rental,13.98,2.34,11.64
"Regeneration, Economy and Growth",Culture Sport and Tourism,011204,Festival and Events,Supplies and Services,324117,Provisions E324,08-Aug-2021,000009655424905,ALDI 34 774,5411,Catering costs - provisions,16.85,0.00,16.85
Children and Young Peoples Services,Head of Childrens Social Care,085332,Middlestone Moor CU,Supplies and Services,324117,Provisions E324,08-Aug-2021,000009655424929,KEN WARNE LTD (O5),5411,Catering costs - provisions,9.37,0.00,9.37
Children and Young Peoples Services,Head of Childrens Social Care,085334,West Rainton Satelite Home,Supplies and Services,304403,Equipment and Materials,08-Aug-2021,000009655424961,AMZNMktplace,5999,Other consumables,18.99,0.00,18.99
Children and Young Peoples Services,Head of Childrens Social Care,085332,Middlestone Moor CU,Transport,235057,Public Transport,08-Aug-2021,000009655425047,ARRIVA UK BUS,4131,Staff travelling,14.80,0.00,14.80
Children and Young Peoples Services,Head of Childrens Social Care,085332,Middlestone Moor CU,Supplies and Services,304259,Equipment and Materials,08-Aug-2021,000009655425055,JD SPORTS INTERNET,5941,Equipment-purchase and rental,30.99,0.00,30.99
Resources BK0010,Procurement Sales & Business Services,065500,Business Support - Management,Employees,040149,Recruitment Instruction and Training,08-Aug-2021,000009655425217,CREATIVE_FED,8699,Training-all costs,25.00,0.00,25.00
Children and Young Peoples Services,Head of Childrens Social Care,085341,High Etherley Satelite Home,Supplies and Services,328041,Clothing uniforms and laundry E328,08-Aug-2021,000009660680445,WWW.EMBLEMATIC.CO.UK,5611,Clothing uniforms and laundry,152.99,0.00,152.99
Resources BK0010,Digital and Customer Services,070110,School Services - Man Info System (MIS) Support Team,Supplies and Services,342033,Computers and Communications,09-Aug-2021,000009655423667,WPMU DEV INCSUBFEE.COM,7372,Computer hardware,0.38,0.00,0.38
"Regeneration, Economy and Growth",Culture Sport and Tourism,054233,Bishop Auckland Town Hall Library,Supplies and Services,304403,Equipment and Materials,09-Aug-2021,000009655423963,AMZNMktplace,5999,Other consumables,113.76,18.96,94.80
Children and Young Peoples Services,Head of Early Help Inclusion & Vulnerable Children.,085957,Secure Management,Supplies and Services,384302,Miscellaneous Expenses,09-Aug-2021,000009655424831,Microsoft Ultimate 1 M,5816,Activity expenses,10.99,1.83,9.16
"Regeneration, Economy and Growth",Business Durham CL0850,030689,Inward Investment and Aftercare,Supplies and Services,304999,Equipment and Materials,09-Aug-2021,000009660680367,MAILCHIMP MONTHLY,5968,Misc equipment tools and materials,76.18,0.00,76.18
Children and Young Peoples Services,Head of Childrens Social Care,085633,Families First Chester-Le-Street,Supplies and Services,364340,Grants to Voluntary Organisations,09-Aug-2021,000009660680377,WWW.GONORTHEAST.CO.UK,4111,Contact expenses,25.00,0.00,25.00
Children and Young Peoples Services,Head of Education and Skills,071801,Selby Cottage Childcare Centre,Supplies and Services,304403,Equipment and Materials,09-Aug-2021,000009660680383,AMZNMktplace,5999,Other consumables,17.94,2.99,14.95
Children and Young Peoples Services,Head of Education and Skills,071801,Selby Cottage Childcare Centre,Supplies and Services,304403,Equipment and Materials,09-Aug-2021,000009660680389,AMZNMktplace,5999,Other consumables,25.00,4.17,20.83
Children and Young Peoples Services,Head of Education and Skills,071801,Selby Cottage Childcare Centre,Supplies and Services,304403,Equipment and Materials,09-Aug-2021,000009660680395,AMZNMktplace,5999,Other consumables,11.50,1.92,9.58
Children and Young Peoples Services,Head of Education and Skills,071801,Selby Cottage Childcare Centre,Supplies and Services,304403,Equipment and Materials,09-Aug-2021,000009660680403,AMZNMktplace,5999,Other consumables,18.00,3.00,15.00
Children and Young Peoples Services,Head of Education and Skills,071801,Selby Cottage Childcare Centre,Supplies and Services,304403,Equipment and Materials,09-Aug-2021,000009660680407,AMZNMktplace,5999,Other consumables,7.99,1.33,6.66
Children and Young Peoples Services,Head of Education and Skills,071801,Selby Cottage Childcare Centre,Supplies and Services,304403,Equipment and Materials,09-Aug-2021,000009660680411,AMZNMktplace,5999,Other consumables,11.49,1.92,9.57
"Regeneration, Economy and Growth",Corporate Property and Land,010814,Bldg Serv - R&M General,Supplies and Services,304403,Equipment and Materials,09-Aug-2021,000009660680423,AMZNMktplace,5999,Other consumables,7.99,1.33,6.66
Children and Young Peoples Services,Head of Childrens Social Care,085332,Middlestone Moor CU,Supplies and Services,324117,Provisions E324,09-Aug-2021,000009660680431,TESCO STORES 2371,5411,Catering costs - provisions,100.23,0.00,100.23
"Regeneration, Economy and Growth",Development and Housing,031634,LOCAL LETTINGS AGENCY,Supplies and Services,304999,Equipment and Materials,09-Aug-2021,000009660680439,AMZNMktplace,5999,Misc equipment tools and materials,147.00,0.00,147.00
"Regeneration, Economy and Growth",Development and Housing,030544,Rural Employability - Client Engagement,Transport,235057,Public Transport,09-Aug-2021,000009660680475,WWW.GONORTHEAST.CO.UK,4111,Staff travelling,20.00,0.00,20.00
Neighbourhoods and Climate Change,Environmental Services,010367,C&G - South Grounds Maintenance,Supplies and Services,304221,Equipment and Materials,09-Aug-2021,000009660680503,BTL TIMBER AND HARDWAR,5099,Direct materials,26.05,0.00,26.05
Neighbourhoods and Climate Change,Environmental Services,010367,C&G - South Grounds Maintenance,Supplies and Services,304999,Equipment and Materials,09-Aug-2021,000009660680521,Harelaw sawmill delive,5251,Misc equipment tools and materials,397.92,0.00,397.92
Children and Young Peoples Services,Head of Education and Skills,071732,Dean Bank Childcare,Supplies and Services,304259,Equipment and Materials,09-Aug-2021,000009660680569,Amazon Music EM2K00Z85,5735,Equipment-purchase and rental,14.99,0.00,14.99
Resources BK0010,Finance & Transactional Services,065190,In House Enforcement Service,Employees,040149,Recruitment Instruction and Training,09-Aug-2021,000009660680595,CICM,8398,Training-all costs,172.00,0.00,172.00
Children and Young Peoples Services,Head of Childrens Social Care,085511,Emergency Duty Team,Supplies and Services,304259,Equipment and Materials,09-Aug-2021,000009660680601,Amazon.co.uk J40H55RF5,5969,Equipment-purchase and rental,20.31,0.00,20.31
"Regeneration, Economy and Growth",Culture Sport and Tourism,011207,Physical Activity 011207,Supplies and Services,304259,Equipment and Materials,09-Aug-2021,000009660680621,AMZNMktplace,5999,Equipment-purchase and rental,885.11,147.61,737.50
"Regeneration, Economy and Growth",Culture Sport and Tourism,011207,Physical Activity 011207,Supplies and Services,304259,Equipment and Materials,09-Aug-2021,000009660680625,AMZNMktplace,5999,Equipment-purchase and rental,885.13,147.63,737.50
Neighbourhoods and Climate Change,Environmental Services,010301,C&G - North Grounds Maintenance,Supplies and Services,304999,Equipment and Materials,09-Aug-2021,000009660680633,GRALANDS WOODWORK SUPP,5251,Misc equipment tools and materials,19.99,0.00,19.99
Neighbourhoods and Climate Change,Environmental Services,011060,C&G - Hardwick Park Catering,Supplies and Services,324117,Provisions E324,09-Aug-2021,000009660680663,JR HOLLAND FOODSERVICE,5499,Catering costs - provisions,31.70,0.00,31.70
Resources BK0010,People & Talent Management,010984,Training and Development,Employees,040149,Recruitment Instruction and Training,09-Aug-2021,000009660680681,WWW.CSCS.UK.COM,8699,Training-all costs,36.00,0.00,36.00
"Regeneration, Economy and Growth",Corporate Property and Land,021234,Catering - Locomotion,Supplies and Services,324117,Provisions E324,09-Aug-2021,000009660680707,ON A ROLL SANDWICH COM,5499,Catering costs - provisions,459.72,0.00,459.72
"Regeneration, Economy and Growth",Corporate Property and Land,021234,Catering - Locomotion,Supplies and Services,324117,Provisions E324,09-Aug-2021,000009660680713,JR HOLLAND FOODSERVICE,5499,Catering costs - provisions,95.09,0.00,95.09
Resources BK0010,Legal & Democratic Services,060131,County Records,Employees,040149,Recruitment Instruction and Training,09-Aug-2021,000009660680717,GROUP FOR ED IN MUSEUM,8398,Training-all costs,59.00,0.00,59.00
Resources BK0010,Legal & Democratic Services,060131,County Records,Supplies and Services,304221,Equipment and Materials,09-Aug-2021,000009660680727,UK WATER FILTERS LTD,5085,Direct materials,13.95,0.00,13.95
Children and Young Peoples Services,Head of Childrens Social Care,085551,Short Break Services-Park Hse Sher,Supplies and Services,324117,Provisions E324,09-Aug-2021,000009660680751,WILKO RETAIL LIMITED,5399,Catering costs - provisions,19.80,0.00,19.80
Children and Young Peoples Services,Head of Early Help Inclusion & Vulnerable Children.,071440,Barnard Castle One Point Hub,Supplies and Services,304259,Equipment and Materials,09-Aug-2021,000009660680761,FIRSTAID4LESS.CO.UK,5999,Equipment-purchase and rental,16.68,0.00,16.68
Neighbourhoods and Climate Change,Environmental Services,031228,North Pennines - Fellfoot Forward,Supplies and Services,304403,Equipment and Materials,09-Aug-2021,000009660680767,AMZNMktplace,5999,Other consumables,37.98,6.34,31.64
Neighbourhoods and Climate Change,Environmental Services,010367,C&G - South Grounds Maintenance,Supplies and Services,304221,Equipment and Materials,09-Aug-2021,000009660680775,CARRS BILLINGTON SPENN,5599,Direct materials,60.00,0.00,60.00
Children and Young Peoples Services,Head of Early Help Inclusion & Vulnerable Children.,071616,Seaham Childrens Centre,Supplies and Services,324117,Provisions E324,09-Aug-2021,000009660680805,CREAMS OF SEAHAM,5462,Catering costs - provisions,75.00,0.00,75.00
"Regeneration, Economy and Growth",Culture Sport and Tourism,010601,Spennymoor Leisure Cr - General,Supplies and Services,304259,Equipment and Materials,09-Aug-2021,000009660680833,TOOLSTATION UK,5251,Equipment-purchase and rental,44.94,0.00,44.94
"Regeneration, Economy and Growth",Corporate Property and Land,030691,Catering - Durham Dales Centre,Supplies and Services,324117,Provisions E324,09-Aug-2021,000009660680843,JR HOLLAND FOODSERVICE,5499,Catering costs - provisions,65.45,0.00,65.45
"Regeneration, Economy and Growth",Corporate Property and Land,030691,Catering - Durham Dales Centre,Supplies and Services,324117,Provisions E324,09-Aug-2021,000009660680849,JR HOLLAND FOODSERVICE,5499,Catering costs - provisions,-20.23,0.00,-20.23
Adult and Health Services,Head of Adults,055643,Hawthorn House LD Respite Unit,Supplies and Services,324117,Provisions E324,09-Aug-2021,000009660680875,JR HOLLAND FOODSERVICE,5499,Catering costs - provisions,15.98,0.00,15.98
"Regeneration, Economy and Growth",Culture Sport and Tourism,011215,Museums Heritage & Collections 011215,Supplies and Services,384237,Miscellaneous Expenses,09-Aug-2021,000009660680885,DESIGN PRINT BANNER LT,5712,Recreational exps outings parties,35.95,0.00,35.95
Children and Young Peoples Services,Head of Childrens Social Care,085334,West Rainton Satelite Home,Supplies and Services,324117,Provisions E324,09-Aug-2021,000009660680903,TESCO STORES 2371,5411,Catering costs - provisions,133.96,0.00,133.96
Resources BK0010,Digital and Customer Services,065335,School Services - Implementations,Supplies and Services,304639,Equipment and Materials,09-Aug-2021,000009660680919,MYVOLTS MYVOLTS ORDER,5732,Technicians-supplies,16.98,0.00,16.98
Resources BK0010,Digital and Customer Services,065335,School Services - Implementations,Supplies and Services,304639,Equipment and Materials,09-Aug-2021,000009660680923,ALIEXPRESS,5311,Technicians-supplies,19.52,0.00,19.52
Resources BK0010,Digital and Customer Services,065335,School Services - Implementations,Supplies and Services,304639,Equipment and Materials,09-Aug-2021,000009660680927,REPLACEBASE,5732,Technicians-supplies,96.72,0.00,96.72
Resources BK0010,Digital and Customer Services,065335,School Services - Implementations,Supplies and Services,304639,Equipment and Materials,09-Aug-2021,000009660680931,WWW.ALIEXPRESS.COM,5964,Technicians-supplies,12.14,0.00,12.14
Children and Young Peoples Services,Head of Childrens Social Care,085342,16 Hickstead Rise (previously 9 Cedar Ave),Supplies and Services,308011,Furniture,09-Aug-2021,000009660680939,IKEA LTD 143 GATESHEAD,5712,Furniture repair and replacement,285.95,0.00,285.95
Children and Young Peoples Services,Head of Childrens Social Care,085342,16 Hickstead Rise (previously 9 Cedar Ave),Supplies and Services,348037,Subsistence E348,09-Aug-2021,000009660680943,MCDONALDS,5814,Subsistence,9.67,0.00,9.67
Children and Young Peoples Services,Head of Early Help Inclusion & Vulnerable Children.,085956,Lumley,Supplies and Services,384302,Miscellaneous Expenses,09-Aug-2021,000009660680955,AMZNMKTPLACE AMAZON.CO,5999,Activity expenses,11.86,1.98,9.88
Children and Young Peoples Services,Head of Early Help Inclusion & Vulnerable Children.,088110,Easington & Peterlee 0-19 Targeted Family Support,Supplies and Services,304259,Equipment and Materials,09-Aug-2021,000009660680971,MAXWELLS DIY,5231,Equipment-purchase and rental,28.00,0.00,28.00
"Regeneration, Economy and Growth",Culture Sport and Tourism,054235,Bishop Auckland Town Hall Cafe,Supplies and Services,324117,Provisions E324,09-Aug-2021,000009660680981,JR HOLLAND FOODSERVICE,5499,Catering costs - provisions,316.19,0.00,316.19
"Regeneration, Economy and Growth",Culture Sport and Tourism,054235,Bishop Auckland Town Hall Cafe,Supplies and Services,324117,Provisions E324,09-Aug-2021,000009660680987,JR HOLLAND FOODSERVICE,5499,Catering costs - provisions,-9.20,0.00,-9.20
Children and Young Peoples Services,Head of Childrens Social Care,085334,West Rainton Satelite Home,Transport,235005,Public Transport,09-Aug-2021,000009660681003,S CARS (NE) LTD,7538,Contract tickets,15.00,0.00,15.00
Children and Young Peoples Services,Head of Childrens Social Care,085334,West Rainton Satelite Home,Supplies and Services,324117,Provisions E324,09-Aug-2021,000009660681009,ASDA SUPERSTORE 4987,5411,Catering costs - provisions,44.41,0.00,44.41
Children and Young Peoples Services,Head of Childrens Social Care,085334,West Rainton Satelite Home,Supplies and Services,324117,Provisions E324,09-Aug-2021,000009660681015,ASDA SUPERSTORE 4987,5411,Catering costs - provisions,44.24,0.00,44.24
Children and Young Peoples Services,Head of Childrens Social Care,085334,West Rainton Satelite Home,Supplies and Services,324117,Provisions E324,09-Aug-2021,000009660681021,ASDA SUPERSTORE 4987,5411,Catering costs - provisions,9.57,0.00,9.57
Children and Young Peoples Services,Head of Childrens Social Care,085334,West Rainton Satelite Home,Supplies and Services,324117,Provisions E324,09-Aug-2021,000009660681025,ASDA SUPERSTORE 4987,5411,Catering costs - provisions,44.03,0.00,44.03
Neighbourhoods and Climate Change,Environmental Services,010301,C&G - North Grounds Maintenance,Supplies and Services,304221,Equipment and Materials,09-Aug-2021,000009660681031,BREWERS,5211,Direct materials,29.15,0.00,29.15
Children and Young Peoples Services,Head of Education and Skills,071802,Louisa Cent Nursery,Supplies and Services,324117,Provisions E324,09-Aug-2021,000009660681061,ASDA SUPERSTORE,5411,Catering costs - provisions,1.70,0.00,1.70
Children and Young Peoples Services,Head of Childrens Social Care,085396,Fostering Placement Team,Transport,235057,Public Transport,09-Aug-2021,000009660681089,HOLIDAY PAYMENT AVR,4722,Staff travelling,379.00,0.00,379.00
Children and Young Peoples Services,Head of Childrens Social Care,085396,Fostering Placement Team,Transport,235057,Public Transport,09-Aug-2021,000009660681095,HOLIDAY PAYMENT AVR,4722,Staff travelling,325.00,0.00,325.00
Adult and Health Services,Head of Adults,055310,Positive Journeys (Tudhoe),Supplies and Services,324117,Provisions E324,09-Aug-2021,000009660681103,ASDA SUPERSTORE,5411,Catering costs - provisions,6.69,0.00,6.69
"Regeneration, Economy and Growth",Development and Housing,031500,Housing Solutions - Core,Supplies and Services,352001,Conference Expenses,09-Aug-2021,000009660681111,H52STANLEY,7011,Conferencesseminars fees etc,65.00,0.00,65.00
"Regeneration, Economy and Growth",Corporate Property and Land,021235,Catering - Wharton Park,Supplies and Services,324117,Provisions E324,09-Aug-2021,000009660681119,ON A ROLL SANDWICH COM,5499,Catering costs - provisions,144.60,0.00,144.60
"Regeneration, Economy and Growth",Development and Housing,031634,LOCAL LETTINGS AGENCY,Supplies and Services,324117,Provisions E324,09-Aug-2021,000009660681121,PPOINT_ THE VILLAGE NE,5411,Catering costs - provisions,15.00,0.00,15.00
"Regeneration, Economy and Growth",Culture Sport and Tourism,054812,Gala Theatre - Catering etc,Supplies and Services,324117,Provisions E324,09-Aug-2021,000009663531217,BATLEYS PERTH,5300,Catering costs - provisions,17.52,2.92,14.60
"Regeneration, Economy and Growth",Culture Sport and Tourism,054812,Gala Theatre - Catering etc,Supplies and Services,324117,Provisions E324,09-Aug-2021,000009663531217 - 1,BATLEYS PERTH,5300,Catering costs - provisions,142.84,,142.84
"Regeneration, Economy and Growth",Development and Housing,030772,CLLD South,Supplies and Services,324117,Provisions E324,09-Aug-2021,000009663531225,PAYPAL ICELANDFOOD,5499,Catering costs - provisions,62.05,0.00,62.05
Children and Young Peoples Services,Head of Early Help Inclusion & Vulnerable Children.,085956,Lumley,Supplies and Services,304083,Equipment and Materials,09-Aug-2021,000009663531479,AMZNMKTPLACE AMAZON.CO,5999,Catering equipment,16.99,2.83,14.16
Children and Young Peoples Services,Head of Early Help Inclusion & Vulnerable Children.,085956,Lumley,Supplies and Services,384302,Miscellaneous Expenses,09-Aug-2021,000009663531485,AMZNMKTPLACE AMAZON.CO,5999,Activity expenses,12.99,2.17,10.82
Children and Young Peoples Services,Head of Childrens Social Care,085372,Young Peoples Service Team 2,Supplies and Services,364354,Grants to Voluntary Organisations,09-Aug-2021,000009663531509,TVLICENSING.CO.UK,7392,Supervised Spend - Setting Up Home Allowance,159.00,0.00,159.00
"Regeneration, Economy and Growth",Business Durham CL0850,030689,Inward Investment and Aftercare,Supplies and Services,304999,Equipment and Materials,10-Aug-2021,000009660680375,MAILCHIMP MONTHLY,5968,Misc equipment tools and materials,2.09,0.00,2.09
"Regeneration, Economy and Growth",Culture Sport and Tourism,054967,Theatre - Technical Staffing,Third Party Payments,430100,Rendered by Private Contractors,10-Aug-2021,000009660680583,SPROUTVIDEO LLC,7399,Payments to sub-contractors,144.29,0.00,144.29
"Regeneration, Economy and Growth",Culture Sport and Tourism,054967,Theatre - Technical Staffing,Third Party Payments,430100,Rendered by Private Contractors,10-Aug-2021,000009660680591,SPROUTVIDEO LLC,7399,Payments to sub-contractors,3.97,0.00,3.97
Children and Young Peoples Services,Head of Early Help Inclusion & Vulnerable Children.,088102,Consett & Stanley 0-19 Targeted Family Support,Supplies and Services,304403,Equipment and Materials,10-Aug-2021,000009660680913,AMZNMktplace,5999,Other consumables,21.95,3.66,18.29
Children and Young Peoples Services,Head of Early Help Inclusion & Vulnerable Children.,085957,Secure Management,Supplies and Services,304259,Equipment and Materials,10-Aug-2021,000009660680961,AMZNMktplace,5999,Equipment-purchase and rental,8.99,1.50,7.49
"Regeneration, Economy and Growth",Business Durham CL0850,030689,Inward Investment and Aftercare,Third Party Payments,430100,Rendered by Private Contractors,10-Aug-2021,000009663531085,BLS monday.com,7399,Payments to sub-contractors,148.80,0.00,148.80
Children and Young Peoples Services,Head of Education and Skills,071801,Selby Cottage Childcare Centre,Supplies and Services,304403,Equipment and Materials,10-Aug-2021,000009663531089,AMZNMktplace,5999,Other consumables,7.94,1.33,6.61
Children and Young Peoples Services,Head of Education and Skills,071801,Selby Cottage Childcare Centre,Supplies and Services,304403,Equipment and Materials,10-Aug-2021,000009663531093,AMZNMktplace,5999,Other consumables,14.95,2.49,12.46
Children and Young Peoples Services,Head of Education and Skills,071801,Selby Cottage Childcare Centre,Supplies and Services,324117,Provisions E324,10-Aug-2021,000009663531097,ASDA GROCERIES ONLINE,5411,Catering costs - provisions,83.61,0.00,83.61
Children and Young Peoples Services,Head of Education and Skills,071801,Selby Cottage Childcare Centre,Supplies and Services,384999,Miscellaneous Expenses,10-Aug-2021,000009663531099,Amazon.co.uk 9F0N56UX5,5969,Other expenses,15.89,0.00,15.89
Children and Young Peoples Services,Head of Education and Skills,071801,Selby Cottage Childcare Centre,Supplies and Services,324117,Provisions E324,10-Aug-2021,000009663531103,ASDA GROCERIES ONLINE,5411,Catering costs - provisions,-0.18,0.00,-0.18
Adult and Health Services,Head of Adults,052714,Development and Learning AHS 052714,Supplies and Services,384999,Miscellaneous Expenses,10-Aug-2021,000009663531121,Amazon.co.uk AB7PM0SX5,5969,Other expenses,25.08,4.18,20.90
"Regeneration, Economy and Growth",Development and Housing,030773,CLLD North,Supplies and Services,328041,Clothing uniforms and laundry E328,10-Aug-2021,000009663531133,WWW.LABEEBY.CO.UK,5691,Clothing uniforms and laundry,83.89,0.00,83.89
"Regeneration, Economy and Growth",Development and Housing,030773,CLLD North,Third Party Payments,474101,Purchase of Care,10-Aug-2021,000009663531137,KELLY PARK LTD,8050,Nursing care payments,24.50,0.00,24.50
Neighbourhoods and Climate Change,Environmental Services,010383,C&G - South Street Cleansing,Supplies and Services,304999,Equipment and Materials,10-Aug-2021,000009663531143,Snowballs,5251,Misc equipment tools and materials,79.78,0.00,79.78
Children and Young Peoples Services,Head of Childrens Social Care,085332,Middlestone Moor CU,Supplies and Services,324117,Provisions E324,10-Aug-2021,000009663531155,HOME BARGAINS SPENNYMO,5251,Catering costs - provisions,69.99,0.00,69.99
Children and Young Peoples Services,Head of Childrens Social Care,085332,Middlestone Moor CU,Supplies and Services,324117,Provisions E324,10-Aug-2021,000009663531159,ICELAND,5411,Catering costs - provisions,20.50,0.00,20.50
"Regeneration, Economy and Growth",Development and Housing,030776,LINKCD Flexible Fund,Transport,235057,Public Transport,10-Aug-2021,000009663531203,WWW.GONORTHEAST.CO.UK,4111,Staff travelling,6.00,0.00,6.00
"Regeneration, Economy and Growth",Culture Sport and Tourism,011265,Empire Theatre (Operations),Supplies and Services,324117,Provisions E324,10-Aug-2021,000009663531207,JR HOLLAND FOODSERVICE,5499,Catering costs - provisions,13.94,0.00,13.94
"Regeneration, Economy and Growth",Culture Sport and Tourism,054812,Gala Theatre - Catering etc,Supplies and Services,324117,Provisions E324,10-Aug-2021,000009663531221,JR HOLLAND FOODSERVICE,5499,Catering costs - provisions,48.01,0.00,48.01
"Regeneration, Economy and Growth",Development and Housing,030772,CLLD South,Supplies and Services,324117,Provisions E324,10-Aug-2021,000009663531229,PAYPAL ICELANDFOOD,5499,Catering costs - provisions,-4.66,0.00,-4.66
Resources BK0010,Procurement Sales & Business Services,065503,Business Support - Spectrum,Supplies and Services,304999,Equipment and Materials,10-Aug-2021,000009663531231,WWW.INFINITEAIR.CO.UK,7991,Misc equipment tools and materials,25.90,0.00,25.90
Resources BK0010,Procurement Sales & Business Services,065503,Business Support - Spectrum,Supplies and Services,304999,Equipment and Materials,10-Aug-2021,000009663531239,WWW.INFINITEAIR.CO.UK,7991,Misc equipment tools and materials,25.90,0.00,25.90
Neighbourhoods and Climate Change,Environmental Services,010301,C&G - North Grounds Maintenance,Supplies and Services,304221,Equipment and Materials,10-Aug-2021,000009663531289,AZTEC CHEMICALS LTD,5169,Direct materials,459.00,76.50,382.50
"Regeneration, Economy and Growth",Development and Housing,031623,Rough Sleeping,Supplies and Services,352001,Conference Expenses,10-Aug-2021,000009663531295,AYCLIFFE BIZ,7011,Conferencesseminars fees etc,266.00,0.00,266.00
"Regeneration, Economy and Growth",Development and Housing,031623,Rough Sleeping,Supplies and Services,352001,Conference Expenses,10-Aug-2021,000009663531297,AYCLIFFE BIZ,7011,Conferencesseminars fees etc,266.00,0.00,266.00
Children and Young Peoples Services,Head of Early Help Inclusion & Vulnerable Children.,085965,Barnard,Transfer Payments,515002,Social Services Clients,10-Aug-2021,000009663531301,Mainline Menswear Ltd,5611,Pocket money,95.00,0.00,95.00
Children and Young Peoples Services,Head of Early Help Inclusion & Vulnerable Children.,085956,Lumley,Transfer Payments,515002,Social Services Clients,10-Aug-2021,000009663531307,Revolution Beauty Limi,5977,Pocket money,10.49,0.00,10.49
Children and Young Peoples Services,Head of Early Help Inclusion & Vulnerable Children.,085956,Lumley,Supplies and Services,308013,Furniture,10-Aug-2021,000009663531311,ASDA GEORGE COM LEEDS,5411,Curtains and carpets,24.95,0.00,24.95
Children and Young Peoples Services,Head of Education and Skills,075021,DurhamWorks Progression and Learning,Supplies and Services,324117,Provisions E324,10-Aug-2021,000009663531317,ASDA GEORGE COM LEEDS,5411,Catering costs - provisions,21.95,0.00,21.95
"Regeneration, Economy and Growth",Corporate Property and Land,021234,Catering - Locomotion,Supplies and Services,324117,Provisions E324,10-Aug-2021,000009663531323,JR HOLLAND FOODSERVICE,5499,Catering costs - provisions,31.70,0.00,31.70
"Regeneration, Economy and Growth",Development and Housing,031581,Prevention Fund,Supplies and Services,384999,Miscellaneous Expenses,10-Aug-2021,000009663531329,WWW.EASTDURHAMHOMES.CO,9399,Other expenses,128.97,0.00,128.97
Resources BK0010,Legal & Democratic Services,060131,County Records,Supplies and Services,304403,Equipment and Materials,10-Aug-2021,000009663531335,Seasons Gallery & Fram,5999,Other consumables,178.99,0.00,178.99
Children and Young Peoples Services,Head of Early Help Inclusion & Vulnerable Children.,088108,Spennymoor & Shildon 0-19 Targeted Family Support,Supplies and Services,364301,Grants to Voluntary Organisations,10-Aug-2021,000009663531347,Fletchers,7629,Hardship,62.00,0.00,62.00
Adult and Health Services,Head of Adults,055301,Stanley Pathways,Supplies and Services,304403,Equipment and Materials,10-Aug-2021,000009663531397,AMZNMktplace,5999,Other consumables,12.99,2.17,10.82
"Regeneration, Economy and Growth",Corporate Property and Land,030691,Catering - Durham Dales Centre,Supplies and Services,324117,Provisions E324,10-Aug-2021,000009663531425,JR HOLLAND FOODSERVICE,5499,Catering costs - provisions,-5.81,0.00,-5.81
Children and Young Peoples Services,Head of Childrens Social Care,085371,Young Peoples Service Team 1,Supplies and Services,338045,Services,10-Aug-2021,000009663531503,PAYPAL TP EXPRESS,4789,Legal expenses 338045,35.00,0.00,35.00
Children and Young Peoples Services,Head of Early Help Inclusion & Vulnerable Children.,088111,Easington & Peterlee 0-19 Community Family Hub,Supplies and Services,304259,Equipment and Materials,10-Aug-2021,000009663531513,IKEA LTD 143 GATESHEAD,5712,Equipment-purchase and rental,19.00,0.00,19.00
"Regeneration, Economy and Growth",Culture Sport and Tourism,054235,Bishop Auckland Town Hall Cafe,Supplies and Services,324117,Provisions E324,10-Aug-2021,000009663531519,JR HOLLAND FOODSERVICE,5499,Catering costs - provisions,66.30,0.00,66.30
Children and Young Peoples Services,Head of Childrens Social Care,085332,Middlestone Moor CU,Supplies and Services,304999,Equipment and Materials,10-Aug-2021,000009663531533,HOME BARGAINS SPENNYMO,5251,Misc equipment tools and materials,32.21,0.00,32.21
Children and Young Peoples Services,Head of Childrens Social Care,085334,West Rainton Satelite Home,Supplies and Services,304403,Equipment and Materials,10-Aug-2021,000009663531541,AMZNMKTPLACE AMAZON.CO,5999,Other consumables,33.05,0.00,33.05
Neighbourhoods and Climate Change,Environmental Services,010301,C&G - North Grounds Maintenance,Supplies and Services,304999,Equipment and Materials,10-Aug-2021,000009663531551,J G PAXTON SONS,5072,Misc equipment tools and materials,343.25,0.00,343.25
Children and Young Peoples Services,Head of Childrens Social Care,085333,Coxhoe Satelite Home,Supplies and Services,324117,Provisions E324,10-Aug-2021,000009663531559,TESCO STORES 2916,5411,Catering costs - provisions,103.05,0.00,103.05
Children and Young Peoples Services,Head of Childrens Social Care,085333,Coxhoe Satelite Home,Supplies and Services,324117,Provisions E324,10-Aug-2021,000009663531567,TESCO STORES 2916,5411,Catering costs - provisions,39.00,0.00,39.00
Children and Young Peoples Services,Head of Early Help Inclusion & Vulnerable Children.,085962,Aycliffe Secure - Durham,Supplies and Services,332047,Printing Stationery and Gen Off Exps,10-Aug-2021,000009663531597,Vue Entertainment Ltd,7832,Stationery,9.98,0.00,9.98
Resources BK0010,Procurement Sales & Business Services,065500,Business Support - Management,Employees,040149,Recruitment Instruction and Training,10-Aug-2021,000009663531607,EUREKA!,8999,Training-all costs,300.00,0.00,300.00
"Regeneration, Economy and Growth",Development and Housing,031500,Housing Solutions - Core,Supplies and Services,352001,Conference Expenses,10-Aug-2021,000009663531615,H52STANLEY,7011,Conferencesseminars fees etc,65.00,0.00,65.00
Adult and Health Services,Head of Adults,055309,Peterlee Pathways,Supplies and Services,384999,Miscellaneous Expenses,10-Aug-2021,000009663531625,Amazon.co.uk 7S93Q23M5,5969,Other expenses,399.00,66.50,332.50
Adult and Health Services,Head of Adults,055309,Peterlee Pathways,Supplies and Services,304403,Equipment and Materials,10-Aug-2021,000009663531631,AMZNMktplace,5999,Other consumables,9.60,1.60,8.00
Neighbourhoods and Climate Change,Environmental Services,031200,North Pennines Core,Supplies and Services,344033,Telephones,10-Aug-2021,000009663531641,ZOOM.US 888-799-9666,4814,Telephones general-all costs,134.40,0.00,134.40
Neighbourhoods and Climate Change,Environmental Services,010367,C&G - South Grounds Maintenance,Supplies and Services,304403,Equipment and Materials,10-Aug-2021,000009669042643,FERRYDEC,5231,Other consumables,162.00,0.00,162.00
Neighbourhoods and Climate Change,Environmental Services,010367,C&G - South Grounds Maintenance,Supplies and Services,304221,Equipment and Materials,10-Aug-2021,000009669042647,BTL TIMBER AND HARDWAR,5099,Direct materials,100.32,0.00,100.32
Neighbourhoods and Climate Change,Environmental Services,010367,C&G - South Grounds Maintenance,Supplies and Services,304221,Equipment and Materials,10-Aug-2021,000009669042681,SCREWFIX DIRECT,5211,Direct materials,39.98,0.00,39.98
Neighbourhoods and Climate Change,Environmental Services,031221,North Pennines - Bowlees,Supplies and Services,304221,Equipment and Materials,10-Aug-2021,000009669042763,A AND K HOSIERY LTD,5099,Direct materials,204.72,34.12,170.60
Neighbourhoods and Climate Change,Environmental Services,031221,North Pennines - Bowlees,Supplies and Services,304221,Equipment and Materials,10-Aug-2021,000009669042763 - 1,A AND K HOSIERY LTD,5099,Direct materials,78.00,,78.00
Neighbourhoods and Climate Change,Environmental Services,031221,North Pennines - Bowlees,Supplies and Services,328041,Clothing uniforms and laundry E328,10-Aug-2021,000009669042765,WWW.THEWORKS.CO.UK,5310,Clothing uniforms and laundry,34.00,0.00,34.00
Children and Young Peoples Services,Head of Early Help Inclusion & Vulnerable Children.,085956,Lumley,Supplies and Services,384302,Miscellaneous Expenses,10-Aug-2021,000009669042789,WWW.THEWORKS.CO.UK,5310,Activity expenses,48.50,0.00,48.50
Children and Young Peoples Services,Head of Early Help Inclusion & Vulnerable Children.,085954,Walworth,Transfer Payments,515002,Social Services Clients,10-Aug-2021,000009669042793,JD SPORTS INTERNET,5941,Pocket money,68.99,0.00,68.99
Children and Young Peoples Services,Head of Early Help Inclusion & Vulnerable Children.,085956,Lumley,Transfer Payments,515002,Social Services Clients,10-Aug-2021,000009669042795,JD SPORTS INTERNET,5941,Pocket money,63.99,0.00,63.99
Children and Young Peoples Services,Head of Early Help Inclusion & Vulnerable Children.,085954,Walworth,Transfer Payments,515002,Social Services Clients,10-Aug-2021,000009669042799,WWW.TESSUTI.CO.UK,5941,Pocket money,29.99,0.00,29.99
"Regeneration, Economy and Growth",Corporate Property and Land,021234,Catering - Locomotion,Supplies and Services,324117,Provisions E324,10-Aug-2021,000009669042847,BATLEYS PERTH,5300,Catering costs - provisions,404.16,67.36,336.80
"Regeneration, Economy and Growth",Corporate Property and Land,021234,Catering - Locomotion,Supplies and Services,324117,Provisions E324,10-Aug-2021,000009669042847 - 1,BATLEYS PERTH,5300,Catering costs - provisions,61.06,,61.06
"Regeneration, Economy and Growth",Corporate Property and Land,021234,Catering - Locomotion,Supplies and Services,324117,Provisions E324,10-Aug-2021,000009669042853,BATLEYS PERTH,5300,Catering costs - provisions,24.59,4.10,20.49
Adult and Health Services,Head of Adults,055301,Stanley Pathways,Supplies and Services,304403,Equipment and Materials,10-Aug-2021,000009669042935,AMZNMKTPLACE AMAZON.CO,5999,Other consumables,12.99,2.17,10.82
"Regeneration, Economy and Growth",Culture Sport and Tourism,054235,Bishop Auckland Town Hall Cafe,Supplies and Services,324117,Provisions E324,10-Aug-2021,000009669043031,BATLEYS PERTH,5300,Catering costs - provisions,189.18,31.53,157.65
"Regeneration, Economy and Growth",Culture Sport and Tourism,054235,Bishop Auckland Town Hall Cafe,Supplies and Services,324117,Provisions E324,10-Aug-2021,000009669043031 - 1,BATLEYS PERTH,5300,Catering costs - provisions,128.06,,128.06
"Regeneration, Economy and Growth",Development and Housing,030773,CLLD North,Supplies and Services,328041,Clothing uniforms and laundry E328,10-Aug-2021,000009670701861,NEW LOOK INTERNET,5621,Clothing uniforms and laundry,15.98,0.00,15.98
Children and Young Peoples Services,Head of Early Help Inclusion & Vulnerable Children.,085956,Lumley,Transfer Payments,515002,Social Services Clients,10-Aug-2021,000009670702067,SUPERDRUG STORES PLC,5912,Pocket money,55.91,0.00,55.91
Children and Young Peoples Services,Head of Early Help Inclusion & Vulnerable Children.,085956,Lumley,Transfer Payments,515002,Social Services Clients,10-Aug-2021,000009670702071,SUPERDRUG STORES PLC,5912,Pocket money,-3.49,0.00,-3.49
Children and Young Peoples Services,Head of Childrens Social Care,085334,West Rainton Satelite Home,Supplies and Services,304403,Equipment and Materials,11-Aug-2021,000009663531545,AMZNMktplace,5999,Other consumables,31.02,0.00,31.02
Adult and Health Services,Head of Adults,055309,Peterlee Pathways,Supplies and Services,304403,Equipment and Materials,11-Aug-2021,000009663531635,AMZNMktplace,5999,Other consumables,9.60,1.60,8.00
Children and Young Peoples Services,Head of Education and Skills,071801,Selby Cottage Childcare Centre,Supplies and Services,304403,Equipment and Materials,11-Aug-2021,000009669042551,AMZNMktplace,5999,Other consumables,13.16,0.00,13.16
Children and Young Peoples Services,Head of Education and Skills,071801,Selby Cottage Childcare Centre,Supplies and Services,384999,Miscellaneous Expenses,11-Aug-2021,000009669042555,Amazon.co.uk U203L2A55,5969,Other expenses,15.99,0.00,15.99
Children and Young Peoples Services,Head of Education and Skills,071801,Selby Cottage Childcare Centre,Supplies and Services,304403,Equipment and Materials,11-Aug-2021,000009669042559,AMZNMktplace,5999,Other consumables,8.79,1.47,7.32
Children and Young Peoples Services,Head of Education and Skills,071801,Selby Cottage Childcare Centre,Supplies and Services,324117,Provisions E324,11-Aug-2021,000009669042561,ASDA GROCERIES ONLINE,5411,Catering costs - provisions,118.90,0.00,118.90
Children and Young Peoples Services,Head of Education and Skills,071801,Selby Cottage Childcare Centre,Supplies and Services,324117,Provisions E324,11-Aug-2021,000009669042565,TESCO STORES 2278,5411,Catering costs - provisions,127.98,0.00,127.98
"Regeneration, Economy and Growth",Development and Housing,031578,Client Travel Reimbursements,Transport,235073,Public Transport,11-Aug-2021,000009669042567,BLUELINE TAXIS,4121,Travel-clients/students/children,76.00,0.00,76.00
Resources BK0010,Digital and Customer Services,065432,Web Development Group,Supplies and Services,304403,Equipment and Materials,11-Aug-2021,000009669042571,WP MAIL SMTP AGENCY -,5734,Other consumables,324.62,0.00,324.62
Resources BK0010,Legal & Democratic Services,067953,Coroner County Durham & Darlington,Supplies and Services,304999,Equipment and Materials,11-Aug-2021,000009669042575,CBA Roxio,5817,Misc equipment tools and materials,24.98,0.00,24.98
Children and Young Peoples Services,Head of Childrens Social Care,085332,Middlestone Moor CU,Supplies and Services,324117,Provisions E324,11-Aug-2021,000009669042591,TESCO STORES 2371,5411,Catering costs - provisions,183.49,0.00,183.49
Neighbourhoods and Climate Change,Environmental Services,010367,C&G - South Grounds Maintenance,Supplies and Services,304403,Equipment and Materials,11-Aug-2021,000009669042615,MAXWELLS DIY,5231,Other consumables,28.00,0.00,28.00
"Regeneration, Economy and Growth",Development and Housing,030776,LINKCD Flexible Fund,Employees,040149,Recruitment Instruction and Training,11-Aug-2021,000009669042619,NCS CITB EXAM,8299,Training-all costs,22.00,0.00,22.00
"Regeneration, Economy and Growth",Development and Housing,030776,LINKCD Flexible Fund,Transfer Payments,515140,Social Services Clients,11-Aug-2021,000009669042651,AMZNMktplace,5999,Clothing allowances,38.94,6.49,32.45
Resources BK0010,Procurement Sales & Business Services,065503,Business Support - Spectrum,Supplies and Services,304259,Equipment and Materials,11-Aug-2021,000009669042663,HM PASSPORT OFFICE,9399,Equipment-purchase and rental,49.00,0.00,49.00
Resources BK0010,Procurement Sales & Business Services,065503,Business Support - Spectrum,Supplies and Services,304259,Equipment and Materials,11-Aug-2021,000009669042669,HM PASSPORT OFFICE,9399,Equipment-purchase and rental,49.00,0.00,49.00
Children and Young Peoples Services,Head of Childrens Social Care,085517,Supporting Solutions Service (Edge of Care),Supplies and Services,384871,Miscellaneous Expenses,11-Aug-2021,000009669042771,PAYPAL HALLHILLFAR,8999,Training-other activities,32.50,0.00,32.50
Children and Young Peoples Services,Head of Childrens Social Care,085517,Supporting Solutions Service (Edge of Care),Supplies and Services,384871,Miscellaneous Expenses,11-Aug-2021,000009669042773,WWW.INFINITEAIR.CO.UK,7991,Training-other activities,37.90,0.00,37.90
Children and Young Peoples Services,Head of Early Help Inclusion & Vulnerable Children.,088107,Ferryhill & Newton Aycliffe 0-19 Community Family Hub,Supplies and Services,384999,Miscellaneous Expenses,11-Aug-2021,000009669042783,Amazon.co.uk U92DG6TO5,5969,Other expenses,68.76,11.46,57.30
Children and Young Peoples Services,Head of Early Help Inclusion & Vulnerable Children.,088107,Ferryhill & Newton Aycliffe 0-19 Community Family Hub,Supplies and Services,384999,Miscellaneous Expenses,11-Aug-2021,000009669042783 - 1,Amazon.co.uk U92DG6TO5,5969,Other expenses,0.06,,0.06
Children and Young Peoples Services,Head of Early Help Inclusion & Vulnerable Children.,085956,Lumley,Transfer Payments,515002,Social Services Clients,11-Aug-2021,000009669042801,PRETTYLITTLETHING.COM,5691,Pocket money,38.00,0.00,38.00
Children and Young Peoples Services,Head of Early Help Inclusion & Vulnerable Children.,085957,Secure Management,Supplies and Services,304405,Equipment and Materials,11-Aug-2021,000009669042805,AMZNMKTPLACE AMAZON.CO,5999,Medical supplies,5.99,1.00,4.99
Children and Young Peoples Services,Head of Early Help Inclusion & Vulnerable Children.,085962,Aycliffe Secure - Durham,Supplies and Services,324117,Provisions E324,11-Aug-2021,000009669042807,TESCO STORES 6329,5411,Catering costs - provisions,54.21,0.00,54.21
Children and Young Peoples Services,Head of Early Help Inclusion & Vulnerable Children.,085957,Secure Management,Supplies and Services,332047,Printing Stationery and Gen Off Exps,11-Aug-2021,000009669042811,Amazon.co.uk ST2HG78A5,5969,Stationery,12.60,2.10,10.50
Children and Young Peoples Services,Head of Early Help Inclusion & Vulnerable Children.,085956,Lumley,Supplies and Services,384302,Miscellaneous Expenses,11-Aug-2021,000009669042813,AMZNMktplace,5999,Activity expenses,12.99,2.17,10.82
Children and Young Peoples Services,Head of Early Help Inclusion & Vulnerable Children.,085957,Secure Management,Supplies and Services,304405,Equipment and Materials,11-Aug-2021,000009669042815,AMZNMktplace,5999,Medical supplies,29.76,4.96,24.80
Children and Young Peoples Services,Head of Early Help Inclusion & Vulnerable Children.,085957,Secure Management,Supplies and Services,304405,Equipment and Materials,11-Aug-2021,000009669042815 - 1,AMZNMktplace,5999,Medical supplies,0.04,,0.04
Children and Young Peoples Services,Head of Early Help Inclusion & Vulnerable Children.,085956,Lumley,Transfer Payments,515002,Social Services Clients,11-Aug-2021,000009669042819,HM Hennes Mauritz U,5651,Pocket money,-12.99,0.00,-12.99
Neighbourhoods and Climate Change,Environmental Services,011060,C&G - Hardwick Park Catering,Premises,145009,Cleaning and Domestic Supplies,11-Aug-2021,000009669042827,ALLIANCE DISPOSABLES L,2842,Other cleaning and domestic costs,145.87,24.31,121.56
Children and Young Peoples Services,Head of Education and Skills,075021,DurhamWorks Progression and Learning,Transport,235057,Public Transport,11-Aug-2021,000009669042831,WWW.GONORTHEAST.CO.UK,4111,Staff travelling,5.30,0.00,5.30
Children and Young Peoples Services,Head of Education and Skills,075021,DurhamWorks Progression and Learning,Transport,235057,Public Transport,11-Aug-2021,000009669042835,WWW.GONORTHEAST.CO.UK,4111,Staff travelling,5.30,0.00,5.30
Children and Young Peoples Services,Head of Education and Skills,075021,DurhamWorks Progression and Learning,Transport,235057,Public Transport,11-Aug-2021,000009669042837,WWW.GONORTHEAST.CO.UK,4111,Staff travelling,5.30,0.00,5.30
Children and Young Peoples Services,Head of Education and Skills,075021,DurhamWorks Progression and Learning,Supplies and Services,304403,Equipment and Materials,11-Aug-2021,000009669042841,AMZNMktplace,5999,Other consumables,220.36,0.00,220.36
"Regeneration, Economy and Growth",Corporate Property and Land,021234,Catering - Locomotion,Premises,145009,Cleaning and Domestic Supplies,11-Aug-2021,000009669042857,ALLIANCE DISPOSABLES L,2842,Other cleaning and domestic costs,84.96,14.16,70.80
"Regeneration, Economy and Growth",Corporate Property and Land,021234,Catering - Locomotion,Premises,145009,Cleaning and Domestic Supplies,11-Aug-2021,000009669042861,ALLIANCE DISPOSABLES L,2842,Other cleaning and domestic costs,127.35,21.23,106.12
"Regeneration, Economy and Growth",Corporate Property and Land,021234,Catering - Locomotion,Supplies and Services,324117,Provisions E324,11-Aug-2021,000009669042865,JR HOLLAND FOODSERVICE,5499,Catering costs - provisions,53.66,0.00,53.66
"Regeneration, Economy and Growth",Corporate Property and Land,021234,Catering - Locomotion,Supplies and Services,324117,Provisions E324,11-Aug-2021,000009669042867,JR HOLLAND FOODSERVICE,5499,Catering costs - provisions,9.10,0.00,9.10
"Regeneration, Economy and Growth",Development and Housing,031576,B& B - Temp Accom,Supplies and Services,364320,Grants to Voluntary Organisations,11-Aug-2021,000009669042873,CROXDALE INN,5812,Accommodation assistance,180.00,0.00,180.00
"Regeneration, Economy and Growth",Development and Housing,031576,B& B - Temp Accom,Supplies and Services,364320,Grants to Voluntary Organisations,11-Aug-2021,000009669042877,CROXDALE INN,5812,Accommodation assistance,60.00,0.00,60.00
Children and Young Peoples Services,Head of Childrens Social Care,085331,New Lea Childrens Home,Supplies and Services,384999,Miscellaneous Expenses,11-Aug-2021,000009669042881,York Dungeon,7922,Other expenses,93.50,0.00,93.50
Children and Young Peoples Services,Head of Childrens Social Care,085331,New Lea Childrens Home,Supplies and Services,324117,Provisions E324,11-Aug-2021,000009669042897,TESCO STORES 6329,5411,Catering costs - provisions,3.69,0.00,3.69
Children and Young Peoples Services,Head of Childrens Social Care,085331,New Lea Childrens Home,Supplies and Services,324117,Provisions E324,11-Aug-2021,000009669042901,TESCO STORES 6329,5411,Catering costs - provisions,69.59,0.00,69.59
Adult and Health Services,Head of Adults,055643,Hawthorn House LD Respite Unit,Supplies and Services,304403,Equipment and Materials,11-Aug-2021,000009669042913,AMZNMktplace,5999,Other consumables,21.99,3.67,18.32
"Regeneration, Economy and Growth",Corporate Property and Land,030691,Catering - Durham Dales Centre,Premises,145009,Cleaning and Domestic Supplies,11-Aug-2021,000009669042959,ALLIANCE DISPOSABLES L,2842,Other cleaning and domestic costs,85.86,14.31,71.55
"Regeneration, Economy and Growth",Corporate Property and Land,030691,Catering - Durham Dales Centre,Premises,145009,Cleaning and Domestic Supplies,11-Aug-2021,000009669042959 - 1,ALLIANCE DISPOSABLES L,2842,Other cleaning and domestic costs,25.40,,25.40
"Regeneration, Economy and Growth",Corporate Property and Land,030691,Catering - Durham Dales Centre,Supplies and Services,324117,Provisions E324,11-Aug-2021,000009669042963,JR HOLLAND FOODSERVICE,5499,Catering costs - provisions,38.48,0.00,38.48
"Regeneration, Economy and Growth",Corporate Property and Land,030691,Catering - Durham Dales Centre,Supplies and Services,324117,Provisions E324,11-Aug-2021,000009669042967,JR HOLLAND FOODSERVICE,5499,Catering costs - provisions,14.85,0.00,14.85
Resources BK0010,Procurement Sales & Business Services,065503,Business Support - Spectrum,Transport,235057,Public Transport,11-Aug-2021,000009669042971,WWW.GONORTHEAST.CO.UK,4111,Staff travelling,5.30,0.00,5.30
Resources BK0010,Procurement Sales & Business Services,065503,Business Support - Spectrum,Transport,235057,Public Transport,11-Aug-2021,000009669042975,WWW.GONORTHEAST.CO.UK,4111,Staff travelling,5.30,0.00,5.30
Resources BK0010,Procurement Sales & Business Services,065503,Business Support - Spectrum,Transport,235057,Public Transport,11-Aug-2021,000009669042977,WWW.GONORTHEAST.CO.UK,4111,Staff travelling,5.30,0.00,5.30
Resources BK0010,Procurement Sales & Business Services,065503,Business Support - Spectrum,Transport,235057,Public Transport,11-Aug-2021,000009669042979,WWW.GONORTHEAST.CO.UK,4111,Staff travelling,5.30,0.00,5.30
Resources BK0010,Procurement Sales & Business Services,065503,Business Support - Spectrum,Transport,235057,Public Transport,11-Aug-2021,000009669042981,WWW.GONORTHEAST.CO.UK,4111,Staff travelling,20.00,0.00,20.00
Resources BK0010,Procurement Sales & Business Services,065503,Business Support - Spectrum,Transport,235057,Public Transport,11-Aug-2021,000009669042985,WWW.GONORTHEAST.CO.UK,4111,Staff travelling,20.00,0.00,20.00
Adult and Health Services,Head of Adults,055643,Hawthorn House LD Respite Unit,Supplies and Services,324117,Provisions E324,11-Aug-2021,000009669042989,JR HOLLAND FOODSERVICE,5499,Catering costs - provisions,8.01,0.00,8.01
Adult and Health Services,Head of Adults,055643,Hawthorn House LD Respite Unit,Supplies and Services,324117,Provisions E324,11-Aug-2021,000009669042991,JR HOLLAND FOODSERVICE,5499,Catering costs - provisions,18.88,0.00,18.88
Children and Young Peoples Services,Head of Early Help Inclusion & Vulnerable Children.,088102,Consett & Stanley 0-19 Targeted Family Support,Supplies and Services,384302,Miscellaneous Expenses,11-Aug-2021,000009669043009,AMZNMktplace,5999,Activity expenses,5.14,0.86,4.28
Children and Young Peoples Services,Head of Early Help Inclusion & Vulnerable Children.,088110,Easington & Peterlee 0-19 Targeted Family Support,Supplies and Services,304259,Equipment and Materials,11-Aug-2021,000009669043019,WILKO RETAIL LIMITED,5399,Equipment-purchase and rental,39.00,0.00,39.00
Children and Young Peoples Services,Head of Early Help Inclusion & Vulnerable Children.,088111,Easington & Peterlee 0-19 Community Family Hub,Supplies and Services,364301,Grants to Voluntary Organisations,11-Aug-2021,000009669043023,ASDA STORES LTD,5411,Hardship,30.61,0.00,30.61
Neighbourhoods and Climate Change,Environmental Services,010301,C&G - North Grounds Maintenance,Supplies and Services,328041,Clothing uniforms and laundry E328,11-Aug-2021,000009669043059,THOMAS OWEN & SONS /N/,5611,Clothing uniforms and laundry,136.00,0.00,136.00
Children and Young Peoples Services,Head of Childrens Social Care,085333,Coxhoe Satelite Home,Supplies and Services,324117,Provisions E324,11-Aug-2021,000009669043075,TESCO STORES 2916,5411,Catering costs - provisions,30.48,0.00,30.48
Children and Young Peoples Services,Head of Education and Skills,071802,Louisa Cent Nursery,Supplies and Services,324117,Provisions E324,11-Aug-2021,000009669043079,ASDA SUPERSTORE,5411,Catering costs - provisions,14.09,0.00,14.09
Resources BK0010,Procurement Sales & Business Services,065500,Business Support - Management,Supplies and Services,336005,Advertising E336,11-Aug-2021,000009669043191,FACEBK CGKQS4B5B2,7311,Advertising other than for staff,500.00,0.00,500.00
Adult and Health Services,Head of Adults,055310,Positive Journeys (Tudhoe),Supplies and Services,304403,Equipment and Materials,11-Aug-2021,000009669043195,AMZNMKTPLACE AMAZON.CO,5999,Other consumables,4.40,0.73,3.67
"Regeneration, Economy and Growth",Development and Housing,031500,Housing Solutions - Core,Supplies and Services,352001,Conference Expenses,11-Aug-2021,000009669043209,H52STANLEY,7011,Conferencesseminars fees etc,65.00,0.00,65.00
"Regeneration, Economy and Growth",Corporate Property and Land,021235,Catering - Wharton Park,Premises,145009,Cleaning and Domestic Supplies,11-Aug-2021,000009669043215,ALLIANCE DISPOSABLES L,2842,Other cleaning and domestic costs,25.48,4.25,21.23
"Regeneration, Economy and Growth",Corporate Property and Land,021235,Catering - Wharton Park,Supplies and Services,324117,Provisions E324,11-Aug-2021,000009669043217,JR HOLLAND FOODSERVICE,5499,Catering costs - provisions,14.20,0.00,14.20
Neighbourhoods and Climate Change,Environmental Services,031217,North Pennines - Cold Blooded & Spineless,Supplies and Services,348037,Subsistence E348,11-Aug-2021,000009669043231,The Duke Of Cumberland,5812,Subsistence,15.00,0.00,15.00
Neighbourhoods and Climate Change,Environmental Services,010383,C&G - South Street Cleansing,Transport,235057,Public Transport,11-Aug-2021,000009669043235,WWW.NSL.CO.UK,7523,Staff travelling,30.00,0.00,30.00
Neighbourhoods and Climate Change,Environmental Services,010383,C&G - South Street Cleansing,Supplies and Services,324117,Provisions E324,11-Aug-2021,000009669043239,B&M 147 - FERRYHILL,5399,Catering costs - provisions,5.00,0.00,5.00
Children and Young Peoples Services,Head of Early Help Inclusion & Vulnerable Children.,088113,Seaham  0-19 Community Family Hub,Supplies and Services,308011,Furniture,11-Aug-2021,000009669043257,FRANKS THE FLOORING ST,5713,Furniture repair and replacement,14.00,0.00,14.00
Neighbourhoods and Climate Change,Partnerships & Community Engagement Div.,060472,Syrian Vulnerable Persons Scheme,Supplies and Services,308011,Furniture,11-Aug-2021,000009669043261,WILKO RETAIL LIMITED,5399,Furniture repair and replacement,170.40,0.00,170.40
Neighbourhoods and Climate Change,Partnerships & Community Engagement Div.,060472,Syrian Vulnerable Persons Scheme,Supplies and Services,308011,Furniture,11-Aug-2021,000009669043263,ASDA STORES LTD 4313,5411,Furniture repair and replacement,250.29,41.72,208.57
Neighbourhoods and Climate Change,Partnerships & Community Engagement Div.,060472,Syrian Vulnerable Persons Scheme,Supplies and Services,308011,Furniture,11-Aug-2021,000009669043265,ASDA STORES LTD 4313,5411,Furniture repair and replacement,245.60,40.93,204.67
Resources BK0010,Finance & Transactional Services,065180,Collections,Supplies and Services,338045,Services,11-Aug-2021,000009670701841,HMCOURTS-SERVICE.G,9222,Legal expenses 338045,997.50,0.00,997.50
Children and Young Peoples Services,Head of Education and Skills,075021,DurhamWorks Progression and Learning,Supplies and Services,364301,Grants to Voluntary Organisations,11-Aug-2021,000009670701869,SCREWFIX DIRECT,5211,Hardship,44.97,0.00,44.97
Resources BK0010,Procurement Sales & Business Services,069387,Procurement Team A Staff,Employees,040149,Recruitment Instruction and Training,11-Aug-2021,000009670701943,WWW.CIPS.ORG,8699,Training-all costs,110.00,0.00,110.00
"Regeneration, Economy and Growth",Development and Housing,030771,Durham Advance Flexible Fund,Supplies and Services,304259,Equipment and Materials,11-Aug-2021,000009670702049,Durham County CNCL,9399,Equipment-purchase and rental,11.00,0.00,11.00
Children and Young Peoples Services,Head of Early Help Inclusion & Vulnerable Children.,085954,Walworth,Transfer Payments,515002,Social Services Clients,11-Aug-2021,000009670702057,JD SPORTS INTERNET,5941,Pocket money,49.99,0.00,49.99
"Regeneration, Economy and Growth",Transport and Contracted Services,032375,School & Workplace Travel Plans Revenue,Supplies and Services,384199,Miscellaneous Expenses,11-Aug-2021,000009670702231,highstreetvouchers,8641,Other hired and contracted services,50.00,0.00,50.00
Adult and Health Services,Head of Adults,055310,Positive Journeys (Tudhoe),Supplies and Services,304403,Equipment and Materials,11-Aug-2021,000009670702349,AMZNMKTPLACE AMAZON.CO,5999,Other consumables,7.12,1.19,5.93
Neighbourhoods and Climate Change,Environmental Services,010383,C&G - South Street Cleansing,Supplies and Services,324117,Provisions E324,11-Aug-2021,000009670702365,CO-OP GROUP 310016,5411,Catering costs - provisions,19.51,0.00,19.51
Neighbourhoods and Climate Change,Partnerships & Community Engagement Div.,060472,Syrian Vulnerable Persons Scheme,Supplies and Services,308011,Furniture,11-Aug-2021,000009670702379,The Range,5719,Furniture repair and replacement,422.56,0.00,422.56
"Regeneration, Economy and Growth",Business Durham CL0850,030689,Inward Investment and Aftercare,Supplies and Services,342033,Computers and Communications,12-Aug-2021,000009669042545,AdRoll_EMEA,7372,Computer hardware,40.22,0.00,40.22
"Regeneration, Economy and Growth",Business Durham CL0850,030689,Inward Investment and Aftercare,Supplies and Services,342033,Computers and Communications,12-Aug-2021,000009669042549,AdRoll_EMEA,7372,Computer hardware,1.11,0.00,1.11
Resources BK0010,Digital and Customer Services,065432,Web Development Group,Supplies and Services,304403,Equipment and Materials,12-Aug-2021,000009669042577,WP MAIL SMTP AGENCY -,5734,Other consumables,8.93,0.00,8.93
Children and Young Peoples Services,Head of Childrens Social Care,085358,Orchard House Sacriston Solo Home,Supplies and Services,304403,Equipment and Materials,12-Aug-2021,000009669042739,AMZNMktplace,5999,Other consumables,21.88,3.65,18.23
Children and Young Peoples Services,Head of Early Help Inclusion & Vulnerable Children.,088107,Ferryhill & Newton Aycliffe 0-19 Community Family Hub,Supplies and Services,384999,Miscellaneous Expenses,12-Aug-2021,000009669042787,Amazon.co.uk JK2KZ74K5,5969,Other expenses,63.24,0.00,63.24
Children and Young Peoples Services,Head of Childrens Social Care,085334,West Rainton Satelite Home,Supplies and Services,384999,Miscellaneous Expenses,12-Aug-2021,000009669043047,Amazon.co.uk M09SJ0Y85,5969,Other expenses,9.00,0.00,9.00
Children and Young Peoples Services,Head of Childrens Social Care,085334,West Rainton Satelite Home,Supplies and Services,304403,Equipment and Materials,12-Aug-2021,000009669043051,AMZNMktplace,5999,Other consumables,12.99,0.00,12.99
Children and Young Peoples Services,Head of Education and Skills,071801,Selby Cottage Childcare Centre,Supplies and Services,324117,Provisions E324,12-Aug-2021,000009670701825,ASDA GROCERIES ONLINE,5411,Catering costs - provisions,0.01,0.00,0.01
Children and Young Peoples Services,Head of Education and Skills,071801,Selby Cottage Childcare Centre,Supplies and Services,324117,Provisions E324,12-Aug-2021,000009670701831,ASDA GROCERIES ONLINE,5411,Catering costs - provisions,195.79,0.00,195.79
Children and Young Peoples Services,Head of Childrens Social Care,085341,High Etherley Satelite Home,Supplies and Services,384237,Miscellaneous Expenses,12-Aug-2021,000009670701847,4MOTION DARLINGTON,7999,Recreational exps outings parties,6.00,0.00,6.00
Children and Young Peoples Services,Head of Childrens Social Care,085341,High Etherley Satelite Home,Supplies and Services,384237,Miscellaneous Expenses,12-Aug-2021,000009670701851,4MOTION DARLINGTON,7999,Recreational exps outings parties,2.20,0.00,2.20
Children and Young Peoples Services,Head of Childrens Social Care,085341,High Etherley Satelite Home,Transport,215995,Running Costs of Vehicles,12-Aug-2021,000009670701855,TESCO PFS 4214,5541,Vehicle running expenses,30.01,0.00,30.01
"Regeneration, Economy and Growth",Development and Housing,030773,CLLD North,Supplies and Services,328041,Clothing uniforms and laundry E328,12-Aug-2021,000009670701865,WWW.LABEEBY.CO.UK,5691,Clothing uniforms and laundry,-78.90,0.00,-78.90
Children and Young Peoples Services,Head of Childrens Social Care,085342,16 Hickstead Rise (previously 9 Cedar Ave),Supplies and Services,324117,Provisions E324,12-Aug-2021,000009670701913,WILKO RETAIL LIMITED,5399,Catering costs - provisions,14.90,0.00,14.90
Neighbourhoods and Climate Change,Environmental Services,010367,C&G - South Grounds Maintenance,Supplies and Services,304403,Equipment and Materials,12-Aug-2021,000009670701931,MAXWELLS DIY,5231,Other consumables,17.50,0.00,17.50
Children and Young Peoples Services,Head of Childrens Social Care,085380,Operations Manager LAC Resources,Supplies and Services,304999,Equipment and Materials,12-Aug-2021,000009670701967,BOOTS UK ECOMM,5912,Misc equipment tools and materials,36.99,0.00,36.99
Resources BK0010,Procurement Sales & Business Services,065503,Business Support - Spectrum,Supplies and Services,304259,Equipment and Materials,12-Aug-2021,000009670701985,MIDDLESBROUGH COUNCIL,9399,Equipment-purchase and rental,11.00,0.00,11.00
Children and Young Peoples Services,Head of Early Help Inclusion & Vulnerable Children.,074000,National Supporting Families Programme,Transfer Payments,525033,Other,12-Aug-2021,000009670701989,FRANKS THE FLOORING ST,5713,Grants to individuals,250.00,0.00,250.00
Children and Young Peoples Services,Head of Childrens Social Care,085358,Orchard House Sacriston Solo Home,Supplies and Services,304403,Equipment and Materials,12-Aug-2021,000009670701993,AMZNMktplace,5999,Other consumables,33.88,5.65,28.23
Resources BK0010,Digital and Customer Services,070204,School Services - Systems,Supplies and Services,372009,Subscriptions E372,12-Aug-2021,000009670702003,NOMINET UK,7392,Subscriptions 372009,74.88,12.48,62.40
Resources BK0010,Digital and Customer Services,070204,School Services - Systems,Supplies and Services,372009,Subscriptions E372,12-Aug-2021,000009670702007,NOMINET UK,7392,Subscriptions 372009,37.44,6.24,31.20
Children and Young Peoples Services,Head of Education and Skills,071732,Dean Bank Childcare,Supplies and Services,304999,Equipment and Materials,12-Aug-2021,000009670702019,HOME BARGAINS HARTLEPO,5251,Misc equipment tools and materials,7.36,0.00,7.36
Neighbourhoods and Climate Change,Environmental Services,026591,C&G - Hardwick Park,Supplies and Services,304337,Equipment and Materials,12-Aug-2021,000009670702023,ANGEL WHOLESALE,5970,Consumables/items for resale,89.88,0.00,89.88
Children and Young Peoples Services,Head of Early Help Inclusion & Vulnerable Children.,085956,Lumley,Supplies and Services,384302,Miscellaneous Expenses,12-Aug-2021,000009670702061,AMZNMktplace,5999,Activity expenses,6.99,1.17,5.82
Children and Young Peoples Services,Head of Early Help Inclusion & Vulnerable Children.,085954,Walworth,Transfer Payments,515002,Social Services Clients,12-Aug-2021,000009670702065,SPORTSDIRECT.COM,5691,Pocket money,10.99,1.83,9.16
Neighbourhoods and Climate Change,Environmental Services,026591,C&G - Hardwick Park,Supplies and Services,304221,Equipment and Materials,12-Aug-2021,000009670702075,S&A BUILDERS MERCHANTS,5039,Direct materials,61.87,10.31,51.56
Neighbourhoods and Climate Change,Environmental Services,011060,C&G - Hardwick Park Catering,Supplies and Services,324117,Provisions E324,12-Aug-2021,000009670702079,JR HOLLAND FOODSERVICE,5499,Catering costs - provisions,35.62,0.00,35.62
Children and Young Peoples Services,Head of Childrens Social Care,085551,Short Break Services-Park Hse Sher,Supplies and Services,324117,Provisions E324,12-Aug-2021,000009670702085,ASDA STORES,5411,Catering costs - provisions,4.00,0.00,4.00
Children and Young Peoples Services,Head of Childrens Social Care,085551,Short Break Services-Park Hse Sher,Supplies and Services,324117,Provisions E324,12-Aug-2021,000009670702089,WWW.ICELAND.CO.UK,5411,Catering costs - provisions,146.12,0.00,146.12
Children and Young Peoples Services,Head of Childrens Social Care,085551,Short Break Services-Park Hse Sher,Supplies and Services,324117,Provisions E324,12-Aug-2021,000009670702091,WWW.ICELAND.CO.UK,5411,Catering costs - provisions,-9.50,0.00,-9.50
"Regeneration, Economy and Growth",Development and Housing,031576,B& B - Temp Accom,Supplies and Services,364320,Grants to Voluntary Organisations,12-Aug-2021,000009670702099,THE VILLAGE INN,5812,Accommodation assistance,222.40,0.00,222.40
"Regeneration, Economy and Growth",Development and Housing,031576,B& B - Temp Accom,Supplies and Services,364320,Grants to Voluntary Organisations,12-Aug-2021,000009670702103,THE VILLAGE INN,5812,Accommodation assistance,194.60,0.00,194.60
"Regeneration, Economy and Growth",Development and Housing,031576,B& B - Temp Accom,Supplies and Services,364320,Grants to Voluntary Organisations,12-Aug-2021,000009670702107,THE VILLAGE INN,5812,Accommodation assistance,236.30,0.00,236.30
Children and Young Peoples Services,Head of Childrens Social Care,085333,Coxhoe Satelite Home,Supplies and Services,324117,Provisions E324,12-Aug-2021,000009670702121,B&M 681 - DURHAM,5399,Catering costs - provisions,14.07,0.00,14.07
Children and Young Peoples Services,Head of Childrens Social Care,085334,West Rainton Satelite Home,Supplies and Services,324117,Provisions E324,12-Aug-2021,000009670702143,TESCO STORES 2371,5411,Catering costs - provisions,38.29,0.00,38.29
Children and Young Peoples Services,Head of Early Help Inclusion & Vulnerable Children.,088102,Consett & Stanley 0-19 Targeted Family Support,Supplies and Services,340001,Postages E340,12-Aug-2021,000009670702149,POST OFFICE COUNTER,9402,Postages,1.32,0.00,1.32
Resources BK0010,Digital and Customer Services,065335,School Services - Implementations,Supplies and Services,304639,Equipment and Materials,12-Aug-2021,000009670702157,ALIEXPRESS.COM aliexpr,5311,Technicians-supplies,46.25,0.00,46.25
Children and Young Peoples Services,Head of Early Help Inclusion & Vulnerable Children.,085957,Secure Management,Supplies and Services,384302,Miscellaneous Expenses,12-Aug-2021,000009670702165,Amazon MP3,5735,Activity expenses,0.98,0.16,0.82
Children and Young Peoples Services,Head of Early Help Inclusion & Vulnerable Children.,085957,Secure Management,Supplies and Services,384302,Miscellaneous Expenses,12-Aug-2021,000009670702169,Amazon MP3,5735,Activity expenses,4.90,0.82,4.08
Children and Young Peoples Services,Head of Early Help Inclusion & Vulnerable Children.,085957,Secure Management,Supplies and Services,384302,Miscellaneous Expenses,12-Aug-2021,000009670702171,Amazon MP3,5735,Activity expenses,7.99,1.33,6.66
Children and Young Peoples Services,Head of Early Help Inclusion & Vulnerable Children.,085957,Secure Management,Supplies and Services,384302,Miscellaneous Expenses,12-Aug-2021,000009670702175,Amazon MP3,5735,Activity expenses,6.98,1.16,5.82
Children and Young Peoples Services,Head of Early Help Inclusion & Vulnerable Children.,085957,Secure Management,Supplies and Services,384302,Miscellaneous Expenses,12-Aug-2021,000009670702179,Amazon MP3,5735,Activity expenses,11.99,2.00,9.99
Children and Young Peoples Services,Head of Early Help Inclusion & Vulnerable Children.,085957,Secure Management,Supplies and Services,384302,Miscellaneous Expenses,12-Aug-2021,000009670702183,Amazon MP3,5735,Activity expenses,3.92,0.65,3.27
Children and Young Peoples Services,Head of Early Help Inclusion & Vulnerable Children.,085957,Secure Management,Supplies and Services,384302,Miscellaneous Expenses,12-Aug-2021,000009670702187,Amazon MP3,5735,Activity expenses,6.86,1.14,5.72
Children and Young Peoples Services,Head of Early Help Inclusion & Vulnerable Children.,085957,Secure Management,Supplies and Services,384302,Miscellaneous Expenses,12-Aug-2021,000009670702191,Amazon MP3,5735,Activity expenses,8.99,1.50,7.49
Children and Young Peoples Services,Head of Early Help Inclusion & Vulnerable Children.,085957,Secure Management,Supplies and Services,384237,Miscellaneous Expenses,12-Aug-2021,000009670702193,Amazon MP3,5735,Recreational exps outings parties,4.80,0.80,4.00
Children and Young Peoples Services,Head of Early Help Inclusion & Vulnerable Children.,085957,Secure Management,Supplies and Services,384302,Miscellaneous Expenses,12-Aug-2021,000009670702193 - 1,Amazon MP3,5735,Activity expenses,0.10,,0.10
Children and Young Peoples Services,Head of Early Help Inclusion & Vulnerable Children.,085957,Secure Management,Supplies and Services,384302,Miscellaneous Expenses,12-Aug-2021,000009670702197,Amazon MP3,5735,Activity expenses,9.98,1.66,8.32
Children and Young Peoples Services,Head of Early Help Inclusion & Vulnerable Children.,085957,Secure Management,Supplies and Services,384302,Miscellaneous Expenses,12-Aug-2021,000009670702199,Amazon MP3,5735,Activity expenses,10.49,1.75,8.74
Children and Young Peoples Services,Head of Early Help Inclusion & Vulnerable Children.,085956,Lumley,Supplies and Services,384302,Miscellaneous Expenses,12-Aug-2021,000009670702207,Amazon.co.uk PY7H90TJ5,5969,Activity expenses,10.25,0.00,10.25
Children and Young Peoples Services,Head of Childrens Social Care,085372,Young Peoples Service Team 2,Supplies and Services,364354,Grants to Voluntary Organisations,12-Aug-2021,000009670702233,WF WAYFAIR3606704034,5712,Supervised Spend - Setting Up Home Allowance,196.97,0.00,196.97
Children and Young Peoples Services,Head of Early Help Inclusion & Vulnerable Children.,088111,Easington & Peterlee 0-19 Community Family Hub,Supplies and Services,304259,Equipment and Materials,12-Aug-2021,000009670702235,SP SPIFFY,5691,Equipment-purchase and rental,11.39,0.00,11.39
Children and Young Peoples Services,Head of Early Help Inclusion & Vulnerable Children.,088111,Easington & Peterlee 0-19 Community Family Hub,Supplies and Services,304259,Equipment and Materials,12-Aug-2021,000009670702239,WWW.EMBLEMATIC.CO.UK,5611,Equipment-purchase and rental,255.32,0.00,255.32
Children and Young Peoples Services,Head of Early Help Inclusion & Vulnerable Children.,088111,Easington & Peterlee 0-19 Community Family Hub,Supplies and Services,304259,Equipment and Materials,12-Aug-2021,000009670702243,MYCLOTHING,5137,Equipment-purchase and rental,87.41,0.00,87.41
Children and Young Peoples Services,Head of Childrens Social Care,085631,Families First Peterlee,Supplies and Services,364301,Grants to Voluntary Organisations,12-Aug-2021,000009670702249,ASDA GEORGE COM LEEDS,5411,Hardship,49.50,0.00,49.50
Children and Young Peoples Services,Head of Early Help Inclusion & Vulnerable Children.,088111,Easington & Peterlee 0-19 Community Family Hub,Supplies and Services,304259,Equipment and Materials,12-Aug-2021,000009670702253,ASDA GEORGE COM LEEDS,5411,Equipment-purchase and rental,58.45,0.00,58.45
"Regeneration, Economy and Growth",Culture Sport and Tourism,054235,Bishop Auckland Town Hall Cafe,Supplies and Services,324117,Provisions E324,12-Aug-2021,000009670702257,JR HOLLAND FOODSERVICE,5499,Catering costs - provisions,145.43,0.00,145.43
Neighbourhoods and Climate Change,Environmental Services,010301,C&G - North Grounds Maintenance,Supplies and Services,328041,Clothing uniforms and laundry E328,12-Aug-2021,000009670702261,THOMAS OWEN & SONS /N/,5611,Clothing uniforms and laundry,78.17,0.00,78.17
Children and Young Peoples Services,Head of Early Help Inclusion & Vulnerable Children.,085801,CDYJS - Support,Employees,040149,Recruitment Instruction and Training,12-Aug-2021,000009670702267,PAYPAL HALLHILLFAR,8999,Training-all costs,17.95,0.00,17.95
Children and Young Peoples Services,Head of Early Help Inclusion & Vulnerable Children.,085962,Aycliffe Secure - Durham,Supplies and Services,304999,Equipment and Materials,12-Aug-2021,000009670702321,WWW.PLANET-LEISURE.CO.,7933,Misc equipment tools and materials,25.80,0.00,25.80
Children and Young Peoples Services,Head of Early Help Inclusion & Vulnerable Children.,085962,Aycliffe Secure - Durham,Supplies and Services,304999,Equipment and Materials,12-Aug-2021,000009670702325,WWW.PLANET-LEISURE.CO.,7933,Misc equipment tools and materials,25.80,0.00,25.80
Children and Young Peoples Services,Head of Early Help Inclusion & Vulnerable Children.,085962,Aycliffe Secure - Durham,Supplies and Services,304999,Equipment and Materials,12-Aug-2021,000009670702329,WWW.PLANET-LEISURE.CO.,7933,Misc equipment tools and materials,34.80,0.00,34.80
Children and Young Peoples Services,Head of Early Help Inclusion & Vulnerable Children.,085962,Aycliffe Secure - Durham,Supplies and Services,384237,Miscellaneous Expenses,12-Aug-2021,000009670702333,JUMP 360 STOCKTON ONLI,7999,Recreational exps outings parties,27.00,0.00,27.00
Children and Young Peoples Services,Head of Childrens Social Care,085332,Middlestone Moor CU,Supplies and Services,324117,Provisions E324,12-Aug-2021,000009670702337,ASDA SUPERSTORE 4987,5411,Catering costs - provisions,16.99,0.00,16.99
Resources BK0010,Procurement Sales & Business Services,065500,Business Support - Management,Supplies and Services,304403,Equipment and Materials,12-Aug-2021,000009670702345,BOOKWHEN- SOFTWARE SUB,5734,Other consumables,82.80,0.00,82.80
Neighbourhoods and Climate Change,Partnerships & Community Engagement Div.,060472,Syrian Vulnerable Persons Scheme,Supplies and Services,308011,Furniture,12-Aug-2021,000009670702381,BOOTS UK ECOMM,5912,Furniture repair and replacement,131.88,21.98,109.90
Children and Young Peoples Services,Head of Childrens Social Care,085333,Coxhoe Satelite Home,Supplies and Services,328041,Clothing uniforms and laundry E328,12-Aug-2021,000009670702387,NEW LOOK,5621,Clothing uniforms and laundry,15.10,0.00,15.10
Children and Young Peoples Services,Head of Childrens Social Care,085380,Operations Manager LAC Resources,Supplies and Services,364359,Grants to Voluntary Organisations,12-Aug-2021,000009670702391,HTTPS://WWW.ADVENTUREV,8351,Childcare Costs,88.50,0.00,88.50
"Regeneration, Economy and Growth",Corporate Property and Land,010814,Bldg Serv - R&M General,Supplies and Services,304403,Equipment and Materials,12-Aug-2021,000009679563069,AMZNMKTPLACE AMAZON.CO,5999,Other consumables,41.94,0.00,41.94
Neighbourhoods and Climate Change,Environmental Services,026591,C&G - Hardwick Park,Supplies and Services,304083,Equipment and Materials,12-Aug-2021,000009679563391,Catering Hygiene,5046,Catering equipment,259.99,0.00,259.99
Neighbourhoods and Climate Change,Environmental Services,011060,C&G - Hardwick Park Catering,Supplies and Services,324117,Provisions E324,12-Aug-2021,000009679563521,BATLEYS PERTH,5300,Catering costs - provisions,499.68,83.28,416.40
Neighbourhoods and Climate Change,Environmental Services,011060,C&G - Hardwick Park Catering,Supplies and Services,324117,Provisions E324,12-Aug-2021,000009679563521 - 1,BATLEYS PERTH,5300,Catering costs - provisions,200.64,,200.64
Neighbourhoods and Climate Change,Environmental Services,011060,C&G - Hardwick Park Catering,Supplies and Services,324117,Provisions E324,12-Aug-2021,000009679563533,BATLEYS PERTH,5300,Catering costs - provisions,141.60,23.60,118.00
Neighbourhoods and Climate Change,Environmental Services,011060,C&G - Hardwick Park Catering,Supplies and Services,324117,Provisions E324,12-Aug-2021,000009679563533 - 1,BATLEYS PERTH,5300,Catering costs - provisions,18.86,,18.86
Children and Young Peoples Services,Head of Education and Skills,075021,DurhamWorks Progression and Learning,Supplies and Services,304259,Equipment and Materials,12-Aug-2021,000009679563591,WWW.DURHAM.GOV.UK,9399,Equipment-purchase and rental,11.00,0.00,11.00
Adult and Health Services,Head of Adults,055643,Hawthorn House LD Respite Unit,Supplies and Services,324117,Provisions E324,12-Aug-2021,000009679563765,CO-OP GROUP 010465,5411,Catering costs - provisions,4.40,0.00,4.40
Children and Young Peoples Services,Head of Childrens Social Care,085333,Coxhoe Satelite Home,Supplies and Services,348037,Subsistence E348,12-Aug-2021,000009679563771,MCDONALDS 1514,5814,Subsistence,9.96,0.00,9.96
"Regeneration, Economy and Growth",Corporate Property and Land,030691,Catering - Durham Dales Centre,Supplies and Services,324117,Provisions E324,12-Aug-2021,000009679563845,BATLEYS PERTH,5300,Catering costs - provisions,98.52,16.42,82.10
"Regeneration, Economy and Growth",Corporate Property and Land,030691,Catering - Durham Dales Centre,Supplies and Services,324117,Provisions E324,12-Aug-2021,000009679563845 - 1,BATLEYS PERTH,5300,Catering costs - provisions,61.36,,61.36
"Regeneration, Economy and Growth",Corporate Property and Land,030691,Catering - Durham Dales Centre,Supplies and Services,324117,Provisions E324,12-Aug-2021,000009679563855,BATLEYS PERTH,5300,Catering costs - provisions,5.38,0.90,4.48
Children and Young Peoples Services,Head of Early Help Inclusion & Vulnerable Children.,088102,Consett & Stanley 0-19 Targeted Family Support,Supplies and Services,384302,Miscellaneous Expenses,12-Aug-2021,000009679563963,AMZNMKTPLACE AMAZON.CO,5999,Activity expenses,20.99,3.50,17.49
Children and Young Peoples Services,Head of Early Help Inclusion & Vulnerable Children.,085962,Aycliffe Secure - Durham,Supplies and Services,304259,Equipment and Materials,12-Aug-2021,000009679563981,AO RETAIL LIMITED,5722,Equipment-purchase and rental,269.00,44.83,224.17
Resources BK0010,Corporate Finance & Commercial Services,065106,Strategic Finance - Commercial Capital & Treasury,Debtors,930177,Debtor - Chapter Homes,12-Aug-2021,000009679564001,COMPANIES HOUSE,9399,Debtor - Chapter Homes,13.00,0.00,13.00
Children and Young Peoples Services,Head of Childrens Social Care,085372,Young Peoples Service Team 2,Supplies and Services,364354,Grants to Voluntary Organisations,12-Aug-2021,000009679564009,ARGOS LTD,5310,Supervised Spend - Setting Up Home Allowance,226.94,0.00,226.94
Children and Young Peoples Services,Head of Early Help Inclusion & Vulnerable Children.,088111,Easington & Peterlee 0-19 Community Family Hub,Supplies and Services,384302,Miscellaneous Expenses,12-Aug-2021,000009679564013,ARGOS LTD,5310,Activity expenses,48.94,0.00,48.94
Children and Young Peoples Services,Head of Childrens Social Care,085332,Middlestone Moor CU,Supplies and Services,304259,Equipment and Materials,12-Aug-2021,000009679564047,SPORTSDIRECT 368,5941,Equipment-purchase and rental,16.00,0.00,16.00
"Regeneration, Economy and Growth",Corporate Property and Land,021235,Catering - Wharton Park,Supplies and Services,324117,Provisions E324,12-Aug-2021,000009679564265,BATLEYS PERTH,5300,Catering costs - provisions,475.26,79.21,396.05
"Regeneration, Economy and Growth",Corporate Property and Land,021235,Catering - Wharton Park,Supplies and Services,324117,Provisions E324,12-Aug-2021,000009679564265 - 1,BATLEYS PERTH,5300,Catering costs - provisions,13.86,,13.86
Neighbourhoods and Climate Change,Environmental Services,010383,C&G - South Street Cleansing,Supplies and Services,384237,Miscellaneous Expenses,12-Aug-2021,000009679564311,BLACKPOOL PLEASURE,7999,Recreational exps outings parties,175.00,0.00,175.00
Children and Young Peoples Services,Head of Early Help Inclusion & Vulnerable Children.,085962,Aycliffe Secure - Durham,Supplies and Services,304403,Equipment and Materials,13-Aug-2021,000009670702031,AMZNMktplace,5999,Other consumables,36.93,0.00,36.93
Children and Young Peoples Services,Head of Early Help Inclusion & Vulnerable Children.,088102,Consett & Stanley 0-19 Targeted Family Support,Supplies and Services,384302,Miscellaneous Expenses,13-Aug-2021,000009670702153,AMZNMktplace,5999,Activity expenses,30.96,5.18,25.78
Children and Young Peoples Services,Head of Early Help Inclusion & Vulnerable Children.,085956,Lumley,Supplies and Services,384302,Miscellaneous Expenses,13-Aug-2021,000009670702203,Amazon.co.uk DP28O3GL5,5969,Activity expenses,29.99,5.00,24.99
Children and Young Peoples Services,Head of Education and Skills,071801,Selby Cottage Childcare Centre,Supplies and Services,304403,Equipment and Materials,13-Aug-2021,000009679563029,AMZNMktplace,5999,Other consumables,59.40,9.90,49.50
